{"text_format":"3","workbook":"xlsx","n_sheets":5,"sheets":["БД_області",">>>>","service1","service2","service3"],"not_rendered":{"defined_names":3},"read":"whole","date_system":"1900"}

{"sheet":"БД_області","index":0,"n_rows":104,"n_cols":31,"rows_kept":104}
["Ця інформація не відображається на сайті!\nВносимо тут сектор, до якого відноситься надавач послуги (Освіта, Охорона здоров'я, Соціальний захист, Культура, Спорт, НГО, Інші)","Назву закладу, організації, яка надає послуги. \nПишіть тільки назву без лапок (крім того де у назві є ознаки), не пишіть КПН та до якого ОВА воно відноситься. \nНе більше 70 знаків, включаючи пробіли - ЦЕ РЕКОМЕНДАЦІЯ","Посилання на сайт / сторінку соціальної мережі, на якому є інформація про вашу організацію.\nНе більше 150 знаків, включаючи пробіли","! Є приклади опису основних послуг - дивись аркуш \"service3\"\n1. Опис послуг, які надаються у закладі. Ключові послуги, зрозумілою мовою для людини.\n2. Коли вказуєте цільові аудиторії прощу вас використовувати безбар’єрну лексику \n(https://bf.in.ua/glossary/ )\nНе більше 590  знаків, включаючи пробіли","Графік надання послуг. Допускається використання скорочень (пн, вт, ср, чт, пт, сб, нд).\nДо 255 символів","Область, де розташований надавач\n\nОбирається першою","ОТГ, де розташований надавач\n\nобирається згідно списку","Контактний телефон (не більше 3-ох)\n\n12 символів, телефон у форматі 380ХХХХХХХХХ","Контактний телефон (не більше 3-ох)\n\n12 символів, телефон у форматі 380ХХХХХХХХХ","Контактний телефон (не більше 3-ох)\n\n12 символів, телефон у форматі 380ХХХХХХХХХ","Адреса організації\nДо 255 символів","Вказати тип власності закладу,  організації:\n- Державна власність\n- Комунальна власність\n- Приватна власність","Обрати «1» або нічого не ставити","Обрати «1» або нічого не ставити","Обрати «1» або нічого не ставити","Обрати «1» або нічого не ставити","Обрати «1» або нічого не ставити","Обрати «1» або нічого не ставити","Обрати «1» або нічого не ставити","Обрати «1» або нічого не ставити","Обрати «1» або нічого не ставити","Обрати «1» або нічого не ставити","Обрати «1» або нічого не ставити","Обрати «1» або нічого не ставити","Обрати «1» або нічого не ставити","Детальний опис послуг, які надаються. В тому же порядку, що у блоці \"короткий опис\" зробіть детальний опис послуг. Можна додати додаткову інформацію про послуги.\nКоли вказуєте цільові аудиторії прощу вас використовувати безбар’єрну лексику \n(https://bf.in.ua/glossary/ )\nНе більше 1000  знаків, включаючи пробіли","Обрати «1» або нічого не ставити","Ця інформація не відображається на сайті!\n\nСлужбова інформація.","Ця інформація не відображається на сайті!\n\nСлужбова інформація.","Ця інформація не відображається на сайті!\n\nСлужбова інформація."]
["Сектор (список)","Назва закладу","Посилання","Короткий опис послуги","Графік роботи","Область","ОТГ","Телефон_1","Телефон_2","Телефон_3","Адреса","Типи власності","Ветерани та сім'ї","ВПО","Діти","Підлітки","Люди старшого віку","Сімейний лікар (mhGAP)","Психолог","Самодопомога","Групи підтримки","Психіатр","Втрата та горе","Залежності","ПТСР","Детальний опис","Послуги онлайн","Відповадальний за заповнення даних\n (ПІБ)","Відповадальний за заповнення даних\n (посада)","Відповадальний за заповнення даних\n(телефон)"]
["Культура","Обухівський краєзнавчий музей імені юрія домотенка","https://www.facebook.com/obukhiv.museum/?locale=uk_UA","Музей пропонує активності для зміцнення соціальної згуртованості громади через популяризацію культурної спадщини та просвітництво. Відвідувачі можуть долучитися до  тематичних екскурсії, майстер-класів, годин спілкування.","вт-сб                 09:00-17:00","Київська","Обухівська",380974967443,null,null,"Київська область, м. Обухів, вул. Київська 14, 3 поверх","Комунальна",1,1,1,1,1,null,null,1,{"$nulls":5},"Повний перелік послуг:\n– просвітництво та популяризація культурної та духовної спадщини, історії, народних традицій з метою психоемоційного розвантаження, зміцнення єдності й добробуту громади;\n– організація виставок, створення тематичних експозицій, інтерактивні екскурсії для покращення психічного здоров’я;\n– інтерактивні лекції про народні свята та традиції з елементами арттерапії, музикотерапії, танцювально-рухової терапії і психодрами для зниження рівня стресу;\n– організація і проведення майстер-класів, тренінгів та ігрових активностей для психологічної підтримки."]
["Культура","Обухівський центр культури та дозвілля","https://www.rckid.com.ua/","Центр надає культурно-просвітницькі послуги, популяризує культурні ініціативи на рівні громади та сприяє розвитку мистецьких ініціатив та розвитку творчого потенціалу жителів громади з метою психоемоційного розвантаження. Організація та проведення масових заходів із вшанування пам’ятних дат, фестивалів, тематичних свят, концертів, мистецьких акцій, конкурсів тощо сприяє розвитку згуртованості громади та покращенню психічного здоров’я її мешканців.","Цілодобово","Київська","Обухівська",380997551432,null,null,"Київська область, м. Обухів, вул. Київська 117","Комунальна",1,1,1,1,1,null,null,1,{"$nulls":5},"Повний перелік послуг:\n– проведення культурно-просвітницьких заходів та організація патріотичного виховання, вшанування пам’яті національних героїв, учасників російсько-української війни, АТО, Революції гідності;\n– підтримка культурних ініціатив громади, спрямованих на психоемоційне розвантаження;\n– розвиток аматорських мистецьких ініціатив через участь у гуртках, студіях та клубах за інтересами;\n– дослідження, збереження та популяризація нематеріальної культурної спадщини, історій успіху та стійкості громади;\n– виявлення та розвиток творчих здібностей людей різного віку, осіб, що перебувають в ситуації вразливості та осіб з інвалідністю (артмайстерки, театр тощо);\n– проведення вистав, концертів, фестивалів, тематичних свят, інших заходів для розвитку згуртованості громади та покращення психічного здоров’я її мешканців."]
["Культура","Обухівська центральна публічна бібліотека","https://www.facebook.com/ocrbiblioteka/?locale=uk_UA","Ббліотека – це культурний, інформаційний та просвітницький простір, де поєднані можливості культурного збагачення, активності з психоемоційного розвантаження, особистіс. Проводяться тематичні години спілкування, поетичні клуби, майстер-класи тощо.","вт-сб                 09:00-17:00","Київська","Обухівська",380962745346,null,null,"Київська область,  м. Обухів, вул. Київська 14","Комунальна",1,1,1,1,1,null,null,1,{"$nulls":5},"Повний перелік послуг:\n– організація та проведення освітніх, літературних та творчих подій, презентацій книг, читацьких конференцій з метою психоемоційного розвантаження;\n– організація та підтримка діяльності тематичних клубів і спільнот з метою соціального згуртування громади та створення мережі соціальної підтримки (літературні та поетичні клуби, групи зустрічей, кіноклуби, майстер-класи, хендмейд-активності тощо);\n– організація та проведення просвітницьких заходів з питань психічного здоров’я (тематичні виставки, фестивалі, семінари, лекції тощо);\n– організація та проведення заходів з професійного розвитку працівників бібліотек з питань психічного здоров’я (курси першої психологічної допомоги та самодопомоги, тренінги з розвитку навичок, семінари, практикуми тощо)."]
["Освіта","Академічний ліцей №1 імені А.С. Малишка Обухівської міської ради Київської області","https://lic1malyshka.kiev.ua/","Заклад загальної середньої освіти надає комплексну психологічну та соціально-педагогічну підтримку всім учасникам освітнього процесу, спрямовану на збереження та зміцнення їхнього психологічного здоров’я й психологічного благополуччя. Це передбачає першу психологічну допомогу, психодіагностику, допомогу в кризових ситуаціях, корекційну роботу, індивідуальні та групові психологічні та соціально-педагогічні консультації, формування навичок саморегуляції та стресостійкості, психоедукацію.","Практичний психолог              пн 17.30-20.30      вт 8.00-13.00         ср 17.30-20.30      чт 8.00-13.00        пт 16.30-20.30 Соціальний педагог пн-п'т 08.00-16.00","Київська","Обухівська",380934402380,null,null,"Київська область, м. Обухів, Київська обл., вулиця Київська, 18",null,1,1,1,1,null,null,1,1,1,null,1,null,null,"Повний перелік послуг:\n– психологічна діагностика та аналіз динаміки психічного, розумового й соціального розвитку здобувачів освіти;\n– психологічний супровід адаптації до умов освітнього процесу;\n– корекційна й корекційно-розвивальна робота зі здобувачами освіти;\n– консультативна допомога (індивідуальна та групова) всім учасникам освітнього процесу з питань навчання, виховання здобувачів освіти, особистісного та професійного розвитку тощо;\n– психологічна підтримка в кризових ситуаціях;\n– робота з постраждалими від насильства дітьми;\n– психологічний супровід дітей з особливими освітніми потребами, створення сприятливого середовища для їх навчання та соціалізації;\n– підтримка здобувачів освіти, що перебувають в ситуації вразливості, сприяння їх інтеграції в освітнє середовище;\n– формування культури піклування про психічне здоров’я в учасників освітнього процесу, психоедукація;\n– профілактика професійного вигорання педагогічних працівників;\n– робота з батьками (психологічна підтримка, консультування, психоедукація).",1,{"$nulls":3},985600471]
[null,"Академічний ліцей №2 Обухівської міської ради Київської області","https://www.facebook.com/share/g/1Ez7JEPCQ3/?mibextid=wwXIfr","Заклад загальної середньої освіти надає комплексну соціально-педагогічну підтримку всім учасникам освітнього процесу, спрямовану на збереження та зміцнення їхнього психологічного здоров’я й психологічного благополуччя. Це передбачає першу психологічну допомогу, допомогу в кризових ситуаціях, , індивідуальні та групові соціально-педагогічні консультації, формування навичок саморегуляції та стресостійкості.","Практичний психолог - вакансія Соціальний педагог  пн-пт 14.00-16.00","Київська","Обухівська",380962461407,null,null,"Київська область, м. Обухів, вул. Козацький шлях, 1","комунальна власність",1,1,1,1,{"$nulls":9},"Повний перелік послуг:\n– психологічна діагностика та аналіз динаміки психічного, розумового й соціального розвитку здобувачів освіти;\n– психологічний супровід адаптації до умов освітнього процесу;\n– корекційна й корекційно-розвивальна робота зі здобувачами освіти;\n– консультативна допомога (індивідуальна та групова) всім учасникам освітнього процесу з питань навчання, виховання здобувачів освіти, особистісного та професійного розвитку тощо;\n– психологічна підтримка в кризових ситуаціях;\n– робота з постраждалими від насильства дітьми;\n– психологічний супровід дітей з особливими освітніми потребами, створення сприятливого середовища для їх навчання та соціалізації;\n– підтримка здобувачів освіти, що перебувають в ситуації вразливості, сприяння їх інтеграції в освітнє середовище;\n– формування культури піклування про психічне здоров’я в учасників освітнього процесу, психоедукація;\n– профілактика професійного вигорання педагогічних працівників;\n– робота з батьками (психологічна підтримка, консультування, психоедукація).",{"$nulls":4},985600471]
[null,"Академічний ліцей №3 Обухівської міської ради Київської області","https://www.facebook.com/share/p/17Z2PFQPpt/","Заклад загальної середньої освіти надає комплексну психологічну та соціально-педагогічну підтримку всім учасникам освітнього процесу, спрямовану на збереження та зміцнення їхнього психологічного здоров’я й психологічного благополуччя. Це передбачає першу психологічну допомогу, психодіагностику, допомогу в кризових ситуаціях, корекційну роботу, індивідуальні та групові психологічні та соціально-педагогічні консультації, формування навичок саморегуляції та стресостійкості, психоедукацію.","Практичний психолог                пн-пт 08:00-16:00  Соціальний педагог пн-пт 08:00-16:00","Київська","Обухівська",380979815436,380665960925,null,"Київська область,  м. Обухів, вул. Миру, 12",null,1,1,1,1,null,null,1,{"$nulls":6},"Повний перелік послуг:\n– психологічна діагностика та аналіз динаміки психічного, розумового й соціального розвитку здобувачів освіти;\n– психологічний супровід адаптації до умов освітнього процесу;\n– корекційна й корекційно-розвивальна робота зі здобувачами освіти;\n– консультативна допомога (індивідуальна та групова) всім учасникам освітнього процесу з питань навчання, виховання здобувачів освіти, особистісного та професійного розвитку тощо;\n– психологічна підтримка в кризових ситуаціях;\n– робота з постраждалими від насильства дітьми;\n– психологічний супровід дітей з особливими освітніми потребами, створення сприятливого середовища для їх навчання та соціалізації;\n– підтримка здобувачів освіти, що перебувають в ситуації вразливості, сприяння їх інтеграції в освітнє середовище;\n– формування культури піклування про психічне здоров’я в учасників освітнього процесу, психоедукація;\n– профілактика професійного вигорання педагогічних працівників;\n– робота з батьками (психологічна підтримка, консультування, психоедукація).",{"$nulls":4},985600471]
[null,"Академічний ліцей №4 Обухівської міської ради Київської області","http://www.obukhiv-school4.edukit.kiev.ua/kontakti/","Заклад загальної середньої освіти надає комплексну психологічну та соціально-педагогічну підтримку всім учасникам освітнього процесу, спрямовану на збереження та зміцнення їхнього психологічного здоров’я й психологічного благополуччя. Це передбачає першу психологічну допомогу, психодіагностику, допомогу в кризових ситуаціях, корекційну роботу, індивідуальні та групові психологічні та соціально-педагогічні консультації, формування навичок саморегуляції та стресостійкості, психоедукацію.","Практичний психолог             пн-пт 14.00-18.00      Соціальний педагог пн-пт 8.30-12.30","Київська","Обухівська",380930329642,380631433676,null,"Київська область,  м. Обухів, вул. П. Осипенко, 26","Комунальна власність",1,1,1,1,null,null,1,1,null,null,1,1,null,"Повний перелік послуг (психолог):\n– психологічна діагностика та аналіз динаміки психічного, розумового й соціального розвитку здобувачів освіти;\n– психологічний супровід адаптації до умов освітнього процесу;\n– корекційна й корекційно-розвивальна робота зі здобувачами освіти;\n– консультативна допомога (індивідуальна та групова) всім учасникам освітнього процесу з питань навчання, виховання здобувачів освіти, особистісного та професійного розвитку тощо;\n– психологічна підтримка в кризових ситуаціях;\n– робота з постраждалими від насильства дітьми;\n– психологічний супровід дітей з особливими освітніми потребами, створення сприятливого середовища для їх навчання та соціалізації;\n– підтримка здобувачів освіти, що перебувають в ситуації вразливості, сприяння їх інтеграції в освітнє середовище;\n– формування культури піклування про психічне здоров’я в учасників освітнього процесу, психоедукація;\n– профілактика професійного вигорання педагогічних працівників;\n– робота з батьками (психологічна підтримка, консультування, психоедукація).\n\nПовний перелік послуг (соціальний педагог):\n– психологічний супровід адаптації до умов освітнього процесу;\n– консультативна допомога (індивідуальна та групова) всім учасникам освітнього процесу з питань навчання, виховання здобувачів освіти та професійного розвитку тощо;\n– робота з постраждалими від насильства дітьми;\n– психологічний супровід дітей з особливими освітніми потребами, створення сприятливого середовища для їх навчання та соціалізації;\n– підтримка здобувачів освіти, що перебувають в ситуації вразливості, сприяння їх інтеграції в освітнє середовище;\n– профілактика професійного вигорання педагогічних працівників;\n– робота з батьками;\n- надання комплексної допомоги сім'ям та особам у складних життєвих обставинах, включаючи соціальний супровід сиріт та дітей, позбавлених батьківського піклування;\n- проведення просвітницьких заходів, спрямованих на формування здорового способу життя та запобігання ризикованій поведінці;\n- захист прав та інтересів дітей та їхніх сімей перед різними установами та іншими фахівцями;\n- організація взаємодії між різними фахівцями, службами та громадськими організаціями для комплексного вирішення проблем.\n\n",{"$nulls":4},985600471]
[null,"Академічний ліцей №5 Обухівської міської ради Київської області","http://obukhiv-school5.edukit.kiev.ua/","Заклад загальної середньої освіти надає комплексну психологічну та соціально-педагогічну підтримку всім учасникам освітнього процесу, спрямовану на збереження та зміцнення їхнього психологічного здоров’я й психологічного благополуччя. Це передбачає першу психологічну допомогу, психодіагностику, допомогу в кризових ситуаціях, корекційну роботу, індивідуальні та групові психологічні та соціально-педагогічні консультації, формування навичок саморегуляції та стресостійкості, психоедукацію."," Практичний психолог              пн 10:35-16:30      вт  08:00-16:30     ср 08:45-16:30      чт  08:00--16:30   пт 11:25-16:30 Соціальний педагог  пн-пт 08:00-16:00","Київська","Обухівська",380963745225,380969121265,380977172698,"Київська область,  м. Обухів, вул. Академічна, 24","Комунальна власність",1,1,1,1,null,null,1,1,null,null,1,null,null,"Повний перелік послуг:\n– психологічна діагностика та аналіз динаміки психічного, розумового й соціального розвитку здобувачів освіти;\n– психологічний супровід адаптації до умов освітнього процесу;\n– корекційна й корекційно-розвивальна робота зі здобувачами освіти;\n– консультативна допомога (індивідуальна та групова) всім учасникам освітнього процесу з питань навчання, виховання здобувачів освіти, особистісного та професійного розвитку тощо;\n– психологічна підтримка в кризових ситуаціях;\n– робота з постраждалими від насильства дітьми;\n– психологічний супровід дітей з особливими освітніми потребами, створення сприятливого середовища для їх навчання та соціалізації;\n– підтримка здобувачів освіти, що перебувають в ситуації вразливості, сприяння їх інтеграції в освітнє середовище;\n– формування культури піклування про психічне здоров’я в учасників освітнього процесу, психоедукація;\n– профілактика професійного вигорання педагогічних працівників;\n– робота з батьками (психологічна підтримка, консультування, психоедукація).",{"$nulls":4},985600471]
[null,"Академічний ліцей  імені Володимира Мельника Обухівської міської ради Київської області","http://obukhiv-gymnasium.edukit.kiev.ua/","Заклад загальної середньої освіти надає комплексну психологічну та соціально-педагогічну підтримку всім учасникам освітнього процесу, спрямовану на збереження та зміцнення їхнього психологічного здоров’я й психологічного благополуччя. Це передбачає першу психологічну допомогу, психодіагностику, допомогу в кризових ситуаціях, корекційну роботу, індивідуальні та групові психологічні та соціально-педагогічні консультації, формування навичок саморегуляції та стресостійкості, психоедукацію.","Практичний психолог             пн, ср, пт 08:30-12:30          вт, чт       09:00-13:00. Соціальний педагог пн, ср, пт 08:30-12:30          вт, чт       09:00-13:00.","Київська","Обухівська",380972958462,null,null,"Київська область,  м. Обухів, вул. 8 Листопада, 42","комунальна власність",1,1,1,1,null,null,1,{"$nulls":3},1,null,null,"Повний перелік послуг:\n– психологічна діагностика та аналіз динаміки психічного, розумового й соціального розвитку здобувачів освіти;\n– психологічний супровід адаптації до умов освітнього процесу;\n– корекційна й корекційно-розвивальна робота зі здобувачами освіти;\n– консультативна допомога (індивідуальна та групова) всім учасникам освітнього процесу з питань навчання, виховання здобувачів освіти, особистісного та професійного розвитку тощо;\n– психологічна підтримка в кризових ситуаціях;\n– робота з постраждалими від насильства дітьми;\n– психологічний супровід дітей з особливими освітніми потребами, створення сприятливого середовища для їх навчання та соціалізації;\n– підтримка здобувачів освіти, що перебувають в ситуації вразливості, сприяння їх інтеграції в освітнє середовище;\n– формування культури піклування про психічне здоров’я в учасників освітнього процесу, психоедукація;\n– профілактика професійного вигорання педагогічних працівників;\n– робота з батьками (психологічна підтримка, консультування, психоедукація).",{"$nulls":4},985600471]
[null,"Германівський гімназія імені братів Гетьманів Обухівської міської ради Київської області","http://germanivka-school.edukit.kiev.ua/","Заклад загальної середньої освіти надає комплексну психологічну та соціально-педагогічну підтримку всім учасникам освітнього процесу, спрямовану на збереження та зміцнення їхнього психологічного здоров’я й психологічного благополуччя. Це передбачає першу психологічну допомогу, психодіагностику, допомогу в кризових ситуаціях, корекційну роботу, індивідуальні та групові психологічні та соціально-педагогічні консультації, формування навичок саморегуляції та стресостійкості, психоедукацію.","Практичний психолог             пн-пт 8.00-12.00 Соціальний педагог пн-пт 8.00-12.00","Київська","Обухівська",380962600120,380675851997,null,"Київська область, Обухівський район, с. Германівка, вул. Олени Ковальчук, 36",null,1,1,1,1,null,null,1,{"$nulls":6},"Повний перелік послуг:\n– психологічна діагностика та аналіз динаміки психічного, розумового й соціального розвитку здобувачів освіти;\n– психологічний супровід адаптації до умов освітнього процесу;\n– корекційна й корекційно-розвивальна робота зі здобувачами освіти;\n– консультативна допомога (індивідуальна та групова) всім учасникам освітнього процесу з питань навчання, виховання здобувачів освіти, особистісного та професійного розвитку тощо;\n– психологічна підтримка в кризових ситуаціях;\n– робота з постраждалими від насильства дітьми;\n– психологічний супровід дітей з особливими освітніми потребами, створення сприятливого середовища для їх навчання та соціалізації;\n– підтримка здобувачів освіти, що перебувають в ситуації вразливості, сприяння їх інтеграції в освітнє середовище;\n– формування культури піклування про психічне здоров’я в учасників освітнього процесу, психоедукація;\n– профілактика професійного вигорання педагогічних працівників;\n– робота з батьками (психологічна підтримка, консультування, психоедукація).",{"$nulls":4},985600471]
[null,"Григорівський гімназія Обухівської міської ради Київської області","https://hryhorovkaschool.e-schools.info/","Заклад загальної середньої освіти надає комплексну психологічну та соціально-педагогічну підтримку всім учасникам освітнього процесу, спрямовану на збереження та зміцнення їхнього психологічного здоров’я й психологічного благополуччя. Це передбачає першу психологічну допомогу, психодіагностику, допомогу в кризових ситуаціях, корекційну роботу, індивідуальні та групові психологічні та соціально-педагогічні консультації, формування навичок саморегуляції та стресостійкості, психоедукацію.","Практичний психолог: \nПн: 8.00-9.30 \n10.30-13.30 \n14.30-16.00 \nВт: 8.00-11.30 \n13.30-14.30 \n15.30-16.00 \nСр: 8.00-12.30 \n14.30-16.30 \nЧт: 10.00-16.00 \nПт: 8.00-9.30 \n10.30-13.30 \n15.30-16.00 \nСоціальний педагог \nПн: 8.00-12.30 \n15.20-16.20 \nВт: 8.00-9.30 \n10.30-13.30 \n15.20-16.20 \nСр: 8.00-13.30 \n15.20-16.20 \nЧт: 8.00-10.30 \n10.00-16.00 \nПт: 8.00-16.00","Київська","Обухівська",380965060310,380979654871,null,"Київська область, Обухівський район, с. Григорівка, вул.Героїв Майдану, 31","Комунальна власність",1,1,1,1,null,null,1,{"$nulls":6},"Повний перелік послуг:\n– психологічна діагностика та аналіз динаміки психічного, розумового й соціального розвитку здобувачів освіти;\n– психологічний супровід адаптації до умов освітнього процесу;\n– корекційна й корекційно-розвивальна робота зі здобувачами освіти;\n– консультативна допомога (індивідуальна та групова) всім учасникам освітнього процесу з питань навчання, виховання здобувачів освіти, особистісного та професійного розвитку тощо;\n– психологічна підтримка в кризових ситуаціях;\n– робота з постраждалими від насильства дітьми;\n– психологічний супровід дітей з особливими освітніми потребами, створення сприятливого середовища для їх навчання та соціалізації;\n– підтримка здобувачів освіти, що перебувають в ситуації вразливості, сприяння їх інтеграції в освітнє середовище;\n– формування культури піклування про психічне здоров’я в учасників освітнього процесу, психоедукація;\n– профілактика професійного вигорання педагогічних працівників;\n– робота з батьками (психологічна підтримка, консультування, психоедукація).",{"$nulls":4},985600471]
[null,"Семенівський ліцей Обухівської міської ради Київської області","http://semenivka-school.edukit.kiev.ua","Заклад загальної середньої освіти надає комплексну психологічну та соціально-педагогічну підтримку всім учасникам освітнього процесу, спрямовану на збереження та зміцнення їхнього психологічного здоров’я й психологічного благополуччя. Це передбачає першу психологічну допомогу, психодіагностику, допомогу в кризових ситуаціях, корекційну роботу, індивідуальні та групові психологічні та соціально-педагогічні консультації, формування навичок саморегуляції та стресостійкості, психоедукацію.","Практичний психолог              пн-пт 8.30-12.30 Соціальний педагог      пн-пт  11.00-15.00","Київська","Обухівська",380985251819,380961692308,null,"Київська область, Обухівський район, с. Семенівка, вул. Шкільна, 4",null,1,1,1,1,null,null,1,{"$nulls":6},"Повний перелік послуг:\n– психологічна діагностика та аналіз динаміки психічного, розумового й соціального розвитку здобувачів освіти;\n– психологічний супровід адаптації до умов освітнього процесу;\n– корекційна й корекційно-розвивальна робота зі здобувачами освіти;\n– консультативна допомога (індивідуальна та групова) всім учасникам освітнього процесу з питань навчання, виховання здобувачів освіти, особистісного та професійного розвитку тощо;\n– психологічна підтримка в кризових ситуаціях;\n– робота з постраждалими від насильства дітьми;\n– психологічний супровід дітей з особливими освітніми потребами, створення сприятливого середовища для їх навчання та соціалізації;\n– підтримка здобувачів освіти, що перебувають в ситуації вразливості, сприяння їх інтеграції в освітнє середовище;\n– формування культури піклування про психічне здоров’я в учасників освітнього процесу, психоедукація;\n– профілактика професійного вигорання педагогічних працівників;\n– робота з батьками (психологічна підтримка, консультування, психоедукація).",{"$nulls":4},985600471]
[null,"Слобідський ліцей Обухівської міської ради Київської області","https://sites.google.com/view/kslicey?usp=sharing","Заклад загальної середньої освіти та дошкільний підрозділ надють комплексну психологічну та соціально-педагогічну підтримку всім учасникам освітнього процесу, спрямовану на збереження та зміцнення їхнього психологічного здоров’я й психологічного благополуччя. Це передбачає першу психологічну допомогу, психодіагностику, допомогу в кризових ситуаціях, корекційну роботу, індивідуальні та групові психологічні та соціально-педагогічні консультації, формування навичок саморегуляції та стресостійкості, психоедукацію.","Практичний психолог                пн-пт 8.00-12.00                                                                                                         Практичний психолог (дошкільний підрозділ)            пн.-пт 8.00-9.00, 16.00-16.30       Соціальний педагог       пн-пт 12.00-16.00","Київська","Обухівська",380965817827,380967740942,null,"Київська область, Обухівський район, с.  Слобідка, вул. І. Кабанця, 2",null,1,1,1,1,null,null,1,{"$nulls":6},"Повний перелік послуг:\n– психологічна діагностика та аналіз динаміки психічного, розумового й соціального розвитку здобувачів освіти;\n– психологічний супровід адаптації до умов освітнього процесу;\n– корекційна й корекційно-розвивальна робота зі здобувачами освіти;\n– консультативна допомога (індивідуальна та групова) всім учасникам освітнього процесу з питань навчання, виховання здобувачів освіти, особистісного та професійного розвитку тощо;\n– психологічна підтримка в кризових ситуаціях;\n– робота з постраждалими від насильства дітьми;\n– психологічний супровід дітей з особливими освітніми потребами, створення сприятливого середовища для їх навчання та соціалізації;\n– підтримка здобувачів освіти, що перебувають в ситуації вразливості, сприяння їх інтеграції в освітнє середовище;\n– формування культури піклування про психічне здоров’я в учасників освітнього процесу, психоедукація;\n– профілактика професійного вигорання педагогічних працівників;\n– робота з батьками (психологічна підтримка, консультування, психоедукація).",{"$nulls":4},985600471]
[null,"Заклад дошкільної освіти «Зірочка» Обухівської міської ради Київської області","https://zirochka.net/","Заклад дошкільної освіти надає широкий спектр психологічних послуг для дітей та їхніх батьків або законних представників. Метою є всебічний розвиток дитини, стимулювання її фізичних, інтелектуальних і творчих здібностей, соціалізація та формування життєвих навичок. Послуги охоплюють надання першої психологічної допомоги, психодіагностику, підтримку в кризових ситуаціях, корекційну роботу та психологічне й соціально-педагогічне консультування.","пн-пт 8.00-14.00\n","Київська","Обухівська",380982540362,null,null,"Київська область,      м. Обухів, вул. Каштанова, 5",null,1,1,1,{"$nulls":3},1,null,1,{"$nulls":4},"Повний перелік послуг:\n– перша психологічна допомога;\n– психодіагностика;\n– корекційна робота з дітьми (групові та індивідуальні психокорекційні заняття);\n– надання психологічної допомоги за запитом та/або відповідно до потреби;\n– консультування батьків або законних представників дитини;\n– надання психолого-педагогічної допомоги дітям, які перебувають у кризовій ситуації (постраждали від соціальних, техногенних, природних катастроф, перенесли тяжкі хвороби, стреси, переселення, зазнали насильства тощо), з метою адаптації до нових умов;\n– психоедукація батьків або законних представників дитини;\n– проведення психолого-педагогічних консиліумів із залученням педагогічних працівників, лікаря з метою аналізу поведінки та розвитку дитини (за запитами вихователів, батьків або законних представників дитини, за ініціативи психолога).",{"$nulls":4},985600471]
[null,"Заклад дошкільної освіти «Катруся» Обухівської міської ради Київської області","obukhiv-katrusia.kiev.sch.in.ua","Заклад дошкільної освіти надає широкий спектр психологічних послуг для дітей та їхніх батьків або законних представників. Метою є всебічний розвиток дитини, стимулювання її фізичних, інтелектуальних і творчих здібностей, соціалізація та формування життєвих навичок. Послуги охоплюють надання першої психологічної допомоги, психодіагностику, підтримку в кризових ситуаціях, корекційну роботу та психологічне й соціально-педагогічне консультування.","пн 10.00-11.00\nвт 7.30-18.00\nср 7-30-18.00\nчт 15.00-16.00\nпт 7.30-18.00","Київська","Обухівська",380937021708,null,null,"Київська область, м. Обухів, вул. Київська, 160",null,1,1,1,{"$nulls":3},1,{"$nulls":6},"Повний перелік послуг:\n– перша психологічна допомога;\n– психодіагностика;\n– корекційна робота з дітьми (групові та індивідуальні психокорекційні заняття, індивідуальні заняття з обдарованими дітьми, заняття з психологічної підготовки дітей до навчання у школі);\n– надання психологічної допомоги за запитом та/або відповідно до потреби;\n– консультування батьків або законних представників дитини;\n– надання психолого-педагогічної допомоги дітям, які перебувають у кризовій ситуації (постраждали від соціальних, техногенних, природних катастроф, перенесли тяжкі хвороби, стреси, переселення, зазнали насильства тощо), з метою адаптації до нових умов;\n– психоедукація батьків або законних представників дитини;\n– проведення психолого-педагогічних консиліумів із залученням педагогічних працівників, лікаря з метою аналізу поведінки та розвитку дитини (за запитами вихователів, батьків або законних представників дитини, за ініціативи психолога).",{"$nulls":4},985600471]
[null,"Заклад дошкільної освіти «Рушничок» Обухівської міської ради Київської області","https://www.facebook.com/groups/1348601821976690/?ref=share","Заклад дошкільної освіти надає широкий спектр психологічних послуг для дітей та їхніх батьків або законних представників. Метою є всебічний розвиток дитини, стимулювання її фізичних, інтелектуальних і творчих здібностей, соціалізація та формування життєвих навичок. Послуги охоплюють надання першої психологічної допомоги, психодіагностику, підтримку в кризових ситуаціях, корекційну роботу та психологічне й соціально-педагогічне консультування.","пн-пт.08:00-14:00","Київська","Обухівська",380955510408,null,null,"Київська область, м. Обухів, вул. Київська, 170-А","Комунальна власність",1,1,1,{"$nulls":3},1,{"$nulls":6},"Повний перелік послуг:\n– перша психологічна допомога;\n– психодіагностика;\n– корекційна робота з дітьми (групові та індивідуальні психокорекційні заняття, індивідуальні заняття з обдарованими дітьми, заняття з психологічної підготовки дітей до навчання у школі);\n– надання психологічної допомоги за запитом та/або відповідно до потреби;\n– консультування батьків або законних представників дитини;\n– надання психолого-педагогічної допомоги дітям, які перебувають у кризовій ситуації (постраждали від соціальних, техногенних, природних катастроф, перенесли тяжкі хвороби, стреси, переселення, зазнали насильства тощо), з метою адаптації до нових умов;\n– психоедукація батьків або законних представників дитини;\n– проведення психолого-педагогічних консиліумів із залученням педагогічних працівників, лікаря з метою аналізу поведінки та розвитку дитини (за запитами вихователів, батьків або законних представників дитини, за ініціативи психолога).",{"$nulls":4},985600471]
[null,"Заклад дошкільної освіти «Пролісок» Обухівської міської ради Київської області","https://www.facebook.com/share/g/1CDWpHtCzg/","Заклад дошкільної освіти надає широкий спектр психологічних послуг для дітей та їхніх батьків або законних представників. Метою є всебічний розвиток дитини, стимулювання її фізичних, інтелектуальних і творчих здібностей, соціалізація та формування життєвих навичок. Послуги охоплюють надання першої психологічної допомоги, психодіагностику, підтримку в кризових ситуаціях, корекційну роботу та психологічне й соціально-педагогічне консультування.","пн 13.00-17.00     ср 10.00-13.00      пт 10.00-13.00","Київська","Обухівська",380639204085,null,null,"Київська область,  м. Обухів, м-н Яблуневий, 21",null,1,1,1,{"$nulls":3},1,{"$nulls":6},"Повний перелік послуг:\n– перша психологічна допомога;\n– психодіагностика;\n– корекційна робота з дітьми (групові та індивідуальні психокорекційні заняття, індивідуальні заняття з обдарованими дітьми, заняття з психологічної підготовки дітей до навчання у школі);\n– надання психологічної допомоги за запитом та/або відповідно до потреби;\n– консультування батьків.вихователів, або законних представників дитини;\n– надання психолого-педагогічної допомоги дітям, які перебувають у кризовій ситуації (постраждали від соціальних, техногенних, природних катастроф, перенесли тяжкі хвороби, стреси, переселення, зазнали насильства тощо), з метою адаптації до нових умов;\n– проведення психолого-педагогічних консиліумів із залученням педагогічних працівників, лікаря з метою аналізу поведінки та розвитку дитини (за запитами вихователів, батьків або законних представників дитини, за ініціативи психолога).",{"$nulls":4},985600471]
[null,"Заклад дошкільної освіти «Світлячок» Обухівської міської ради Київської області","https://svitlyachok.org.ua/","Заклад дошкільної освіти надає широкий спектр психологічних послуг для дітей та їхніх батьків або законних представників. Метою є всебічний розвиток дитини, стимулювання її фізичних, інтелектуальних і творчих здібностей, соціалізація та формування життєвих навичок. Послуги охоплюють надання першої психологічної допомоги, психодіагностику, підтримку в кризових ситуаціях, корекційну роботу та психологічне й соціально-педагогічне консультування.","пн 8:00-14:00        вт 8:00-11:00; 13:00-16:00          ср 8:00-14:00        чт 8:00-14:00        пт 8:00-10:30, 13:00-16:30","Київська","Обухівська",380678048013,null,null,"Київська область, м. Обухів, вул. Володимира Чаплінського, 24","Комунальна власність",1,1,1,{"$nulls":3},1,{"$nulls":6},"Повний перелік послуг:\n– перша психологічна допомога;\n– психодіагностика;\n– корекційна робота з дітьми (групові та індивідуальні психокорекційні заняття, індивідуальні заняття з обдарованими дітьми, заняття з психологічної підготовки дітей до навчання у школі);\n– надання психологічної допомоги за запитом та/або відповідно до потреби;\n– консультування батьків або законних представників дитини;\n– надання психолого-педагогічної допомоги дітям, які перебувають у кризовій ситуації (постраждали від соціальних, техногенних, природних катастроф, перенесли тяжкі хвороби, стреси, переселення, зазнали насильства тощо), з метою адаптації до нових умов;\n– психоедукація батьків або законних представників дитини;",{"$nulls":4},985600471]
[null,"Заклад дошкільної освіти «Дударик» Обухівської міської ради Київської області","https://www.facebook.com/groups/434226997250506","Заклад дошкільної освіти надає широкий спектр психологічних послуг для дітей та їхніх батьків або законних представників. Метою є всебічний розвиток дитини, стимулювання її фізичних, інтелектуальних і творчих здібностей, соціалізація та формування життєвих навичок. Послуги охоплюють надання першої психологічної допомоги, психодіагностику, підтримку в кризових ситуаціях, корекційну роботу та психологічне й соціально-педагогічне консультування.","пн 8:00-17:00        вт 8:00-17:00           ср 8:00-12:30          чт 8:00-17:00","Київська","Обухівська",380675035531,null,null,"Київська область, м. Обухів, вул. Б. Хмельницького, 22","Комунальна власність",1,1,1,{"$nulls":3},1,{"$nulls":6},"Повний перелік послуг:\n– перша психологічна допомога;\n– психодіагностика;\n– корекційна робота з дітьми (групові та індивідуальні психокорекційні заняття, індивідуальні заняття з обдарованими дітьми, заняття з психологічної підготовки дітей до навчання у школі);\n– надання психологічної допомоги за запитом та/або відповідно до потреби;\n– консультування батьків або законних представників дитини;\n– надання психолого-педагогічної допомоги дітям, які перебувають у кризовій ситуації (постраждали від соціальних, техногенних, природних катастроф, перенесли тяжкі хвороби, стреси, переселення, зазнали насильства тощо), з метою адаптації до нових умов;\n– психоедукація батьків або законних представників дитини;\n– проведення психолого-педагогічних консиліумів із залученням педагогічних працівників, лікаря з метою аналізу поведінки та розвитку дитини (за запитами вихователів, батьків або законних представників дитини, за ініціативи психолога).",{"$nulls":4},985600471]
[null,"Заклад дошкільної освіти «Веселка» Обухівської міської ради Київської області","https://www.facebook.com/groups/587507471857373/","Заклад дошкільної освіти надає широкий спектр психологічних послуг для дітей та їхніх батьків або законних представників. Метою є всебічний розвиток дитини, стимулювання її фізичних, інтелектуальних і творчих здібностей, соціалізація та формування життєвих навичок. Послуги охоплюють надання першої психологічної допомоги, психодіагностику, підтримку в кризових ситуаціях, корекційну роботу та психологічне й соціально-педагогічне консультування.","пн 11.00-17.00       вт 8.00-18.00         чт 8.00-18.00         пт 11.00-15.00","Київська","Обухівська",380663009825,null,null,"Київська область, м. Обухів, вул. Миру, 10-А","Комунальна власність",1,1,1,{"$nulls":3},1,{"$nulls":6},"Повний перелік послуг:\n– перша психологічна допомога;\n– психодіагностика;\n- профілактична робота з дітьми;\n– корекційна робота з дітьми (групові та індивідуальні психокорекційні заняття, індивідуальні заняття з обдарованими дітьми, заняття з психологічної підготовки дітей до навчання у школі);\n– надання психологічної допомоги за запитом та/або відповідно до потреби;\n– консультування батьків або законних представників дитини та педагогів;\n– надання психолого-педагогічної допомоги дітям під час адаптації до умов ЗДО;\n– психологічний супровід дітей з особливими освітніми потребами;\n– психолого-педагогічна просвіта батьків та педагогів;\n- психологічна підтримка всіх учасників навчально-виховного процесу.",{"$nulls":4},985600471]
[null,"Комунальний заклад Обухівської міської ради «Обухівський міський інклюзивно - ресурсний центр»","https://sites.google.com/view/obukhiv-irc/%D0%B3%D0%BE%D0%BB%D0%BE%D0%B2%D0%BD%D0%B0-%D1%81%D1%82%D0%BE%D1%80%D1%96%D0%BD%D0%BA%D0%B0","Інклюзивно-ресурсний центр проводить комплексне психолого-педагогічне оцінювання розвитку дитини, надає психолого-педагогічні та корекційно-розвиткові послуги, забезпечує системний та кваліфікований супровід дитини з особливими освітніми потребами. Подати заявку на відвідування інклюзивно-ресурсного центру та отримати запрошення на консультацію можна онлайн за посиланням: https://ircenter.gov.ua/.","пн-пт 8.00-16.00","Київська","Обухівська",380973562050,380673992536,null,"Київська область, м. Обухів, вул. Миру 12 Б",null,1,1,1,1,null,null,1,{"$nulls":6},"Повний перелік послуг:\n– комплексне психолого-педагогічне оцінювання розвитку дитини, зокрема оцінювання когнітивної та емоційно-вольової сфер дитини з використанням міжнародних методик;\n– розробка індивідуальної програми розвитку дитини з особливими освітніми потребами;\n– психолого-педагогічні та корекційно-розвиткові послуги (індивідуальні та групові заняття);\n– консультування та психоедукація батьків або законних представників дитини з особливими освітніми потребами;\n– надання консультативної й методичної підтримки педагогічним працівникам закладу освіти з організації інклюзивного навчання;\n– додаткові психолого-педагогічні та корекційно-розвиткові послуги;\n– корекція та розвиток психофізичних функцій, використання елементів кінезіотерапії, анімалотерапії (іпо-, каніс-, феліно-, орніто-), арттерапії (ізо-, драмо-, казко-, музико-, кіно-, піско-, ігро-, мульт-, фото-, кольоро-, пластилінової, танцювальної терапії, психогімнастики), працетерапії, ерготерапії, ароматерапії, Монтессорі-терапії тощо;\n– логоритміка та ін.",{"$nulls":4},985600471]
["Охорона здоров'я ","Обухівська багатопрофільна лікарня інтенсивного лікування","https://www.facebook.com/share/p/1, https://obuhiv.blil.org.ua/","Центр первинної медико-санітарної допомоги надає послуги з лікування соматичних захворювань, а також супровід, психологічну підтримку дорослим та дітям з психічними, поведінковими розладами (лікарі, які пройшли навчання за програмою ВООЗ mhGAP): оцінювання стану здоров’я; перша психологічна допомога; психологічна підтримка, інформування та навчання технік самодопомоги особи та її близьких; скерування до профільних фахівців з психічного здоров’я.","пн-пт                                     8.00-16.20                         обідня перерва              12.00-12.20","Київська","Обухівська",380962238946,380984287559,380673360818,"Київська область,  м.Обухів, вул. Каштанова, 52","Комунальна власність",1,1,1,1,1,1,1,1,{"$nulls":5},"Повний перелік послуг:\n– оцінювання фізичного та психічного стану здоров’я;\n– складання плану лікування особи;\n– направлення на лабораторні та інструментальні дослідження;\n– скерування до профільних фахівців, зокрема з психічного здоров’я;\n– направлення до спеціалізованих медичних закладів для подальшого лікування або діагностики;\n– надання першої психологічної допомоги після пережитих кризових подій;\n– психологічна та психосоціальна підтримка особи та її близьких, інформування та навчання технік самодопомоги. \nПро послугу детальніше читайте: https://howareu.com/materials/posluha-z-mentalnoho-zdorovia",{"$nulls":4},985600471]
["Охорона здоров'я ","Обухівська багатопрофільна лікарня інтенсивного лікування","https://www.facebook.com/share/p/1, https://obuhiv.blil.org.ua/","Психологічна допомога в межах комплексної стаціонарної та/або амбулаторної реабілітаційної допомоги дорослим та дітям, яка охоплює також фізичну терапію та ерготерапію.","пн-пт                                     8.00-16.20                         обідня перерва              12.00-12.20","Київська","Обухівська",380962238946,380984287559,380673360818,"Київська область,  м.Обухів, вул. Каштанова, 52","Комунальна власність",1,1,null,null,1,null,1,1,null,1,{"$nulls":3},"Повний перелік послуг: \n– надання реабілітаційної допомоги відповідно до розробленого індивідуального реабілітаційного плану, зокрема психологічної;\n– допомога особі, яка потребує реабілітації, у визначенні та розумінні мети та завдань реабілітації;\n– підтримка та відновлення функціонування особи у фізичній, емоційній, інтелектуальній, соціальній та духовній сферах відповідно до короткотривалих та довгострокових цілей реабілітації;\n– психологічна підтримка особи та членів її родини;\n– перша психологічна допомога;\n– навчання осіб, членів їх родини або доглядачів особливостям догляду, запобіганню можливих ускладнень та дотриманню рекомендацій на всіх етапах реабілітації;\n– забезпечення, підбір, налаштування та навчання технічними та іншими засобами реабілітації;\n– сприяння особі в психосоціальній адаптації до зміненої життєвої ситуації, осмисленні її досвіду, розширенні самоусвідомлення та можливостей самореалізації.",{"$nulls":4},985600471]
["Охорона здоров'я ","Обухівська багатопрофільна лікарня інтенсивного лікування","https://www.facebook.com/share/p/1, https://obuhiv.blil.org.ua/","Кабінет психологічної підтримки лікарні надає послуги з психопрофілактики, психодіагностики, лікування та медико-психологічної реабілітації осіб із соматичними та психічними розладами, психопрофілактики професійного вигорання медичних працівників та психоедукації населення з питань психогігієни.","пн-пт                                     8.00-16.20                         обідня перерва              12.00-12.20","Київська","Обухівська",380962238946,380984287559,380673360818,"Київська область,  м.Обухів, вул. Каштанова, 52","Комунальна власність",1,1,1,1,1,null,1,1,1,1,1,1,1,"Повний перелік послуг:\n– психодіагностика;\n– лікування й медико-психологічна реабілітація осіб із різними соматичними захворюваннями разом із відповідними лікарями-спеціалістами, осіб із розладами психіки та поведінки;\n– психопрофілактика серед осіб із груп ризику щодо розвитку розладів психіки та поведінки;\n– психопрофілактика професійного вигорання працівників закладу охорони здоров’я;\n– психоедукація та поширення медико-психологічних знань із психогігієни серед населення; \n– перенаправлення до інших фахівців у сфері психічного здоров’я та психосоціальної підтримки за потреби;\n– перша психологічна допомога.",{"$nulls":4},985600471]
["Соціальний захист ","Територіальний центр надання соціальних послуг Обухівської міської ради Київської області","https://www.facebook.com/groups/696151002525560?locale","Територіальний центр надання соціальних послуг надає підтримку громадянам, які опинилися у складних життєвих обставинах, а саме: людям похилого віку, особам з інвалідністю, дітям-сиротам,  постраждалим від насильства, супровід сімей, дітей та молоді. Фахівці із супроводу ветеранів війни та демобілізованих осіб забезпечують супровід і консультацію ветеранів війни та членів їх сімей, які звернулися за допомогою.","пн-чт                 : 08:00 - 17:00,                пт 08:00 - 16:45. обідня перерва: 12:00 - 12:45. ","Київська область","Обухівська","380676078656","380677140059","380679867196","Київська обл., м.Обухів, вул. Каштанова, буд. 4/1-А","Комунальна власність",1,1,1,1,1,null,1,{"$nulls":3},1,null,null,"Допомога людям похилого віку та особам з інвалідністю в самообслуговуванні, веденні домашнього господарства;\nсоціально-психологічна допомога для постраждалих від домашнього насильства; \nстворення умов для проживання людям похилого віку та особам з інвалідністю забезпечення  харчуванням, допомога у самообслуговуванні, спостереження за станом здоров'я; \nорганізація навчання для громадян похилого віку;\nнавчання виховання та догляду за дітьми,  консультування, психологічна підтримка сім’ям, які перебувають у складних життєвих обставинах; \nдопомога адаптації дитини в нових умовах, створення належних умов для забезпечення індивідуальних потреб дитини-сироти та дитини, позбавленої батьківського піклування, у розвитку та вихованні; \nзабезпечення транспортного засобу; \nнадання психологічної допомоги першого рівня та емоційної підтримки ветеранам війни та членам їх сімей; проведення заходів для ветеранів та їхніх родин: реабілітаційні програми, психологічна підтримка, майстер-класи, ретрити",1,{"$nulls":3},985600471]
[{"$nulls":30},985600471]
[{"$nulls":30},985600471]
[{"$nulls":30},985600471]
[{"$nulls":30},985600471]
[{"$nulls":30},985600471]
[{"$nulls":30},985600471]
[{"$nulls":30},985600471]
[{"$nulls":30},985600471]
[{"$nulls":30},985600471]
[{"$nulls":30},985600471]
[{"$nulls":30},985600471]
[{"$nulls":30},985600471]
[{"$nulls":30},985600471]
[{"$nulls":30},985600471]
[{"$nulls":30},985600471]
[{"$nulls":30},985600471]
[{"$nulls":30},985600471]
[{"$nulls":30},985600471]
[{"$nulls":30},985600471]
[{"$nulls":30},985600471]
[{"$nulls":30},985600471]
[{"$nulls":30},985600471]
[{"$nulls":30},985600471]
[{"$nulls":30},985600471]
[{"$nulls":30},985600471]
[{"$nulls":30},985600471]
[{"$nulls":30},985600471]
[{"$nulls":30},985600471]
[{"$nulls":30},985600471]
[{"$nulls":30},985600471]
[{"$nulls":30},985600471]
[{"$nulls":30},985600471]
[{"$nulls":30},985600471]
[{"$nulls":30},985600471]
[{"$nulls":30},985600471]
[{"$nulls":30},985600471]
[{"$nulls":30},985600471]
[{"$nulls":30},985600471]
[{"$nulls":30},985600471]
[{"$nulls":30},985600471]
[{"$nulls":30},985600471]
[{"$nulls":30},985600471]
[{"$nulls":30},985600471]
[{"$nulls":30},985600471]
[{"$nulls":30},985600471]
[{"$nulls":30},985600471]
[{"$nulls":30},985600471]
[{"$nulls":30},985600471]
[{"$nulls":30},985600471]
[{"$nulls":30},985600471]
[{"$nulls":30},985600471]
[{"$nulls":30},985600471]
[{"$nulls":30},985600471]
[{"$nulls":30},985600471]
[{"$nulls":30},985600471]
[{"$nulls":30},985600471]
[{"$nulls":30},985600471]
[{"$nulls":30},985600471]
[{"$nulls":30},985600471]
[{"$nulls":30},985600471]
[{"$nulls":30},985600471]
[{"$nulls":30},985600471]
[{"$nulls":30},985600471]
[{"$nulls":30},985600471]
[{"$nulls":30},985600471]
[{"$nulls":30},985600471]
[{"$nulls":30},985600471]
[{"$nulls":30},985600471]
[{"$nulls":30},985600471]
[{"$nulls":30},985600471]
[{"$nulls":30},985600471]
[{"$nulls":30},985600471]
[{"$nulls":30},985600471]
[{"$nulls":30},985600471]
[{"$nulls":30},985600471]
[{"$nulls":30},985600471]
[{"$nulls":30},985600471]

{"sheet":">>>>","index":1,"n_rows":0,"n_cols":0,"rows_kept":0}

{"sheet":"service1","index":2,"n_rows":26,"n_cols":10,"rows_kept":26}
[]
[null,"Сектор (список)",null,"Область",null,"Назва послуги"]
[null,"Спорт",null,"Вінницька",null,"Активний парк"]
[null,"Соціальний захист",null,"Волинська",null,"Музей"]
[null,"НГО",null,"Дніпропетровська",null,"Центр культури та дозвілля"]
[null,"Освіта",null,"Донецька",null,"Сільський клуб"]
[null,"Охорона здоров'я",null,"Житомирська",null,"Сільська бібліотека"]
[null,"Інші",null,"Закарпатська",null,"Молодіжний центр"]
[null,"Культура",null,"Запорізька",null,"Заклад дошкільної освіти"]
[{"$nulls":3},"Івано-Франківська",null,"Заклад загальної середньої освіти / ліцей / гімназія"]
[{"$nulls":3},"Київська",null,"Спеціальна школа"]
[{"$nulls":3},"Кіровоградська",null,"Інклюзивно-ресурсний центр"]
[{"$nulls":3},"Луганська",null,"Центр первинної медико-санітарної допомоги"]
[null,"Типи власності",null,"Львівська",null,"Реабілітаційне / мультидисциплінарна реабілітаційна команда",{"$nulls":3},{"$f":"service2!K19","v":0}]
[null,"Державна власність",null,"Миколаївська",null,"Паліативне відділення лікарні загального профілю"]
[null,"Комунальна власність",null,"Одеська",null,"Кабінет психологічної підтримки"]
[null,"Приватна власність",null,"Полтавська",null,"Психіатричне відділення в багатопрофільних лікарнях"]
[{"$nulls":3},"Рівненська",null,"Спеціальний заклад з надання психіатричної допомоги"]
[{"$nulls":3},"Сумська",null,"Центр ментального (психічного) здоров’я в закладі охорони здоров’я"]
[{"$nulls":3},"Тернопільська",null,"Пансіонат для осіб з інвалідністю та осіб старшого віку"]
[{"$nulls":3},"Харківська",null,"Соціальний центр матері та дитини"]
[{"$nulls":3},"Херсонська",null,"Центр надання соціальних послуг"]
[{"$nulls":3},"Хмельницька",null,"Центр життєстійкості"]
[{"$nulls":3},"Черкаська"]
[{"$nulls":3},"Чернівецька"]
[{"$nulls":3},"Чернігівська"]

{"sheet":"service2","index":3,"n_rows":1448,"n_cols":9,"rows_kept":1448}
[null,"Область","Громада","Для перевірки"]
[null,"Вінницька","Вінницька",{"$f":"B2&C2","v":"ВінницькаВінницька"},{"$f":"CODE(RIGHT(C2,1))","v":224}]
[null,"Вінницька","Жмеринська",{"$f":"B3&C3","v":"ВінницькаЖмеринська"},224,{"$nulls":3},"=СМЕЩ($H$2;ПОИСКПОЗ(A12;Рабочий_Список;0);0;СЧЕТЕСЛИ(Рабочий_Список;A12);1)"]
[null,"Вінницька","Калинівська","ВінницькаКалинівська",224]
[null,"Вінницька","Гайсинська","ВінницькаГайсинська",224,{"$nulls":3},"offset"]
[null,"Вінницька","Тульчинська","ВінницькаТульчинська",224]
[null,"Вінницька","Хмільницька","ВінницькаХмільницька",224,null,"Вінницька",null,{"$f":"OFFSET($C$2,MATCH(G8,$B$2:$B$1448,0)-1,0,COUNTIF($B$2:$B$1448,G8),1)","v":"Луцька"}]
[null,"Вінницька","Бершадська","ВінницькаБершадська",{"$f":"CODE(RIGHT(C8,1))","v":224},null,"Волинська",null,"Ковельська"]
[null,"Вінницька","Могилів-Подільська","ВінницькаМогилів-Подільська",{"$f":"CODE(RIGHT(C9,1))","v":224},null,"Дніпропетровська",null,"Нововолинська"]
[null,"Вінницька","Барська","ВінницькаБарська",224,null,"Донецька",null,"Камінь-Каширська"]
[null,"Вінницька","Ямпільська","ВінницькаЯмпільська",224,null,"Житомирська",null,"Володимир-Волинська"]
[null,"Вінницька","Козятинська","ВінницькаКозятинська",224,null,"Закарпатська",null,"Любешівська"]
[null,"Вінницька","Немирівська","ВінницькаНемирівська",224,null,"Запорізька",null,"Маневицька"]
[null,"Вінницька","Погребищенська","ВінницькаПогребищенська",224,null,"Івано-Франківська",null,"Рожищенська"]
[null,"Вінницька","Ладижинська","ВінницькаЛадижинська",224,null,"Київська",null,"Горохівська"]
[null,"Вінницька","Шаргородська","ВінницькаШаргородська",224,null,"Кіровоградська",null,"Ківерцівська"]
[null,"Вінницька","Тростянецька","ВінницькаТростянецька",224,null,"Луганська",null,"Ратнівська"]
[null,"Вінницька","Томашпільська","ВінницькаТомашпільська",224,null,"Львівська",null,"Колківська"]
[null,"Вінницька","Літинська","ВінницькаЛітинська",224,null,"Миколаївська",null,"Підгайцівська"]
[null,"Вінницька","Іллінецька","ВінницькаІллінецька",224,null,"Одеська",null,"Боратинська"]
[null,"Вінницька","Мурованокуриловецька","ВінницькаМурованокуриловецька",224,null,"Полтавська",null,"Турійська"]
[null,"Вінницька","Липовецька","ВінницькаЛиповецька",224,null,"Рівненська",null,"Цуманська"]
[null,"Вінницька","Крижопільська","ВінницькаКрижопільська",224,null,"Сумська",null,"Шацька"]
[null,"Вінницька","Стрижавська","ВінницькаСтрижавська",224,null,"Тернопільська",null,"Любомльська"]
[null,"Вінницька","Оратівська","ВінницькаОратівська",224,null,"Харківська",null,"Торчинська"]
[null,"Вінницька","Гніванська","ВінницькаГніванська",224,null,"Херсонська",null,"Локачинська"]
[null,"Вінницька","Теплицька","ВінницькаТеплицька",224,null,"Хмельницька",null,"Старовижівська"]
[null,"Вінницька","Вороновицька","ВінницькаВороновицька",224,null,"Черкаська",null,"Олицька"]
[null,"Вінницька","Якушинецька","ВінницькаЯкушинецька",224,null,"Чернівецька",null,"Забродівська"]
[null,"Вінницька","Шпиківська","ВінницькаШпиківська",224,null,"Чернігівська",null,"Сошичненська"]
[null,"Вінницька","Уланівська","ВінницькаУланівська",224,{"$nulls":3},"Мар’янівська"]
[null,"Вінницька","Чернівецька","ВінницькаЧернівецька",224,{"$nulls":3},"Заболоттівська"]
[null,"Вінницька","Турбівська","ВінницькаТурбівська",224,{"$nulls":3},"Іваничівська"]
[null,"Вінницька","Дашівська","ВінницькаДашівська",224,{"$nulls":3},"Берестечківська"]
[null,"Вінницька","Вендичанська","ВінницькаВендичанська",224,{"$nulls":3},"Дубечненська"]
[null,"Вінницька","Піщанська","ВінницькаПіщанська",224,{"$nulls":3},"Городищенська"]
[null,"Вінницька","Чечельницька","ВінницькаЧечельницька",224,{"$nulls":3},"Прилісненська"]
[null,"Вінницька","Іванівська","ВінницькаІванівська",224,{"$nulls":3},"Павлівська"]
[null,"Вінницька","Джулинська","ВінницькаДжулинська",224,{"$nulls":3},"Зимнівська"]
[null,"Вінницька","Джуринська","ВінницькаДжуринська",224,{"$nulls":3},"Голобська"]
[null,"Вінницька","Городківська","ВінницькаГородківська",224,{"$nulls":3},"Колодяжненська"]
[null,"Вінницька","Мурафська","ВінницькаМурафська",224,{"$nulls":3},"Головненська"]
[null,"Вінницька","Лука-Мелешківська","ВінницькаЛука-Мелешківська",224,{"$nulls":3},"Затурцівська"]
[null,"Вінницька","Глуховецька","ВінницькаГлуховецька",224,{"$nulls":3},"Вишнівська"]
[null,"Вінницька","Тиврівська","ВінницькаТиврівська",224,{"$nulls":3},"Устилузька"]
[null,"Вінницька","Ободівська","ВінницькаОбодівська",224,{"$nulls":3},"Люблинецька"]
[null,"Вінницька","Брацлавська","ВінницькаБрацлавська",224,{"$nulls":3},"Оваднівська"]
[null,"Вінницька","Вапнярська","ВінницькаВапнярська",224,{"$nulls":3},"Поромівська"]
[null,"Вінницька","Агрономічна","ВінницькаАгрономічна",224,{"$nulls":3},"Доросинівська"]
[null,"Вінницька","Самгородоцька","ВінницькаСамгородоцька",224,{"$nulls":3},"Рівненська"]
[null,"Вінницька","Копайгородська","ВінницькаКопайгородська",224,{"$nulls":3},"Самарівська"]
[null,"Вінницька","Махнівська","ВінницькаМахнівська",224,{"$nulls":3},"Копачівська"]
[null,"Вінницька","Соболівська","ВінницькаСоболівська",224,{"$nulls":3},"Дубівська"]
[null,"Вінницька","Северинівська","ВінницькаСеверинівська",224,{"$nulls":3},"Луківська"]
[null,"Вінницька","Станіславчицька","ВінницькаСтаніславчицька",224,{"$nulls":3},"Поворська"]
[null,"Вінницька","Краснопільська","ВінницькаКраснопільська",224,{"$nulls":3},"Смідинська"]
[null,"Вінницька","Райгородська","ВінницькаРайгородська",224,{"$nulls":3},"Литовезька"]
[null,"Вінницька","Яришівська","ВінницькаЯришівська",224,{"$nulls":3},"Велицька"]
[null,"Вінницька","Сутисківська","ВінницькаСутисківська",224,{"$nulls":3},"Велимченська"]
[null,"Вінницька","Ольгопільська","ВінницькаОльгопільська",224,{"$nulls":3},"Сереховичівська"]
[null,"Вінницька","Студенянська","ВінницькаСтуденянська",224]
[null,"Вінницька","Війтівецька","ВінницькаВійтівецька",224]
[null,"Вінницька","Бабчинецька","ВінницькаБабчинецька",224]
[null,"Вінницька","Кунківська","ВінницькаКунківська",224]
[null,"Волинська","Луцька","ВолинськаЛуцька",224]
[null,"Волинська","Ковельська","ВолинськаКовельська",224]
[null,"Волинська","Нововолинська",{"$f":"B67&C67","v":"ВолинськаНововолинська"},224]
[null,"Волинська","Камінь-Каширська","ВолинськаКамінь-Каширська",224]
[null,"Волинська","Володимир-Волинська","ВолинськаВолодимир-Волинська",224]
[null,"Волинська","Любешівська","ВолинськаЛюбешівська",224]
[null,"Волинська","Маневицька","ВолинськаМаневицька",224]
[null,"Волинська","Рожищенська","ВолинськаРожищенська",224]
[null,"Волинська","Горохівська","ВолинськаГорохівська",{"$f":"CODE(RIGHT(C73,1))","v":224}]
[null,"Волинська","Ківерцівська","ВолинськаКіверцівська",224]
[null,"Волинська","Ратнівська","ВолинськаРатнівська",224]
[null,"Волинська","Колківська","ВолинськаКолківська",224]
[null,"Волинська","Підгайцівська","ВолинськаПідгайцівська",224]
[null,"Волинська","Боратинська","ВолинськаБоратинська",224]
[null,"Волинська","Турійська","ВолинськаТурійська",224]
[null,"Волинська","Цуманська","ВолинськаЦуманська",224]
[null,"Волинська","Шацька","ВолинськаШацька",224]
[null,"Волинська","Любомльська","ВолинськаЛюбомльська",224]
[null,"Волинська","Торчинська","ВолинськаТорчинська",224]
[null,"Волинська","Локачинська","ВолинськаЛокачинська",224]
[null,"Волинська","Старовижівська","ВолинськаСтаровижівська",224]
[null,"Волинська","Олицька","ВолинськаОлицька",224]
[null,"Волинська","Забродівська","ВолинськаЗабродівська",224]
[null,"Волинська","Сошичненська","ВолинськаСошичненська",224]
[null,"Волинська","Мар’янівська","ВолинськаМар’янівська",224]
[null,"Волинська","Заболоттівська","ВолинськаЗаболоттівська",224]
[null,"Волинська","Іваничівська","ВолинськаІваничівська",224]
[null,"Волинська","Берестечківська","ВолинськаБерестечківська",224]
[null,"Волинська","Дубечненська","ВолинськаДубечненська",224]
[null,"Волинська","Городищенська","ВолинськаГородищенська",224]
[null,"Волинська","Прилісненська","ВолинськаПрилісненська",224]
[null,"Волинська","Павлівська","ВолинськаПавлівська",224]
[null,"Волинська","Зимнівська","ВолинськаЗимнівська",224]
[null,"Волинська","Голобська","ВолинськаГолобська",224]
[null,"Волинська","Колодяжненська","ВолинськаКолодяжненська",224]
[null,"Волинська","Головненська","ВолинськаГоловненська",224]
[null,"Волинська","Затурцівська","ВолинськаЗатурцівська",224]
[null,"Волинська","Вишнівська","ВолинськаВишнівська",224]
[null,"Волинська","Устилузька","ВолинськаУстилузька",224]
[null,"Волинська","Люблинецька","ВолинськаЛюблинецька",224]
[null,"Волинська","Оваднівська","ВолинськаОваднівська",224]
[null,"Волинська","Поромівська","ВолинськаПоромівська",224]
[null,"Волинська","Доросинівська","ВолинськаДоросинівська",224]
[null,"Волинська","Рівненська","ВолинськаРівненська",224]
[null,"Волинська","Самарівська","ВолинськаСамарівська",224]
[null,"Волинська","Копачівська","ВолинськаКопачівська",224]
[null,"Волинська","Дубівська","ВолинськаДубівська",224]
[null,"Волинська","Луківська","ВолинськаЛуківська",224]
[null,"Волинська","Поворська","ВолинськаПоворська",224]
[null,"Волинська","Смідинська","ВолинськаСмідинська",224]
[null,"Волинська","Литовезька","ВолинськаЛитовезька",224]
[null,"Волинська","Велицька","ВолинськаВелицька",224]
[null,"Волинська","Велимченська","ВолинськаВелимченська",224]
[null,"Волинська","Сереховичівська","ВолинськаСереховичівська",224]
[null,"Дніпропетровська","Дніпровська","ДніпропетровськаДніпровська",224]
[null,"Дніпропетровська","Криворізька","ДніпропетровськаКриворізька",224]
[null,"Дніпропетровська","Кам’янська","ДніпропетровськаКам’янська",224]
[null,"Дніпропетровська","Нікопольська","ДніпропетровськаНікопольська",224]
[null,"Дніпропетровська","Павлоградська","ДніпропетровськаПавлоградська",224]
[null,"Дніпропетровська","Новомосковська","ДніпропетровськаНовомосковська",224]
[null,"Дніпропетровська","Марганецька","ДніпропетровськаМарганецька",224]
[null,"Дніпропетровська","Жовтоводська","ДніпропетровськаЖовтоводська",224]
[null,"Дніпропетровська","Покровська (Нікопольський, міська)","ДніпропетровськаПокровська (Нікопольський, міська)",41]
[null,"Дніпропетровська","Верхівцівська","ДніпропетровськаВерхівцівська",224]
[null,"Дніпропетровська","Синельниківська","ДніпропетровськаСинельниківська",224]
[null,"Дніпропетровська","Першотравенська","ДніпропетровськаПершотравенська",224]
[null,"Дніпропетровська","Тернівська",{"$f":"B131&C131","v":"ДніпропетровськаТернівська"},224]
[null,"Дніпропетровська","П’ятихатська","ДніпропетровськаП’ятихатська",224]
[null,"Дніпропетровська","Солонянська","ДніпропетровськаСолонянська",224]
[null,"Дніпропетровська","Вільногірська","ДніпропетровськаВільногірська",224]
[null,"Дніпропетровська","Підгородненська","ДніпропетровськаПідгородненська",224]
[null,"Дніпропетровська","Слобожанська","ДніпропетровськаСлобожанська",224]
[null,"Дніпропетровська","Петриківська","ДніпропетровськаПетриківська",{"$f":"CODE(RIGHT(C137,1))","v":224}]
[null,"Дніпропетровська","Апостолівська","ДніпропетровськаАпостолівська",224]
[null,"Дніпропетровська","Васильківська","ДніпропетровськаВасильківська",224]
[null,"Дніпропетровська","Магдалинівська","ДніпропетровськаМагдалинівська",224]
[null,"Дніпропетровська","Перещепинська","ДніпропетровськаПерещепинська",224]
[null,"Дніпропетровська","Покровська (Синельниківський)","ДніпропетровськаПокровська (Синельниківський)",41]
[null,"Дніпропетровська","Криничанська","ДніпропетровськаКриничанська",224]
[null,"Дніпропетровська","Лозуватська","ДніпропетровськаЛозуватська",224]
[null,"Дніпропетровська","Піщанська","ДніпропетровськаПіщанська",224]
[null,"Дніпропетровська","Зеленодольська","ДніпропетровськаЗеленодольська",224]
[null,"Дніпропетровська","Губиниська","ДніпропетровськаГубиниська",224]
[null,"Дніпропетровська","Новопокровська","ДніпропетровськаНовопокровська",224]
[null,"Дніпропетровська","Межівська","ДніпропетровськаМежівська",224]
[null,"Дніпропетровська","Царичанська","ДніпропетровськаЦаричанська",224]
[null,"Дніпропетровська","Томаківська","ДніпропетровськаТомаківська",224]
[null,"Дніпропетровська","Іларіонівська","ДніпропетровськаІларіонівська",224]
[null,"Дніпропетровська","Широківська","ДніпропетровськаШироківська",224]
[null,"Дніпропетровська","Червоногригорівська","ДніпропетровськаЧервоногригорівська",224]
[null,"Дніпропетровська","Першотравневська","ДніпропетровськаПершотравневська",224]
[null,"Дніпропетровська","Софіївська","ДніпропетровськаСофіївська",224]
[null,"Дніпропетровська","Верхньодніпровська","ДніпропетровськаВерхньодніпровська",224]
[null,"Дніпропетровська","Обухівська","ДніпропетровськаОбухівська",224]
[null,"Дніпропетровська","Юр’ївська","ДніпропетровськаЮр’ївська",224]
[null,"Дніпропетровська","Новоолександрівська","ДніпропетровськаНовоолександрівська",224]
[null,"Дніпропетровська","Божедарівська","ДніпропетровськаБожедарівська",224]
[null,"Дніпропетровська","Раївська","ДніпропетровськаРаївська",224]
[null,"Дніпропетровська","Покровська (Нікопольський, сільська)","ДніпропетровськаПокровська (Нікопольський, сільська)",41]
[null,"Дніпропетровська","Черкаська","ДніпропетровськаЧеркаська",224]
[null,"Дніпропетровська","Миколаївська (Синельниківський)","ДніпропетровськаМиколаївська (Синельниківський)",41]
[null,"Дніпропетровська","Богданівська","ДніпропетровськаБогданівська",224]
[null,"Дніпропетровська","Маломихайлівська","ДніпропетровськаМаломихайлівська",224]
[null,"Дніпропетровська","Дубовиківська","ДніпропетровськаДубовиківська",224]
[null,"Дніпропетровська","Петропавлівська","ДніпропетровськаПетропавлівська",224]
[null,"Дніпропетровська","Вербківська","ДніпропетровськаВербківська",224]
[null,"Дніпропетровська","Новопільська","ДніпропетровськаНовопільська",224]
[null,"Дніпропетровська","Глеюватська","ДніпропетровськаГлеюватська",224]
[null,"Дніпропетровська","Мирівська","ДніпропетровськаМирівська",224]
[null,"Дніпропетровська","Саксаганська","ДніпропетровськаСаксаганська",224]
[null,"Дніпропетровська","Межиріцька","ДніпропетровськаМежиріцька",224]
[null,"Дніпропетровська","Миколаївська (Дніпровський)","ДніпропетровськаМиколаївська (Дніпровський)",41]
[null,"Дніпропетровська","Грушівська","ДніпропетровськаГрушівська",224]
[null,"Дніпропетровська","Могилівська","ДніпропетровськаМогилівська",224]
[null,"Дніпропетровська","Сурсько-Литовська","ДніпропетровськаСурсько-Литовська",224]
[null,"Дніпропетровська","Карпівська","ДніпропетровськаКарпівська",224]
[null,"Дніпропетровська","Девладівська","ДніпропетровськаДевладівська",224]
[null,"Дніпропетровська","Личківська","ДніпропетровськаЛичківська",224]
[null,"Дніпропетровська","Славгородська","ДніпропетровськаСлавгородська",224]
[null,"Дніпропетровська","Святовасилівська","ДніпропетровськаСвятовасилівська",224]
[null,"Дніпропетровська","Лихівська","ДніпропетровськаЛихівська",224]
[null,"Дніпропетровська","Чернеччинська","ДніпропетровськаЧернеччинська",224]
[null,"Дніпропетровська","Нивотрудівська","ДніпропетровськаНивотрудівська",224]
[null,"Дніпропетровська","Чумаківська","ДніпропетровськаЧумаківська",224]
[null,"Дніпропетровська","Гречаноподівська","ДніпропетровськаГречаноподівська",224]
[null,"Дніпропетровська","Вишнівська","ДніпропетровськаВишнівська",224]
[null,"Дніпропетровська","Новопавлівська","ДніпропетровськаНовопавлівська",224]
[null,"Дніпропетровська","Брагинівська","ДніпропетровськаБрагинівська",224]
[null,"Дніпропетровська","Затишнянська","ДніпропетровськаЗатишнянська",224]
[null,"Дніпропетровська","Великомихайлівська","ДніпропетровськаВеликомихайлівська",224]
[null,"Дніпропетровська","Любимівська",{"$f":"B195&C195","v":"ДніпропетровськаЛюбимівська"},224]
[null,"Дніпропетровська","Троїцька","ДніпропетровськаТроїцька",224]
[null,"Дніпропетровська","Зайцівська","ДніпропетровськаЗайцівська",224]
[null,"Дніпропетровська","Слов’янська","ДніпропетровськаСлов’янська",224]
[null,"Дніпропетровська","Китайгородська","ДніпропетровськаКитайгородська",224]
[null,"Дніпропетровська","Роздорська","ДніпропетровськаРоздорська",224]
[null,"Дніпропетровська","Вакулівська","ДніпропетровськаВакулівська",{"$f":"CODE(RIGHT(C201,1))","v":224}]
[null,"Дніпропетровська","Українська","ДніпропетровськаУкраїнська",224]
[null,"Дніпропетровська","Новолатівська","ДніпропетровськаНоволатівська",224]
[null,"Дніпропетровська","Ляшківська","ДніпропетровськаЛяшківська",224]
[null,"Донецька","Маріупольська","ДонецькаМаріупольська",224]
[null,"Донецька","Краматорська","ДонецькаКраматорська",224]
[null,"Донецька","Слов’янська","ДонецькаСлов’янська",224]
[null,"Донецька","Покровська","ДонецькаПокровська",224]
[null,"Донецька","Бахмутська","ДонецькаБахмутська",224]
[null,"Донецька","Костянтинівська","ДонецькаКостянтинівська",224]
[null,"Донецька","Дружківська","ДонецькаДружківська",224]
[null,"Донецька","Торецька","ДонецькаТорецька",224]
[null,"Донецька","Мирноградська","ДонецькаМирноградська",224]
[null,"Донецька","Добропільська","ДонецькаДобропільська",224]
[null,"Донецька","Лиманська","ДонецькаЛиманська",224]
[null,"Донецька","Курахівська","ДонецькаКурахівська",224]
[null,"Донецька","Волноваська","ДонецькаВолноваська",224]
[null,"Донецька","Селидівська","ДонецькаСелидівська",224]
[null,"Донецька","Мар’їнська","ДонецькаМар’їнська",224]
[null,"Донецька","Авдіївська","ДонецькаАвдіївська",224]
[null,"Донецька","Світлодарська","ДонецькаСвітлодарська",224]
[null,"Донецька","Вугледарська","ДонецькаВугледарська",224]
[null,"Донецька","Очеретинська","ДонецькаОчеретинська",224]
[null,"Донецька","Мангушська","ДонецькаМангушська",224]
[null,"Донецька","Миколаївська","ДонецькаМиколаївська",224]
[null,"Донецька","Сартанська","ДонецькаСартанська",224]
[null,"Донецька","Соледарська","ДонецькаСоледарська",224]
[null,"Донецька","Новогродівська","ДонецькаНовогродівська",224]
[null,"Донецька","Ольгинська","ДонецькаОльгинська",224]
[null,"Донецька","Великоновосілківська","ДонецькаВеликоновосілківська",224]
[null,"Донецька","Нікольська","ДонецькаНікольська",224]
[null,"Донецька","Білозерська","ДонецькаБілозерська",224]
[null,"Донецька","Сіверська","ДонецькаСіверська",224]
[null,"Донецька","Часовоярська","ДонецькаЧасовоярська",224]
[null,"Донецька","Олександрівська","ДонецькаОлександрівська",224]
[null,"Донецька","Хлібодарівська","ДонецькаХлібодарівська",224]
[null,"Донецька","Мирненська","ДонецькаМирненська",224]
[null,"Донецька","Старомлинівська","ДонецькаСтаромлинівська",224]
[null,"Донецька","Новодонецька","ДонецькаНоводонецька",224]
[null,"Донецька","Кальчицька","ДонецькаКальчицька",224]
[null,"Донецька","Гродівська","ДонецькаГродівська",224]
[null,"Донецька","Святогірська","ДонецькаСвятогірська",224]
[null,"Донецька","Іллінівська","ДонецькаІллінівська",224]
[null,"Донецька","Черкаська","ДонецькаЧеркаська",224]
[null,"Донецька","Комарська","ДонецькаКомарська",224]
[null,"Донецька","Шахівська","ДонецькаШахівська",224]
[null,"Донецька","Криворізька","ДонецькаКриворізька",224]
[null,"Донецька","Удачненська","ДонецькаУдачненська",224]
[null,"Донецька","Званівська","ДонецькаЗванівська",224]
[null,"Донецька","Андріївська","ДонецькаАндріївська",224]
[null,"Житомирська","Житомирська","ЖитомирськаЖитомирська",224]
[null,"Житомирська","Бердичівська","ЖитомирськаБердичівська",224]
[null,"Житомирська","Коростенська","ЖитомирськаКоростенська",224]
[null,"Житомирська","Звягельська","ЖитомирськаЗвягельська",224]
[null,"Житомирська","Малинська","ЖитомирськаМалинська",224]
[null,"Житомирська","Овруцька","ЖитомирськаОвруцька",224]
[null,"Житомирська","Олевська","ЖитомирськаОлевська",224]
[null,"Житомирська","Коростишівська","ЖитомирськаКоростишівська",224]
[null,"Житомирська","Любарська",{"$f":"B259&C259","v":"ЖитомирськаЛюбарська"},224]
[null,"Житомирська","Радомишльська","ЖитомирськаРадомишльська",224]
[null,"Житомирська","Баранівська","ЖитомирськаБаранівська",224]
[null,"Житомирська","Новогуйвинська","ЖитомирськаНовогуйвинська",224]
[null,"Житомирська","Ємільчинська","ЖитомирськаЄмільчинська",224]
[null,"Житомирська","Андрушківська","ЖитомирськаАндрушківська",224]
[null,"Житомирська","Ружинська","ЖитомирськаРужинська",{"$f":"CODE(RIGHT(C265,1))","v":224}]
[null,"Житомирська","Черняхівська","ЖитомирськаЧерняхівська",224]
[null,"Житомирська","Чуднівська","ЖитомирськаЧуднівська",224]
[null,"Житомирська","Романівська","ЖитомирськаРоманівська",224]
[null,"Житомирська","Хорошівська","ЖитомирськаХорошівська",224]
[null,"Житомирська","Станишівська","ЖитомирськаСтанишівська",224]
[null,"Житомирська","Попільнянська","ЖитомирськаПопільнянська",224]
[null,"Житомирська","Лугинська","ЖитомирськаЛугинська",224]
[null,"Житомирська","Брусилівська","ЖитомирськаБрусилівська",224]
[null,"Житомирська","Пулинська","ЖитомирськаПулинська",224]
[null,"Житомирська","Словечанська","ЖитомирськаСловечанська",224]
[null,"Житомирська","Глибочицька","ЖитомирськаГлибочицька",224]
[null,"Житомирська","Ушомирська","ЖитомирськаУшомирська",224]
[null,"Житомирська","Гришковецька","ЖитомирськаГришковецька",224]
[null,"Житомирська","Тетерівська","ЖитомирськаТетерівська",224]
[null,"Житомирська","Народицька","ЖитомирськаНародицька",224]
[null,"Житомирська","Іршанська","ЖитомирськаІршанська",224]
[null,"Житомирська","Березівська","ЖитомирськаБерезівська",224]
[null,"Житомирська","Довбиська","ЖитомирськаДовбиська",224]
[null,"Житомирська","Новоборівська","ЖитомирськаНовоборівська",224]
[null,"Житомирська","Оліївська","ЖитомирськаОліївська",224]
[null,"Житомирська","Городницька","ЖитомирськаГородницька",224]
[null,"Житомирська","Курненська","ЖитомирськаКурненська",224]
[null,"Житомирська","Ярунська","ЖитомирськаЯрунська",224]
[null,"Житомирська","Брониківська","ЖитомирськаБрониківська",224]
[null,"Житомирська","Краснопільська","ЖитомирськаКраснопільська",224]
[null,"Житомирська","Миропільська","ЖитомирськаМиропільська",224]
[null,"Житомирська","Райгородоцька","ЖитомирськаРайгородоцька",224]
[null,"Житомирська","Чижівська","ЖитомирськаЧижівська",224]
[null,"Житомирська","Барашівська","ЖитомирськаБарашівська",224]
[null,"Житомирська","Вільшанська","ЖитомирськаВільшанська",224]
[null,"Житомирська","Чоповицька","ЖитомирськаЧоповицька",224]
[null,"Житомирська","Білокоровицька","ЖитомирськаБілокоровицька",224]
[null,"Житомирська","Червоненська","ЖитомирськаЧервоненська",224]
[null,"Житомирська","Корнинська","ЖитомирськаКорнинська",224]
[null,"Житомирська","Волицька","ЖитомирськаВолицька",224]
[null,"Житомирська","Вчорайшенська","ЖитомирськаВчорайшенська",224]
[null,"Житомирська","Семенівська","ЖитомирськаСеменівська",224]
[null,"Житомирська","Старосілецька","ЖитомирськаСтаросілецька",224]
[null,"Житомирська","Стриївська","ЖитомирськаСтриївська",224]
[null,"Житомирська","Гладковицька","ЖитомирськаГладковицька",224]
[null,"Житомирська","Швайківська","ЖитомирськаШвайківська",224]
[null,"Житомирська","Квітнева","ЖитомирськаКвітнева",224]
[null,"Житомирська","Піщівська","ЖитомирськаПіщівська",224]
[null,"Житомирська","Андрушівська","ЖитомирськаАндрушівська",224]
[null,"Житомирська","Дубрівська","ЖитомирськаДубрівська",224]
[null,"Житомирська","Городоцька","ЖитомирськаГородоцька",224]
[null,"Житомирська","Потіївська","ЖитомирськаПотіївська",224]
[null,"Житомирська","Вишевицька","ЖитомирськаВишевицька",224]
[null,"Житомирська","Горщиківська","ЖитомирськаГорщиківська",224]
[null,"Житомирська","Високівська","ЖитомирськаВисоківська",224]
[null,"Житомирська","Харитонівська","ЖитомирськаХаритонівська",224]
[null,"Закарпатська","Ужгородська","ЗакарпатськаУжгородська",224]
[null,"Закарпатська","Мукачівська","ЗакарпатськаМукачівська",224]
[null,"Закарпатська","Хустська","ЗакарпатськаХустська",224]
[null,"Закарпатська","Виноградівська","ЗакарпатськаВиноградівська",224]
[null,"Закарпатська","Берегівська","ЗакарпатськаБерегівська",224]
[null,"Закарпатська","Іршавська","ЗакарпатськаІршавська",224]
[null,"Закарпатська","Солотвинська",{"$f":"B323&C323","v":"ЗакарпатськаСолотвинська"},224]
[null,"Закарпатська","Нересницька","ЗакарпатськаНересницька",224]
[null,"Закарпатська","Великобичківська","ЗакарпатськаВеликобичківська",224]
[null,"Закарпатська","Свалявська","ЗакарпатськаСвалявська",224]
[null,"Закарпатська","Буштинська","ЗакарпатськаБуштинська",224]
[null,"Закарпатська","Міжгірська","ЗакарпатськаМіжгірська",224]
[null,"Закарпатська","Рахівська","ЗакарпатськаРахівська",{"$f":"CODE(RIGHT(C329,1))","v":224}]
[null,"Закарпатська","Королівська","ЗакарпатськаКоролівська",224]
[null,"Закарпатська","Великолучківська","ЗакарпатськаВеликолучківська",224]
[null,"Закарпатська","Білківська","ЗакарпатськаБілківська",224]
[null,"Закарпатська","Дубівська","ЗакарпатськаДубівська",224]
[null,"Закарпатська","Пийтерфолвівська","ЗакарпатськаПийтерфолвівська",224]
[null,"Закарпатська","Тячівська","ЗакарпатськаТячівська",224]
[null,"Закарпатська","Ясінянська","ЗакарпатськаЯсінянська",224]
[null,"Закарпатська","Довжанська","ЗакарпатськаДовжанська",224]
[null,"Закарпатська","Тересвянська","ЗакарпатськаТересвянська",224]
[null,"Закарпатська","Вишківська","ЗакарпатськаВишківська",224]
[null,"Закарпатська","Тур’є-Реметівська","ЗакарпатськаТур’є-Реметівська",224]
[null,"Закарпатська","Чопська","ЗакарпатськаЧопська",224]
[null,"Закарпатська","Керецьківська","ЗакарпатськаКерецьківська",224]
[null,"Закарпатська","Чинадіївська","ЗакарпатськаЧинадіївська",224]
[null,"Закарпатська","Вилоцька","ЗакарпатськаВилоцька",224]
[null,"Закарпатська","Середнянська","ЗакарпатськаСереднянська",224]
[null,"Закарпатська","Холмківська","ЗакарпатськаХолмківська",224]
[null,"Закарпатська","Драгівська","ЗакарпатськаДрагівська",224]
[null,"Закарпатська","Полянська","ЗакарпатськаПолянська",224]
[null,"Закарпатська","Горінчівська","ЗакарпатськаГорінчівська",224]
[null,"Закарпатська","Перечинська","ЗакарпатськаПеречинська",224]
[null,"Закарпатська","Вільховецька","ЗакарпатськаВільховецька",224]
[null,"Закарпатська","Батівська","ЗакарпатськаБатівська",224]
[null,"Закарпатська","Великодобронська","ЗакарпатськаВеликодобронська",224]
[null,"Закарпатська","Баранинська","ЗакарпатськаБаранинська",224]
[null,"Закарпатська","Углянська","ЗакарпатськаУглянська",224]
[null,"Закарпатська","Богданська","ЗакарпатськаБогданська",224]
[null,"Закарпатська","Великоберезнянська","ЗакарпатськаВеликоберезнянська",224]
[null,"Закарпатська","Нижньоворітська","ЗакарпатськаНижньоворітська",224]
[null,"Закарпатська","Кольчинська","ЗакарпатськаКольчинська",224]
[null,"Закарпатська","Сюртівська","ЗакарпатськаСюртівська",224]
[null,"Закарпатська","Кам’янська","ЗакарпатськаКам’янська",224]
[null,"Закарпатська","Горондівська","ЗакарпатськаГорондівська",224]
[null,"Закарпатська","Івановецька","ЗакарпатськаІвановецька",224]
[null,"Закарпатська","Воловецька","ЗакарпатськаВоловецька",224]
[null,"Закарпатська","Колочавська","ЗакарпатськаКолочавська",224]
[null,"Закарпатська","Зарічанська","ЗакарпатськаЗарічанська",224]
[null,"Закарпатська","Косоньська","ЗакарпатськаКосоньська",224]
[null,"Закарпатська","Великобийганська","ЗакарпатськаВеликобийганська",224]
[null,"Закарпатська","Верхньокоропецька","ЗакарпатськаВерхньокоропецька",224]
[null,"Закарпатська","Пилипецька","ЗакарпатськаПилипецька",224]
[null,"Закарпатська","Ставненська","ЗакарпатськаСтавненська",224]
[null,"Закарпатська","Усть-Чорнянська","ЗакарпатськаУсть-Чорнянська",224]
[null,"Закарпатська","Дубриницько-Малоберезнянська","ЗакарпатськаДубриницько-Малоберезнянська",224]
[null,"Закарпатська","Оноківська","ЗакарпатськаОноківська",224]
[null,"Закарпатська","Бедевлянська","ЗакарпатськаБедевлянська",224]
[null,"Закарпатська","Синевирська","ЗакарпатськаСиневирська",224]
[null,"Закарпатська","Великоберезька","ЗакарпатськаВеликоберезька",224]
[null,"Закарпатська","Неліпинська","ЗакарпатськаНеліпинська",224]
[null,"Закарпатська","Костринська","ЗакарпатськаКостринська",224]
[null,"Закарпатська","Жденіївська","ЗакарпатськаЖденіївська",224]
[null,"Запорізька","Запорізька","ЗапорізькаЗапорізька",224]
[null,"Запорізька","Мелітопольська","ЗапорізькаМелітопольська",224]
[null,"Запорізька","Бердянська","ЗапорізькаБердянська",224]
[null,"Запорізька","Енергодарська","ЗапорізькаЕнергодарська",224]
[null,"Запорізька","Токмацька","ЗапорізькаТокмацька",224]
[null,"Запорізька","Пологівська","ЗапорізькаПологівська",224]
[null,"Запорізька","Якимівська",{"$f":"B387&C387","v":"ЗапорізькаЯкимівська"},224]
[null,"Запорізька","Приморська","ЗапорізькаПриморська",224]
[null,"Запорізька","Василівська","ЗапорізькаВасилівська",224]
[null,"Запорізька","Кам’янсько-Дніпровська","ЗапорізькаКам’янсько-Дніпровська",224]
[null,"Запорізька","Михайлівська (Василівський)","ЗапорізькаМихайлівська (Василівський)",41]
[null,"Запорізька","Гуляйпільська","ЗапорізькаГуляйпільська",224]
[null,"Запорізька","Оріхівська","ЗапорізькаОріхівська",{"$f":"CODE(RIGHT(C393,1))","v":224}]
[null,"Запорізька","Дніпрорудненська","ЗапорізькаДніпрорудненська",224]
[null,"Запорізька","Кушугумська","ЗапорізькаКушугумська",224]
[null,"Запорізька","Вільнянська","ЗапорізькаВільнянська",224]
[null,"Запорізька","Чернігівська","ЗапорізькаЧернігівська",224]
[null,"Запорізька","Костянтинівська","ЗапорізькаКостянтинівська",224]
[null,"Запорізька","Веселівська","ЗапорізькаВеселівська",224]
[null,"Запорізька","Широківська","ЗапорізькаШироківська",224]
[null,"Запорізька","Комишуваська","ЗапорізькаКомишуваська",224]
[null,"Запорізька","Малобілозерська","ЗапорізькаМалобілозерська",224]
[null,"Запорізька","Приазовська","ЗапорізькаПриазовська",224]
[null,"Запорізька","Молочанська","ЗапорізькаМолочанська",224]
[null,"Запорізька","Водянська","ЗапорізькаВодянська",224]
[null,"Запорізька","Більмацька","ЗапорізькаБільмацька",224]
[null,"Запорізька","Новомиколаївська","ЗапорізькаНовомиколаївська",224]
[null,"Запорізька","Біленьківська","ЗапорізькаБіленьківська",224]
[null,"Запорізька","Семенівська","ЗапорізькаСеменівська",224]
[null,"Запорізька","Терпіннівська","ЗапорізькаТерпіннівська",224]
[null,"Запорізька","Степногірська","ЗапорізькаСтепногірська",224]
[null,"Запорізька","Розівська","ЗапорізькаРозівська",224]
[null,"Запорізька","Нововасилівська","ЗапорізькаНововасилівська",224]
[null,"Запорізька","Великобілозерська","ЗапорізькаВеликобілозерська",224]
[null,"Запорізька","Осипенківська","ЗапорізькаОсипенківська",224]
[null,"Запорізька","Андріївська","ЗапорізькаАндріївська",224]
[null,"Запорізька","Матвіївська","ЗапорізькаМатвіївська",224]
[null,"Запорізька","Кирилівська","ЗапорізькаКирилівська",224]
[null,"Запорізька","Роздольська","ЗапорізькаРоздольська",224]
[null,"Запорізька","Михайлівська (Запорізький)","ЗапорізькаМихайлівська (Запорізький)",41]
[null,"Запорізька","Благовіщенська","ЗапорізькаБлаговіщенська",224]
[null,"Запорізька","Олександрівська","ЗапорізькаОлександрівська",224]
[null,"Запорізька","Комиш-Зорянська","ЗапорізькаКомиш-Зорянська",224]
[null,"Запорізька","Долинська","ЗапорізькаДолинська",224]
[null,"Запорізька","Софіївська","ЗапорізькаСофіївська",224]
[null,"Запорізька","Мирненська","ЗапорізькаМирненська",224]
[null,"Запорізька","Михайло-Лукашівська","ЗапорізькаМихайло-Лукашівська",224]
[null,"Запорізька","Степненська","ЗапорізькаСтепненська",224]
[null,"Запорізька","Воскресенська","ЗапорізькаВоскресенська",224]
[null,"Запорізька","Преображенська","ЗапорізькаПреображенська",224]
[null,"Запорізька","Новенська","ЗапорізькаНовенська",224]
[null,"Запорізька","Новобогданівська","ЗапорізькаНовобогданівська",224]
[null,"Запорізька","Петро-Михайлівська","ЗапорізькаПетро-Михайлівська",224]
[null,"Запорізька","Новоолександрівська","ЗапорізькаНовоолександрівська",224]
[null,"Запорізька","Павлівська","ЗапорізькаПавлівська",224]
[null,"Запорізька","Берестівська","ЗапорізькаБерестівська",224]
[null,"Запорізька","Таврійська","ЗапорізькаТаврійська",224]
[null,"Запорізька","Тернуватська","ЗапорізькаТернуватська",224]
[null,"Запорізька","Новоуспенівська","ЗапорізькаНовоуспенівська",224]
[null,"Запорізька","Плодородненська","ЗапорізькаПлодородненська",224]
[null,"Запорізька","Федорівська","ЗапорізькаФедорівська",224]
[null,"Запорізька","Андрівська","ЗапорізькаАндрівська",224]
[null,"Запорізька","Малинівська","ЗапорізькаМалинівська",224]
[null,"Запорізька","Смирновська","ЗапорізькаСмирновська",224]
[null,"Запорізька","Чкаловська","ЗапорізькаЧкаловська",224]
[null,"Запорізька","Малотокмачанська","ЗапорізькаМалотокмачанська",224]
[null,"Запорізька","Воздвижівська","ЗапорізькаВоздвижівська",224]
[null,"Івано-Франківська","Івано-Франківська","Івано-ФранківськаІвано-Франківська",224]
[null,"Івано-Франківська","Калуська","Івано-ФранківськаКалуська",224]
[null,"Івано-Франківська","Коломийська","Івано-ФранківськаКоломийська",224]
[null,"Івано-Франківська","Долинська",{"$f":"B451&C451","v":"Івано-ФранківськаДолинська"},224]
[null,"Івано-Франківська","Городенківська","Івано-ФранківськаГороденківська",224]
[null,"Івано-Франківська","Надвірнянська","Івано-ФранківськаНадвірнянська",224]
[null,"Івано-Франківська","Снятинська","Івано-ФранківськаСнятинська",224]
[null,"Івано-Франківська","Косівська","Івано-ФранківськаКосівська",224]
[null,"Івано-Франківська","Рогатинська","Івано-ФранківськаРогатинська",224]
[null,"Івано-Франківська","Тисменицька","Івано-ФранківськаТисменицька",{"$f":"CODE(RIGHT(C457,1))","v":224}]
[null,"Івано-Франківська","Богородчанська","Івано-ФранківськаБогородчанська",224]
[null,"Івано-Франківська","Тлумацька","Івано-ФранківськаТлумацька",224]
[null,"Івано-Франківська","Солотвинська","Івано-ФранківськаСолотвинська",224]
[null,"Івано-Франківська","Бурштинська","Івано-ФранківськаБурштинська",224]
[null,"Івано-Франківська","Перегінська","Івано-ФранківськаПерегінська",224]
[null,"Івано-Франківська","Делятинська","Івано-ФранківськаДелятинська",224]
[null,"Івано-Франківська","Пасічнянська","Івано-ФранківськаПасічнянська",224]
[null,"Івано-Франківська","Рожнятівська","Івано-ФранківськаРожнятівська",224]
[null,"Івано-Франківська","Отинійська","Івано-ФранківськаОтинійська",224]
[null,"Івано-Франківська","Верховинська","Івано-ФранківськаВерховинська",224]
[null,"Івано-Франківська","Заболотівська","Івано-ФранківськаЗаболотівська",224]
[null,"Івано-Франківська","Болехівська","Івано-ФранківськаБолехівська",224]
[null,"Івано-Франківська","Галицька","Івано-ФранківськаГалицька",224]
[null,"Івано-Франківська","Вигодська","Івано-ФранківськаВигодська",224]
[null,"Івано-Франківська","Печеніжинська","Івано-ФранківськаПеченіжинська",224]
[null,"Івано-Франківська","Кутська","Івано-ФранківськаКутська",224]
[null,"Івано-Франківська","Яблунівська","Івано-ФранківськаЯблунівська",224]
[null,"Івано-Франківська","Новицька","Івано-ФранківськаНовицька",224]
[null,"Івано-Франківська","Яремчанська","Івано-ФранківськаЯремчанська",224]
[null,"Івано-Франківська","Нижньовербізька","Івано-ФранківськаНижньовербізька",224]
[null,"Івано-Франківська","Рожнівська","Івано-ФранківськаРожнівська",224]
[null,"Івано-Франківська","Брошнів-Осадська","Івано-ФранківськаБрошнів-Осадська",224]
[null,"Івано-Франківська","Ланчинська","Івано-ФранківськаЛанчинська",224]
[null,"Івано-Франківська","П’ядицька","Івано-ФранківськаП’ядицька",224]
[null,"Івано-Франківська","Войнилівська","Івано-ФранківськаВойнилівська",224]
[null,"Івано-Франківська","Верхнянська","Івано-ФранківськаВерхнянська",224]
[null,"Івано-Франківська","Ямницька","Івано-ФранківськаЯмницька",224]
[null,"Івано-Франківська","Переріслянська","Івано-ФранківськаПереріслянська",224]
[null,"Івано-Франківська","Обертинська","Івано-ФранківськаОбертинська",224]
[null,"Івано-Франківська","Олешанська","Івано-ФранківськаОлешанська",224]
[null,"Івано-Франківська","Витвицька","Івано-ФранківськаВитвицька",224]
[null,"Івано-Франківська","Білоберізька","Івано-ФранківськаБілоберізька",224]
[null,"Івано-Франківська","Дзвиняцька","Івано-ФранківськаДзвиняцька",224]
[null,"Івано-Франківська","Коршівська","Івано-ФранківськаКоршівська",224]
[null,"Івано-Франківська","Космацька","Івано-ФранківськаКосмацька",224]
[null,"Івано-Франківська","Матеївецька","Івано-ФранківськаМатеївецька",224]
[null,"Івано-Франківська","Більшівцівська","Івано-ФранківськаБільшівцівська",224]
[null,"Івано-Франківська","Єзупільська","Івано-ФранківськаЄзупільська",224]
[null,"Івано-Франківська","Лисецька","Івано-ФранківськаЛисецька",224]
[null,"Івано-Франківська","Дубовецька","Івано-ФранківськаДубовецька",224]
[null,"Івано-Франківська","Гвіздецька","Івано-ФранківськаГвіздецька",224]
[null,"Івано-Франківська","Дубівська","Івано-ФранківськаДубівська",224]
[null,"Івано-Франківська","Чернелицька","Івано-ФранківськаЧернелицька",224]
[null,"Івано-Франківська","Ворохтянська","Івано-ФранківськаВорохтянська",224]
[null,"Івано-Франківська","Старобогородчанська","Івано-ФранківськаСтаробогородчанська",224]
[null,"Івано-Франківська","Спаська","Івано-ФранківськаСпаська",224]
[null,"Івано-Франківська","Загвіздянська","Івано-ФранківськаЗагвіздянська",224]
[null,"Івано-Франківська","Підгайчиківська","Івано-ФранківськаПідгайчиківська",224]
[null,"Івано-Франківська","Букачівська","Івано-ФранківськаБукачівська",224]
[null,"Івано-Франківська","Поляницька","Івано-ФранківськаПоляницька",224]
[null,"Івано-Франківська","Угринівська","Івано-ФранківськаУгринівська",224]
[null,"Івано-Франківська","Зеленська","Івано-ФранківськаЗеленська",224]
[null,"Київська","Київ","КиївськаКиїв",226]
[null,"Київська","Білоцерківська","КиївськаБілоцерківська",224]
[null,"Київська","Броварська","КиївськаБроварська",224]
[null,"Київська","Бориспільська","КиївськаБориспільська",224]
[null,"Київська","Ірпінська","КиївськаІрпінська",224]
[null,"Київська","Фастівська",{"$f":"B515&C515","v":"КиївськаФастівська"},224]
[null,"Київська","Бучанська","КиївськаБучанська",224]
[null,"Київська","Боярська","КиївськаБоярська",224]
[null,"Київська","Вишнева","КиївськаВишнева",224]
[null,"Київська","Васильківська","КиївськаВасильківська",224]
[null,"Київська","Обухівська","КиївськаОбухівська",224]
[null,"Київська","Вишгородська","КиївськаВишгородська",{"$f":"CODE(RIGHT(C521,1))","v":224}]
[null,"Київська","Миронівська","КиївськаМиронівська",224]
[null,"Київська","Переяславська","КиївськаПереяславська",224]
[null,"Київська","Сквирська","КиївськаСквирська",224]
[null,"Київська","Яготинська","КиївськаЯготинська",224]
[null,"Київська","Тетіївська","КиївськаТетіївська",224]
[null,"Київська","Великодимерська","КиївськаВеликодимерська",224]
[null,"Київська","Іванківська","КиївськаІванківська",224]
[null,"Київська","Гостомельська","КиївськаГостомельська",224]
[null,"Київська","Макарівська","КиївськаМакарівська",224]
[null,"Київська","Баришівська","КиївськаБаришівська",224]
[null,"Київська","Кагарлицька","КиївськаКагарлицька",224]
[null,"Київська","Таращанська","КиївськаТаращанська",224]
[null,"Київська","Богуславська","КиївськаБогуславська",224]
[null,"Київська","Білогородська","КиївськаБілогородська",224]
[null,"Київська","Бородянська","КиївськаБородянська",224]
[null,"Київська","Рокитнянська","КиївськаРокитнянська",224]
[null,"Київська","Славутицька","КиївськаСлавутицька",224]
[null,"Київська","Березанська","КиївськаБерезанська",224]
[null,"Київська","Борщагівська","КиївськаБорщагівська",224]
[null,"Київська","Димерська","КиївськаДимерська",224]
[null,"Київська","Українська","КиївськаУкраїнська",224]
[null,"Київська","Ставищенська","КиївськаСтавищенська",224]
[null,"Київська","Узинська","КиївськаУзинська",224]
[null,"Київська","Дмитрівська","КиївськаДмитрівська",224]
[null,"Київська","Коцюбинська","КиївськаКоцюбинська",224]
[null,"Київська","Калинівська (Фастівський)","КиївськаКалинівська (Фастівський)",41]
[null,"Київська","Володарська","КиївськаВолодарська",224]
[null,"Київська","Згурівська","КиївськаЗгурівська",224]
[null,"Київська","Феодосіївська","КиївськаФеодосіївська",224]
[null,"Київська","Немішаївська","КиївськаНемішаївська",224]
[null,"Київська","Ржищівська","КиївськаРжищівська",224]
[null,"Київська","Вороньківська","КиївськаВороньківська",224]
[null,"Київська","Гребінківська","КиївськаГребінківська",224]
[null,"Київська","Глевахівська","КиївськаГлевахівська",224]
[null,"Київська","Петрівська","КиївськаПетрівська",224]
[null,"Київська","Чабанівська","КиївськаЧабанівська",224]
[null,"Київська","Пристолична","КиївськаПристолична",224]
[null,"Київська","Фурсівська","КиївськаФурсівська",224]
[null,"Київська","Маловільшанська","КиївськаМаловільшанська",224]
[null,"Київська","Калитянська","КиївськаКалитянська",224]
[null,"Київська","Гатненська","КиївськаГатненська",224]
[null,"Київська","Зазимська","КиївськаЗазимська",224]
[null,"Київська","Калинівська (Броварський)","КиївськаКалинівська (Броварський)",41]
[null,"Київська","Кожанська","КиївськаКожанська",224]
[null,"Київська","Пісківська","КиївськаПісківська",224]
[null,"Київська","Студениківська","КиївськаСтудениківська",224]
[null,"Київська","Пірнівська","КиївськаПірнівська",224]
[null,"Київська","Ковалівська","КиївськаКовалівська",224]
[null,"Київська","Гірська","КиївськаГірська",224]
[null,"Київська","Бишівська","КиївськаБишівська",224]
[null,"Київська","Циблівська","КиївськаЦиблівська",224]
[null,"Київська","Золочівська","КиївськаЗолочівська",224]
[null,"Київська","Козинська","КиївськаКозинська",224]
[null,"Київська","Медвинська","КиївськаМедвинська",224]
[null,"Київська","Поліська","КиївськаПоліська",224]
[null,"Київська","Ташанська","КиївськаТашанська",224]
[null,"Київська","Дівичківська","КиївськаДівичківська",224]
[null,"Київська","Томашівська",{"$f":"B579&C579","v":"КиївськаТомашівська"},224]
[null,"Кіровоградська","Кропивницька","КіровоградськаКропивницька",224]
[null,"Кіровоградська","Олександрійська","КіровоградськаОлександрійська",224]
[null,"Кіровоградська","Світловодська","КіровоградськаСвітловодська",224]
[null,"Кіровоградська","Знам’янська","КіровоградськаЗнам’янська",224]
[null,"Кіровоградська","Новомиргородська","КіровоградськаНовомиргородська",224]
[null,"Кіровоградська","Долинська","КіровоградськаДолинська",{"$f":"CODE(RIGHT(C585,1))","v":224}]
[null,"Кіровоградська","Олександрівська","КіровоградськаОлександрівська",224]
[null,"Кіровоградська","Гайворонська","КіровоградськаГайворонська",224]
[null,"Кіровоградська","Петрівська","КіровоградськаПетрівська",224]
[null,"Кіровоградська","Благовіщенська","КіровоградськаБлаговіщенська",224]
[null,"Кіровоградська","Новоукраїнська","КіровоградськаНовоукраїнська",224]
[null,"Кіровоградська","Онуфріївська","КіровоградськаОнуфріївська",224]
[null,"Кіровоградська","Голованівська","КіровоградськаГолованівська",224]
[null,"Кіровоградська","Маловисківська","КіровоградськаМаловисківська",224]
[null,"Кіровоградська","Смолінська","КіровоградськаСмолінська",224]
[null,"Кіровоградська","Новгородківська","КіровоградськаНовгородківська",224]
[null,"Кіровоградська","Компаніївська","КіровоградськаКомпаніївська",224]
[null,"Кіровоградська","Добровеличківська","КіровоградськаДобровеличківська",224]
[null,"Кіровоградська","Кетрисанівська","КіровоградськаКетрисанівська",224]
[null,"Кіровоградська","Приютівська","КіровоградськаПриютівська",224]
[null,"Кіровоградська","Новоархангельська","КіровоградськаНовоархангельська",224]
[null,"Кіровоградська","Устинівська","КіровоградськаУстинівська",224]
[null,"Кіровоградська","Суботцівська","КіровоградськаСуботцівська",224]
[null,"Кіровоградська","Бобринецька","КіровоградськаБобринецька",224]
[null,"Кіровоградська","Вільшанська","КіровоградськаВільшанська",224]
[null,"Кіровоградська","Заваллівська","КіровоградськаЗаваллівська",224]
[null,"Кіровоградська","Рівнянська","КіровоградськаРівнянська",224]
[null,"Кіровоградська","Соколівська","КіровоградськаСоколівська",224]
[null,"Кіровоградська","Помічнянська","КіровоградськаПомічнянська",224]
[null,"Кіровоградська","Побузька","КіровоградськаПобузька",224]
[null,"Кіровоградська","Новопразька","КіровоградськаНовопразька",224]
[null,"Кіровоградська","Первозванівська","КіровоградськаПервозванівська",224]
[null,"Кіровоградська","Попельнастівська","КіровоградськаПопельнастівська",224]
[null,"Кіровоградська","Великоандрусівська","КіровоградськаВеликоандрусівська",224]
[null,"Кіровоградська","Підвисоцька","КіровоградськаПідвисоцька",224]
[null,"Кіровоградська","Дмитрівська","КіровоградськаДмитрівська",224]
[null,"Кіровоградська","Великосеверинівська","КіровоградськаВеликосеверинівська",224]
[null,"Кіровоградська","Піщанобрідська","КіровоградськаПіщанобрідська",224]
[null,"Кіровоградська","Аджамська","КіровоградськаАджамська",224]
[null,"Кіровоградська","Злинська","КіровоградськаЗлинська",224]
[null,"Кіровоградська","Катеринівська","КіровоградськаКатеринівська",224]
[null,"Кіровоградська","Гурівська","КіровоградськаГурівська",224]
[null,"Кіровоградська","Мар’янівська","КіровоградськаМар’янівська",224]
[null,"Кіровоградська","Пантаївська","КіровоградськаПантаївська",224]
[null,"Кіровоградська","Перегонівська","КіровоградськаПерегонівська",224]
[null,"Кіровоградська","Надлацька","КіровоградськаНадлацька",224]
[null,"Кіровоградська","Глодоська","КіровоградськаГлодоська",224]
[null,"Кіровоградська","Тишківська","КіровоградськаТишківська",224]
[null,"Кіровоградська","Ганнівська","КіровоградськаГаннівська",224]
[null,"Луганська","Алчевська","ЛуганськаАлчевська",224]
[null,"Луганська","Антрацитівська","ЛуганськаАнтрацитівська",224]
[null,"Луганська","Довжанська","ЛуганськаДовжанська",224]
[null,"Луганська","Зимогір’ївська","ЛуганськаЗимогір’ївська",224]
[null,"Луганська","Кадіївська","ЛуганськаКадіївська",224]
[null,"Луганська","Луганська","ЛуганськаЛуганська",224]
[null,"Луганська","Лутугинська","ЛуганськаЛутугинська",224]
[null,"Луганська","Молодогвардійська","ЛуганськаМолодогвардійська",224]
[null,"Луганська","Ровеньківська","ЛуганськаРовеньківська",224]
[null,"Луганська","Сорокинська","ЛуганськаСорокинська",224]
[null,"Луганська","Хрустальненська","ЛуганськаХрустальненська",224]
[null,"Луганська","Сєвєродонецька","ЛуганськаСєвєродонецька",224]
[null,"Луганська","Лисичанська","ЛуганськаЛисичанська",224]
[null,"Луганська","Рубіжанська","ЛуганськаРубіжанська",224]
[null,"Луганська","Гірська",{"$f":"B643&C643","v":"ЛуганськаГірська"},224]
[null,"Луганська","Старобільська","ЛуганськаСтаробільська",224]
[null,"Луганська","Сватівська","ЛуганськаСватівська",224]
[null,"Луганська","Попаснянська","ЛуганськаПопаснянська",224]
[null,"Луганська","Станично-Луганська","ЛуганськаСтанично-Луганська",224]
[null,"Луганська","Новопсковська","ЛуганськаНовопсковська",224]
[null,"Луганська","Біловодська","ЛуганськаБіловодська",{"$f":"CODE(RIGHT(C649,1))","v":224}]
[null,"Луганська","Кремінська","ЛуганськаКремінська",224]
[null,"Луганська","Новоайдарська","ЛуганськаНовоайдарська",224]
[null,"Луганська","Щастинська","ЛуганськаЩастинська",224]
[null,"Луганська","Троїцька","ЛуганськаТроїцька",224]
[null,"Луганська","Білокуракинська","ЛуганськаБілокуракинська",224]
[null,"Луганська","Міловська","ЛуганськаМіловська",224]
[null,"Луганська","Марківська","ЛуганськаМарківська",224]
[null,"Луганська","Білолуцька","ЛуганськаБілолуцька",224]
[null,"Луганська","Чмирівська","ЛуганськаЧмирівська",224]
[null,"Луганська","Красноріченська","ЛуганськаКрасноріченська",224]
[null,"Луганська","Нижньотеплівська","ЛуганськаНижньотеплівська",224]
[null,"Луганська","Широківська","ЛуганськаШироківська",224]
[null,"Луганська","Нижньодуванська","ЛуганськаНижньодуванська",224]
[null,"Луганська","Лозно-Олександрівська","ЛуганськаЛозно-Олександрівська",224]
[null,"Луганська","Шульгинська","ЛуганськаШульгинська",224]
[null,"Луганська","Коломийчиська","ЛуганськаКоломийчиська",224]
[null,"Львівська","Львівська","ЛьвівськаЛьвівська",224]
[null,"Львівська","Дрогобицька","ЛьвівськаДрогобицька",224]
[null,"Львівська","Стрийська","ЛьвівськаСтрийська",224]
[null,"Львівська","Червоноградська","ЛьвівськаЧервоноградська",224]
[null,"Львівська","Яворівська","ЛьвівськаЯворівська",224]
[null,"Львівська","Сокальська","ЛьвівськаСокальська",224]
[null,"Львівська","Новояворівська","ЛьвівськаНовояворівська",224]
[null,"Львівська","Золочівська","ЛьвівськаЗолочівська",224]
[null,"Львівська","Городоцька","ЛьвівськаГородоцька",224]
[null,"Львівська","Бродівська","ЛьвівськаБродівська",224]
[null,"Львівська","Трускавецька","ЛьвівськаТрускавецька",224]
[null,"Львівська","Бориславська","ЛьвівськаБориславська",224]
[null,"Львівська","Самбірська","ЛьвівськаСамбірська",224]
[null,"Львівська","Новороздільська","ЛьвівськаНовороздільська",224]
[null,"Львівська","Жовківська","ЛьвівськаЖовківська",224]
[null,"Львівська","Миколаївська","ЛьвівськаМиколаївська",224]
[null,"Львівська","Радехівська","ЛьвівськаРадехівська",224]
[null,"Львівська","Мостиська","ЛьвівськаМостиська",224]
[null,"Львівська","Буська","ЛьвівськаБуська",224]
[null,"Львівська","Рава-Руська","ЛьвівськаРава-Руська",224]
[null,"Львівська","Рудківська","ЛьвівськаРудківська",224]
[null,"Львівська","Ходорівська","ЛьвівськаХодорівська",224]
[null,"Львівська","Перемишлянська","ЛьвівськаПеремишлянська",224]
[null,"Львівська","Боринська","ЛьвівськаБоринська",224]
[null,"Львівська","Турківська","ЛьвівськаТурківська",224]
[null,"Львівська","Кам’янка-Бузька","ЛьвівськаКам’янка-Бузька",224]
[null,"Львівська","Старосамбірська","ЛьвівськаСтаросамбірська",224]
[null,"Львівська","Давидівська","ЛьвівськаДавидівська",224]
[null,"Львівська","Сколівська","ЛьвівськаСколівська",224]
[null,"Львівська","Добромильська","ЛьвівськаДобромильська",224]
[null,"Львівська","Івано-Франківська","ЛьвівськаІвано-Франківська",224]
[null,"Львівська","Зимноводівська","ЛьвівськаЗимноводівська",224]
[null,"Львівська","Меденицька","ЛьвівськаМеденицька",224]
[null,"Львівська","Новояричівська","ЛьвівськаНовояричівська",224]
[null,"Львівська","Бісковицька","ЛьвівськаБісковицька",224]
[null,"Львівська","Жидачівська","ЛьвівськаЖидачівська",224]
[null,"Львівська","Красненська","ЛьвівськаКрасненська",224]
[null,"Львівська","Бібрська","ЛьвівськаБібрська",224]
[null,"Львівська","Східницька","ЛьвівськаСхідницька",224]
[null,"Львівська","Добросинсько-Магерівська","ЛьвівськаДобросинсько-Магерівська",224]
[null,"Львівська","Великомостівська","ЛьвівськаВеликомостівська",224]
[null,"Львівська","Хирівська",{"$f":"B707&C707","v":"ЛьвівськаХирівська"},224]
[null,"Львівська","Пустомитівська","ЛьвівськаПустомитівська",224]
[null,"Львівська","Белзька","ЛьвівськаБелзька",224]
[null,"Львівська","Моршинська","ЛьвівськаМоршинська",224]
[null,"Львівська","Стрілківська","ЛьвівськаСтрілківська",224]
[null,"Львівська","Новокалинівська","ЛьвівськаНовокалинівська",224]
[null,"Львівська","Славська","ЛьвівськаСлавська",{"$f":"CODE(RIGHT(C713,1))","v":224}]
[null,"Львівська","Комарнівська","ЛьвівськаКомарнівська",224]
[null,"Львівська","Солонківська","ЛьвівськаСолонківська",224]
[null,"Львівська","Ралівська","ЛьвівськаРалівська",224]
[null,"Львівська","Судововишнянська","ЛьвівськаСудововишнянська",224]
[null,"Львівська","Грабовецько-Дулібівська","ЛьвівськаГрабовецько-Дулібівська",224]
[null,"Львівська","Лопатинська","ЛьвівськаЛопатинська",224]
[null,"Львівська","Розвадівська","ЛьвівськаРозвадівська",224]
[null,"Львівська","Журавненська","ЛьвівськаЖуравненська",224]
[null,"Львівська","Щирецька","ЛьвівськаЩирецька",224]
[null,"Львівська","Куликівська","ЛьвівськаКуликівська",224]
[null,"Львівська","Козівська","ЛьвівськаКозівська",224]
[null,"Львівська","Добротвірська","ЛьвівськаДобротвірська",224]
[null,"Львівська","Підкамінська","ЛьвівськаПідкамінська",224]
[null,"Львівська","Шегинівська","ЛьвівськаШегинівська",224]
[null,"Львівська","Жовтанецька","ЛьвівськаЖовтанецька",224]
[null,"Львівська","Глинянська","ЛьвівськаГлинянська",224]
[null,"Львівська","Мурованська","ЛьвівськаМурованська",224]
[null,"Львівська","Великолюбінська","ЛьвівськаВеликолюбінська",224]
[null,"Львівська","Сокільницька","ЛьвівськаСокільницька",224]
[null,"Львівська","Підберізцівська","ЛьвівськаПідберізцівська",224]
[null,"Львівська","Тростянецька","ЛьвівськаТростянецька",224]
[null,"Львівська","Оброшинська","ЛьвівськаОброшинська",224]
[null,"Львівська","Поморянська","ЛьвівськаПоморянська",224]
[null,"Львівська","Гніздичівська","ЛьвівськаГніздичівська",224]
[null,"Львівська","Заболотцівська","ЛьвівськаЗаболотцівська",224]
[null,"Миколаївська","Миколаївська","МиколаївськаМиколаївська",224]
[null,"Миколаївська","Первомайська (міська)","МиколаївськаПервомайська (міська)",41]
[null,"Миколаївська","Южноукраїнська","МиколаївськаЮжноукраїнська",224]
[null,"Миколаївська","Вознесенська","МиколаївськаВознесенська",224]
[null,"Миколаївська","Кривоозерська","МиколаївськаКривоозерська",224]
[null,"Миколаївська","Снігурівська","МиколаївськаСнігурівська",224]
[null,"Миколаївська","Баштанська","МиколаївськаБаштанська",224]
[null,"Миколаївська","Березнегуватська","МиколаївськаБерезнегуватська",224]
[null,"Миколаївська","Новобузька","МиколаївськаНовобузька",224]
[null,"Миколаївська","Веселинівська","МиколаївськаВеселинівська",224]
[null,"Миколаївська","Новоодеська","МиколаївськаНовоодеська",224]
[null,"Миколаївська","Врадіївська","МиколаївськаВрадіївська",224]
[null,"Миколаївська","Воскресенська","МиколаївськаВоскресенська",224]
[null,"Миколаївська","Казанківська","МиколаївськаКазанківська",224]
[null,"Миколаївська","Доманівська","МиколаївськаДоманівська",224]
[null,"Миколаївська","Єланецька","МиколаївськаЄланецька",224]
[null,"Миколаївська","Очаківська","МиколаївськаОчаківська",224]
[null,"Миколаївська","Шевченківська","МиколаївськаШевченківська",224]
[null,"Миколаївська","Березанська","МиколаївськаБерезанська",224]
[null,"Миколаївська","Братська","МиколаївськаБратська",224]
[null,"Миколаївська","Арбузинська","МиколаївськаАрбузинська",224]
[null,"Миколаївська","Костянтинівська","МиколаївськаКостянтинівська",224]
[null,"Миколаївська","Первомайська (Миколаївський)","МиколаївськаПервомайська (Миколаївський)",41]
[null,"Миколаївська","Ольшанська","МиколаївськаОльшанська",224]
[null,"Миколаївська","Олександрівська","МиколаївськаОлександрівська",224]
[null,"Миколаївська","Степівська","МиколаївськаСтепівська",224]
[null,"Миколаївська","Веснянська","МиколаївськаВеснянська",224]
[null,"Миколаївська","Інгульська","МиколаївськаІнгульська",224]
[null,"Миколаївська","Мигіївська","МиколаївськаМигіївська",224]
[null,"Миколаївська","Коблівська","МиколаївськаКоблівська",224]
[null,"Миколаївська","Прибужанівська","МиколаївськаПрибужанівська",224]
[null,"Миколаївська","Куцурубська","МиколаївськаКуцурубська",224]
[null,"Миколаївська","Галицинівська",{"$f":"B771&C771","v":"МиколаївськаГалицинівська"},224]
[null,"Миколаївська","Кам’яномостівська","МиколаївськаКам’яномостівська",224]
[null,"Миколаївська","Горохівська","МиколаївськаГорохівська",224]
[null,"Миколаївська","Мішково-Погорілівська","МиколаївськаМішково-Погорілівська",224]
[null,"Миколаївська","Синюхинобрідська","МиколаївськаСинюхинобрідська",224]
[null,"Миколаївська","Благодатненська","МиколаївськаБлагодатненська",224]
[null,"Миколаївська","Привільненська","МиколаївськаПривільненська",{"$f":"CODE(RIGHT(C777,1))","v":224}]
[null,"Миколаївська","Софіївська","МиколаївськаСофіївська",224]
[null,"Миколаївська","Вільнозапорізька","МиколаївськаВільнозапорізька",224]
[null,"Миколаївська","Дорошівська","МиколаївськаДорошівська",224]
[null,"Миколаївська","Бузька","МиколаївськаБузька",224]
[null,"Миколаївська","Чорноморська","МиколаївськаЧорноморська",224]
[null,"Миколаївська","Прибузька","МиколаївськаПрибузька",224]
[null,"Миколаївська","Новомар’ївська","МиколаївськаНовомар’ївська",224]
[null,"Миколаївська","Сухоєланецька","МиколаївськаСухоєланецька",224]
[null,"Миколаївська","Мостівська","МиколаївськаМостівська",224]
[null,"Миколаївська","Нечаянська","МиколаївськаНечаянська",224]
[null,"Миколаївська","Радсадівська","МиколаївськаРадсадівська",224]
[null,"Миколаївська","Широківська","МиколаївськаШироківська",224]
[null,"Миколаївська","Володимирівська","МиколаївськаВолодимирівська",224]
[null,"Одеська","Одеська","ОдеськаОдеська",224]
[null,"Одеська","Чорноморська","ОдеськаЧорноморська",224]
[null,"Одеська","Ізмаїльська","ОдеськаІзмаїльська",224]
[null,"Одеська","Білгород-Дністровська","ОдеськаБілгород-Дністровська",224]
[null,"Одеська","Подільська","ОдеськаПодільська",224]
[null,"Одеська","Саф’янівська","ОдеськаСаф’янівська",224]
[null,"Одеська","Ренійська","ОдеськаРенійська",224]
[null,"Одеська","Южненська","ОдеськаЮжненська",224]
[null,"Одеська","Балтська","ОдеськаБалтська",224]
[null,"Одеська","Кілійська","ОдеськаКілійська",224]
[null,"Одеська","Роздільнянська","ОдеськаРоздільнянська",224]
[null,"Одеська","Арцизька","ОдеськаАрцизька",224]
[null,"Одеська","Болградська","ОдеськаБолградська",224]
[null,"Одеська","Кодимська","ОдеськаКодимська",224]
[null,"Одеська","Татарбунарська","ОдеськаТатарбунарська",224]
[null,"Одеська","Біляївська","ОдеськаБіляївська",224]
[null,"Одеська","Тарутинська","ОдеськаТарутинська",224]
[null,"Одеська","Ананьївська","ОдеськаАнаньївська",224]
[null,"Одеська","Таїровська","ОдеськаТаїровська",224]
[null,"Одеська","Куяльницька","ОдеськаКуяльницька",224]
[null,"Одеська","Любашівська","ОдеськаЛюбашівська",224]
[null,"Одеська","Авангардівська","ОдеськаАвангардівська",224]
[null,"Одеська","Окнянська","ОдеськаОкнянська",224]
[null,"Одеська","Старокозацька","ОдеськаСтарокозацька",224]
[null,"Одеська","Фонтанська","ОдеськаФонтанська",224]
[null,"Одеська","Савранська","ОдеськаСавранська",224]
[null,"Одеська","Великодолинська","ОдеськаВеликодолинська",224]
[null,"Одеська","Саратська","ОдеськаСаратська",224]
[null,"Одеська","Березівська","ОдеськаБерезівська",224]
[null,"Одеська","Бородінська","ОдеськаБородінська",224]
[null,"Одеська","Овідіопольська","ОдеськаОвідіопольська",224]
[null,"Одеська","Доброславська","ОдеськаДоброславська",224]
[null,"Одеська","Шабівська","ОдеськаШабівська",224]
[null,"Одеська","Усатівська","ОдеськаУсатівська",224]
[null,"Одеська","Городненська","ОдеськаГородненська",224]
[null,"Одеська","Дальницька","ОдеськаДальницька",224]
[null,"Одеська","Великомихайлівська","ОдеськаВеликомихайлівська",224]
[null,"Одеська","Захарівська","ОдеськаЗахарівська",224]
[null,"Одеська","Мологівська","ОдеськаМологівська",224]
[null,"Одеська","Красносільська","ОдеськаКрасносільська",224]
[null,"Одеська","Вилківська","ОдеськаВилківська",224]
[null,"Одеська","Нерубайська","ОдеськаНерубайська",224]
[null,"Одеська","Маяківська","ОдеськаМаяківська",224]
[null,"Одеська","Великодальницька","ОдеськаВеликодальницька",224]
[null,"Одеська","Вигодянська",{"$f":"B835&C835","v":"ОдеськаВигодянська"},224]
[null,"Одеська","Суворовська","ОдеськаСуворовська",224]
[null,"Одеська","Василівська","ОдеськаВасилівська",224]
[null,"Одеська","Дачненська","ОдеськаДачненська",224]
[null,"Одеська","Теплодарська","ОдеськаТеплодарська",224]
[null,"Одеська","Ширяївська","ОдеськаШиряївська",224]
[null,"Одеська","Визирська","ОдеськаВизирська",{"$f":"CODE(RIGHT(C841,1))","v":224}]
[null,"Одеська","Кубейська","ОдеськаКубейська",224]
[null,"Одеська","Сергіївська","ОдеськаСергіївська",224]
[null,"Одеська","Яськівська","ОдеськаЯськівська",224]
[null,"Одеська","Курісовська","ОдеськаКурісовська",224]
[null,"Одеська","Знам’янська","ОдеськаЗнам’янська",224]
[null,"Одеська","Плахтіївська","ОдеськаПлахтіївська",224]
[null,"Одеська","Іванівська","ОдеськаІванівська",224]
[null,"Одеська","Раухівська","ОдеськаРаухівська",224]
[null,"Одеська","Петропавлівська","ОдеськаПетропавлівська",224]
[null,"Одеська","Зеленогірська","ОдеськаЗеленогірська",224]
[null,"Одеська","Миколаївська","ОдеськаМиколаївська",224]
[null,"Одеська","Успенівська","ОдеськаУспенівська",224]
[null,"Одеська","Степанівська","ОдеськаСтепанівська",224]
[null,"Одеська","Маразліївська","ОдеськаМаразліївська",224]
[null,"Одеська","Затишанська","ОдеськаЗатишанська",224]
[null,"Одеська","Коноплянська","ОдеськаКоноплянська",224]
[null,"Одеська","Великобуялицька","ОдеськаВеликобуялицька",224]
[null,"Одеська","Кулевчанська","ОдеськаКулевчанська",224]
[null,"Одеська","Дивізійська","ОдеськаДивізійська",224]
[null,"Одеська","Теплицька","ОдеськаТеплицька",224]
[null,"Одеська","Піщанська","ОдеськаПіщанська",224]
[null,"Одеська","Новоборисівська","ОдеськаНовоборисівська",224]
[null,"Одеська","Андрієво-Іванівська","ОдеськаАндрієво-Іванівська",224]
[null,"Одеська","Павлівська","ОдеськаПавлівська",224]
[null,"Одеська","Великоплосківська","ОдеськаВеликоплосківська",224]
[null,"Одеська","Цебриківська","ОдеськаЦебриківська",224]
[null,"Одеська","Петровірівська","ОдеськаПетровірівська",224]
[null,"Одеська","Кароліно-Бугазька","ОдеськаКароліно-Бугазька",224]
[null,"Одеська","Лиманська","ОдеськаЛиманська",224]
[null,"Одеська","Старомаяківська","ОдеськаСтаромаяківська",224]
[null,"Одеська","Криничненська","ОдеськаКриничненська",224]
[null,"Одеська","Розквітівська","ОдеськаРозквітівська",224]
[null,"Одеська","Новокальчевська","ОдеськаНовокальчевська",224]
[null,"Одеська","Долинська","ОдеськаДолинська",224]
[null,"Одеська","Тузлівська","ОдеськаТузлівська",224]
[null,"Одеська","Слобідська","ОдеськаСлобідська",224]
[null,"Одеська","Стрюківська","ОдеськаСтрюківська",224]
[null,"Одеська","Чогодарівська","ОдеськаЧогодарівська",224]
[null,"Полтавська","Полтавська","ПолтавськаПолтавська",224]
[null,"Полтавська","Кременчуцька","ПолтавськаКременчуцька",224]
[null,"Полтавська","Лубенська","ПолтавськаЛубенська",224]
[null,"Полтавська","Горішньоплавнівська","ПолтавськаГорішньоплавнівська",224]
[null,"Полтавська","Миргородська","ПолтавськаМиргородська",224]
[null,"Полтавська","Хорольська","ПолтавськаХорольська",224]
[null,"Полтавська","Пирятинська","ПолтавськаПирятинська",224]
[null,"Полтавська","Гадяцька","ПолтавськаГадяцька",224]
[null,"Полтавська","Решетилівська","ПолтавськаРешетилівська",224]
[null,"Полтавська","Кобеляцька","ПолтавськаКобеляцька",224]
[null,"Полтавська","Глобинська","ПолтавськаГлобинська",224]
[null,"Полтавська","Зіньківська","ПолтавськаЗіньківська",224]
[null,"Полтавська","Лохвицька","ПолтавськаЛохвицька",224]
[null,"Полтавська","Новосанжарська","ПолтавськаНовосанжарська",224]
[null,"Полтавська","Гребінківська","ПолтавськаГребінківська",224]
[null,"Полтавська","Карлівська","ПолтавськаКарлівська",224]
[null,"Полтавська","Шишацька","ПолтавськаШишацька",224]
[null,"Полтавська","Диканська","ПолтавськаДиканська",224]
[null,"Полтавська","Семенівська","ПолтавськаСеменівська",224]
[null,"Полтавська","Оржицька",{"$f":"B899&C899","v":"ПолтавськаОржицька"},224]
[null,"Полтавська","Градизька","ПолтавськаГрадизька",224]
[null,"Полтавська","Піщанська","ПолтавськаПіщанська",224]
[null,"Полтавська","Котелевська","ПолтавськаКотелевська",224]
[null,"Полтавська","Козельщинська","ПолтавськаКозельщинська",224]
[null,"Полтавська","Щербанівська","ПолтавськаЩербанівська",224]
[null,"Полтавська","Чутівська","ПолтавськаЧутівська",{"$f":"CODE(RIGHT(C905,1))","v":224}]
[null,"Полтавська","Терешківська","ПолтавськаТерешківська",224]
[null,"Полтавська","Машівська","ПолтавськаМашівська",224]
[null,"Полтавська","Білицька","ПолтавськаБілицька",224]
[null,"Полтавська","Заводська","ПолтавськаЗаводська",224]
[null,"Полтавська","Великобагачанська","ПолтавськаВеликобагачанська",224]
[null,"Полтавська","Кам’янопотоківська","ПолтавськаКам’янопотоківська",224]
[null,"Полтавська","Новооржицька","ПолтавськаНовооржицька",224]
[null,"Полтавська","Чорнухинська","ПолтавськаЧорнухинська",224]
[null,"Полтавська","Скороходівська","ПолтавськаСкороходівська",224]
[null,"Полтавська","Комишнянська","ПолтавськаКомишнянська",224]
[null,"Полтавська","Опішнянська","ПолтавськаОпішнянська",224]
[null,"Полтавська","Мачухівська","ПолтавськаМачухівська",224]
[null,"Полтавська","Сенчанська","ПолтавськаСенчанська",224]
[null,"Полтавська","Великосорочинська","ПолтавськаВеликосорочинська",224]
[null,"Полтавська","Ланнівська","ПолтавськаЛаннівська",224]
[null,"Полтавська","Великобудищанська","ПолтавськаВеликобудищанська",224]
[null,"Полтавська","Новоселівська","ПолтавськаНовоселівська",224]
[null,"Полтавська","Оболонська","ПолтавськаОболонська",224]
[null,"Полтавська","Михайлівська","ПолтавськаМихайлівська",224]
[null,"Полтавська","Гоголівська","ПолтавськаГоголівська",224]
[null,"Полтавська","Білоцерківська","ПолтавськаБілоцерківська",224]
[null,"Полтавська","Лютенська","ПолтавськаЛютенська",224]
[null,"Полтавська","Нехворощанська","ПолтавськаНехворощанська",224]
[null,"Полтавська","Коломацька (Полтавська)","ПолтавськаКоломацька (Полтавська)",41]
[null,"Полтавська","Омельницька","ПолтавськаОмельницька",224]
[null,"Полтавська","Ромоданівська","ПолтавськаРомоданівська",224]
[null,"Полтавська","Новогалещинська","ПолтавськаНовогалещинська",224]
[null,"Полтавська","Мартинівська","ПолтавськаМартинівська",224]
[null,"Полтавська","Великорублівська","ПолтавськаВеликорублівська",224]
[null,"Полтавська","Петрівсько-Роменська","ПолтавськаПетрівсько-Роменська",224]
[null,"Полтавська","Драбинівська","ПолтавськаДрабинівська",224]
[null,"Полтавська","Краснолуцька","ПолтавськаКраснолуцька",224]
[null,"Полтавська","Пришибська","ПолтавськаПришибська",224]
[null,"Полтавська","Сергіївська","ПолтавськаСергіївська",224]
[null,"Рівненська","Рівненська","РівненськаРівненська",224]
[null,"Рівненська","Сарненська","РівненськаСарненська",224]
[null,"Рівненська","Вараська","РівненськаВараська",224]
[null,"Рівненська","Березнівська","РівненськаБерезнівська",224]
[null,"Рівненська","Костопільська","РівненськаКостопільська",224]
[null,"Рівненська","Острозька","РівненськаОстрозька",224]
[null,"Рівненська","Рокитнівська","РівненськаРокитнівська",224]
[null,"Рівненська","Дубенська","РівненськаДубенська",224]
[null,"Рівненська","Дубровицька","РівненськаДубровицька",224]
[null,"Рівненська","Здолбунівська","РівненськаЗдолбунівська",224]
[null,"Рівненська","Зарічненська","РівненськаЗарічненська",224]
[null,"Рівненська","Володимирецька","РівненськаВолодимирецька",224]
[null,"Рівненська","Корецька","РівненськаКорецька",224]
[null,"Рівненська","Гощанська","РівненськаГощанська",224]
[null,"Рівненська","Млинівська","РівненськаМлинівська",224]
[null,"Рівненська","Радивилівська","РівненськаРадивилівська",224]
[null,"Рівненська","Мізоцька","РівненськаМізоцька",224]
[null,"Рівненська","Клеванська","РівненськаКлеванська",224]
[null,"Рівненська","Зорянська","РівненськаЗорянська",224]
[null,"Рівненська","Вирівська","РівненськаВирівська",224]
[null,"Рівненська","Березівська","РівненськаБерезівська",224]
[null,"Рівненська","Демидівська","РівненськаДемидівська",224]
[null,"Рівненська","Немовицька","РівненськаНемовицька",224]
[null,"Рівненська","Городоцька",{"$f":"B963&C963","v":"РівненськаГородоцька"},224]
[null,"Рівненська","Шпанівська","РівненськаШпанівська",224]
[null,"Рівненська","Клесівська","РівненськаКлесівська",224]
[null,"Рівненська","Здовбицька","РівненськаЗдовбицька",224]
[null,"Рівненська","Білокриницька","РівненськаБілокриницька",224]
[null,"Рівненська","Олександрійська","РівненськаОлександрійська",224]
[null,"Рівненська","Крупецька","РівненськаКрупецька",{"$f":"CODE(RIGHT(C969,1))","v":224}]
[null,"Рівненська","Тараканівська","РівненськаТараканівська",224]
[null,"Рівненська","Великомежиріцька","РівненськаВеликомежиріцька",224]
[null,"Рівненська","Смизька","РівненськаСмизька",224]
[null,"Рівненська","Корнинська","РівненськаКорнинська",224]
[null,"Рівненська","Рафалівська","РівненськаРафалівська",224]
[null,"Рівненська","Козинська","РівненськаКозинська",224]
[null,"Рівненська","Головинська","РівненськаГоловинська",224]
[null,"Рівненська","Степанська","РівненськаСтепанська",224]
[null,"Рівненська","Старосільська","РівненськаСтаросільська",224]
[null,"Рівненська","Бабинська","РівненськаБабинська",224]
[null,"Рівненська","Мирогощанська","РівненськаМирогощанська",224]
[null,"Рівненська","Соснівська","РівненськаСоснівська",224]
[null,"Рівненська","Деражненська","РівненськаДеражненська",224]
[null,"Рівненська","Каноницька","РівненськаКаноницька",224]
[null,"Рівненська","Миляцька","РівненськаМиляцька",224]
[null,"Рівненська","Локницька","РівненськаЛокницька",224]
[null,"Рівненська","Острожецька","РівненськаОстрожецька",224]
[null,"Рівненська","Дядьковицька","РівненськаДядьковицька",224]
[null,"Рівненська","Антонівська","РівненськаАнтонівська",224]
[null,"Рівненська","Висоцька","РівненськаВисоцька",224]
[null,"Рівненська","Полицька","РівненськаПолицька",224]
[null,"Рівненська","Малолюбашанська","РівненськаМалолюбашанська",224]
[null,"Рівненська","Малинська","РівненськаМалинська",224]
[null,"Рівненська","Привільненська","РівненськаПривільненська",224]
[null,"Рівненська","Бокіймівська","РівненськаБокіймівська",224]
[null,"Рівненська","Варковицька","РівненськаВарковицька",224]
[null,"Рівненська","Вербська","РівненськаВербська",224]
[null,"Рівненська","Семидубська","РівненськаСемидубська",224]
[null,"Рівненська","Бугринська","РівненськаБугринська",224]
[null,"Рівненська","Великоомелянська","РівненськаВеликоомелянська",224]
[null,"Рівненська","Боремельська","РівненськаБоремельська",224]
[null,"Рівненська","Повчанська","РівненськаПовчанська",224]
[null,"Рівненська","Ярославицька","РівненськаЯрославицька",224]
[null,"Рівненська","Підлозцівська","РівненськаПідлозцівська",224]
[null,"Сумська","Сумська","СумськаСумська",224]
[null,"Сумська","Шосткинська","СумськаШосткинська",224]
[null,"Сумська","Конотопська","СумськаКонотопська",224]
[null,"Сумська","Роменська","СумськаРоменська",224]
[null,"Сумська","Охтирська","СумськаОхтирська",224]
[null,"Сумська","Лебединська","СумськаЛебединська",224]
[null,"Сумська","Глухівська","СумськаГлухівська",224]
[null,"Сумська","Кролевецька","СумськаКролевецька",224]
[null,"Сумська","Тростянецька","СумськаТростянецька",224]
[null,"Сумська","Білопільська","СумськаБілопільська",224]
[null,"Сумська","Краснопільська","СумськаКраснопільська",224]
[null,"Сумська","Путивльська","СумськаПутивльська",224]
[null,"Сумська","Буринська","СумськаБуринська",224]
[null,"Сумська","Недригайлівська","СумськаНедригайлівська",224]
[null,"Сумська","Попівська","СумськаПопівська",224]
[null,"Сумська","Липоводолинська","СумськаЛиповодолинська",224]
[null,"Сумська","Миколаївська (Суміський, селищна)","СумськаМиколаївська (Суміський, селищна)",41]
[null,"Сумська","Степанівська","СумськаСтепанівська",224]
[null,"Сумська","Середино-Будська","СумськаСередино-Будська",224]
[null,"Сумська","Великописарівська","СумськаВеликописарівська",224]
[null,"Сумська","Садівська","СумськаСадівська",224]
[null,"Сумська","Дубов’язівська","СумськаДубов’язівська",224]
[null,"Сумська","Чернеччинська","СумськаЧернеччинська",224]
[null,"Сумська","Андріяшівська",{"$f":"B1027&C1027","v":"СумськаАндріяшівська"},224]
[null,"Сумська","Свеська","СумськаСвеська",224]
[null,"Сумська","Ворожбянська","СумськаВорожбянська",224]
[null,"Сумська","Ямпільська","СумськаЯмпільська",224]
[null,"Сумська","Миколаївська (Суміський, сільська)","СумськаМиколаївська (Суміський, сільська)",41]
[null,"Сумська","Хотінська","СумськаХотінська",224]
[null,"Сумська","Кириківська","СумськаКириківська",{"$f":"CODE(RIGHT(C1033,1))","v":224}]
[null,"Сумська","Верхньосироватська","СумськаВерхньосироватська",224]
[null,"Сумська","Нижньосироватська","СумськаНижньосироватська",224]
[null,"Сумська","Хмелівська","СумськаХмелівська",224]
[null,"Сумська","Юнаківська","СумськаЮнаківська",224]
[null,"Сумська","Чупахівська","СумськаЧупахівська",224]
[null,"Сумська","Есманьська","СумськаЕсманьська",224]
[null,"Сумська","Дружбівська","СумськаДружбівська",224]
[null,"Сумська","Грунська","СумськаГрунська",224]
[null,"Сумська","Боромлянська","СумськаБоромлянська",224]
[null,"Сумська","Новослобідська","СумськаНовослобідська",224]
[null,"Сумська","Березівська","СумськаБерезівська",224]
[null,"Сумська","Зноб-Новгородська","СумськаЗноб-Новгородська",224]
[null,"Сумська","Синівська","СумськаСинівська",224]
[null,"Сумська","Вільшанська","СумськаВільшанська",224]
[null,"Сумська","Бочечківська","СумськаБочечківська",224]
[null,"Сумська","Миропільська","СумськаМиропільська",224]
[null,"Сумська","Шалигинська","СумськаШалигинська",224]
[null,"Сумська","Річківська","СумськаРічківська",224]
[null,"Сумська","Коровинська","СумськаКоровинська",224]
[null,"Сумська","Бездрицька","СумськаБездрицька",224]
[null,"Сумська","Комишанська","СумськаКомишанська",224]
[null,"Тернопільська","Тернопільська","ТернопільськаТернопільська",224]
[null,"Тернопільська","Кременецька","ТернопільськаКременецька",224]
[null,"Тернопільська","Збаразька","ТернопільськаЗбаразька",224]
[null,"Тернопільська","Бучацька","ТернопільськаБучацька",224]
[null,"Тернопільська","Чортківська","ТернопільськаЧортківська",224]
[null,"Тернопільська","Теребовлянська","ТернопільськаТеребовлянська",224]
[null,"Тернопільська","Борщівська","ТернопільськаБорщівська",224]
[null,"Тернопільська","Заліщицька","ТернопільськаЗаліщицька",224]
[null,"Тернопільська","Бережанська","ТернопільськаБережанська",224]
[null,"Тернопільська","Козівська","ТернопільськаКозівська",224]
[null,"Тернопільська","Шумська","ТернопільськаШумська",224]
[null,"Тернопільська","Великоберезовицька","ТернопільськаВеликоберезовицька",224]
[null,"Тернопільська","Лановецька","ТернопільськаЛановецька",224]
[null,"Тернопільська","Монастириська","ТернопільськаМонастириська",224]
[null,"Тернопільська","Зборівська","ТернопільськаЗборівська",224]
[null,"Тернопільська","Підволочиська","ТернопільськаПідволочиська",224]
[null,"Тернопільська","Товстенська","ТернопільськаТовстенська",224]
[null,"Тернопільська","Почаївська","ТернопільськаПочаївська",224]
[null,"Тернопільська","Вишнівецька","ТернопільськаВишнівецька",224]
[null,"Тернопільська","Микулинецька","ТернопільськаМикулинецька",224]
[null,"Тернопільська","Мельнице-Подільська","ТернопільськаМельнице-Подільська",224]
[null,"Тернопільська","Підгаєцька","ТернопільськаПідгаєцька",224]
[null,"Тернопільська","Гусятинська","ТернопільськаГусятинська",224]
[null,"Тернопільська","Золотопотіцька","ТернопільськаЗолотопотіцька",224]
[null,"Тернопільська","Хоростківська","ТернопільськаХоростківська",224]
[null,"Тернопільська","Скалатська","ТернопільськаСкалатська",224]
[null,"Тернопільська","Копичинецька","ТернопільськаКопичинецька",224]
[null,"Тернопільська","Байковецька","ТернопільськаБайковецька",224]
[null,"Тернопільська","Великогаївська","ТернопільськаВеликогаївська",224]
[null,"Тернопільська","Білецька","ТернопільськаБілецька",224]
[null,"Тернопільська","Білобожницька","ТернопільськаБілобожницька",224]
[null,"Тернопільська","Залозецька","ТернопільськаЗалозецька",224]
[null,"Тернопільська","Скала-Подільська","ТернопільськаСкала-Подільська",224]
[null,"Тернопільська","Гримайлівська","ТернопільськаГримайлівська",224]
[null,"Тернопільська","Трибухівська","ТернопільськаТрибухівська",224]
[null,"Тернопільська","Нагірянська","ТернопільськаНагірянська",224]
[null,"Тернопільська","Скориківська",{"$f":"B1091&C1091","v":"ТернопільськаСкориківська"},224]
[null,"Тернопільська","Васильковецька","ТернопільськаВасильковецька",224]
[null,"Тернопільська","Золотниківська","ТернопільськаЗолотниківська",224]
[null,"Тернопільська","Підгороднянська","ТернопільськаПідгороднянська",224]
[null,"Тернопільська","Озернянська","ТернопільськаОзернянська",224]
[null,"Тернопільська","Заводська","ТернопільськаЗаводська",224]
[null,"Тернопільська","Нараївська","ТернопільськаНараївська",{"$f":"CODE(RIGHT(C1097,1))","v":224}]
[null,"Тернопільська","Колиндянська","ТернопільськаКолиндянська",224]
[null,"Тернопільська","Саранчуківська","ТернопільськаСаранчуківська",224]
[null,"Тернопільська","Борсуківська","ТернопільськаБорсуківська",224]
[null,"Тернопільська","Великодедеркальська","ТернопільськаВеликодедеркальська",224]
[null,"Тернопільська","Коропецька","ТернопільськаКоропецька",224]
[null,"Тернопільська","Великобірківська","ТернопільськаВеликобірківська",224]
[null,"Тернопільська","Лопушненська","ТернопільськаЛопушненська",224]
[null,"Тернопільська","Іване-Пустенська","ТернопільськаІване-Пустенська",224]
[null,"Тернопільська","Козлівська","ТернопільськаКозлівська",224]
[null,"Тернопільська","Іванівська","ТернопільськаІванівська",224]
[null,"Тернопільська","Більче-Золотецька","ТернопільськаБільче-Золотецька",224]
[null,"Тернопільська","Купчинецька","ТернопільськаКупчинецька",224]
[null,"Харківська","Харківська","ХарківськаХарківська",224]
[null,"Харківська","Лозівська","ХарківськаЛозівська",224]
[null,"Харківська","Куп’янська","ХарківськаКуп’янська",224]
[null,"Харківська","Ізюмська","ХарківськаІзюмська",224]
[null,"Харківська","Балаклійська","ХарківськаБалаклійська",224]
[null,"Харківська","Дергачівська","ХарківськаДергачівська",224]
[null,"Харківська","Зміївська","ХарківськаЗміївська",224]
[null,"Харківська","Чугуївська","ХарківськаЧугуївська",224]
[null,"Харківська","Богодухівська","ХарківськаБогодухівська",224]
[null,"Харківська","Вовчанська","ХарківськаВовчанська",224]
[null,"Харківська","Солоницівська","ХарківськаСолоницівська",224]
[null,"Харківська","Пісочинська","ХарківськаПісочинська",224]
[null,"Харківська","Красноградська","ХарківськаКрасноградська",224]
[null,"Харківська","Первомайська","ХарківськаПервомайська",224]
[null,"Харківська","Валківська","ХарківськаВалківська",224]
[null,"Харківська","Люботинська","ХарківськаЛюботинська",224]
[null,"Харківська","Височанська","ХарківськаВисочанська",224]
[null,"Харківська","Слобожанська","ХарківськаСлобожанська",224]
[null,"Харківська","Краснокутська","ХарківськаКраснокутська",224]
[null,"Харківська","Мереф’янська","ХарківськаМереф’янська",224]
[null,"Харківська","Золочівська","ХарківськаЗолочівська",224]
[null,"Харківська","Безлюдівська","ХарківськаБезлюдівська",224]
[null,"Харківська","Донецька","ХарківськаДонецька",224]
[null,"Харківська","Нововодолазька","ХарківськаНововодолазька",224]
[null,"Харківська","Кегичівська","ХарківськаКегичівська",224]
[null,"Харківська","Сахновщинська","ХарківськаСахновщинська",224]
[null,"Харківська","Барвінківська","ХарківськаБарвінківська",224]
[null,"Харківська","Шевченківська","ХарківськаШевченківська",224]
[null,"Харківська","Близнюківська","ХарківськаБлизнюківська",224]
[null,"Харківська","Дворічанська","ХарківськаДворічанська",224]
[null,"Харківська","Новопокровська","ХарківськаНовопокровська",224]
[null,"Харківська","Борівська","ХарківськаБорівська",224]
[null,"Харківська","Великобурлуцька","ХарківськаВеликобурлуцька",224]
[null,"Харківська","Зачепилівська","ХарківськаЗачепилівська",224]
[null,"Харківська","Південноміська","ХарківськаПівденноміська",224]
[null,"Харківська","Роганська","ХарківськаРоганська",224]
[null,"Харківська","Липецька","ХарківськаЛипецька",224]
[null,"Харківська","Малоданилівська","ХарківськаМалоданилівська",224]
[null,"Харківська","Чкаловська","ХарківськаЧкаловська",224]
[null,"Харківська","Наталинська","ХарківськаНаталинська",224]
[null,"Харківська","Савинська","ХарківськаСавинська",224]
[null,"Харківська","Курилівська","ХарківськаКурилівська",224]
[null,"Харківська","Печенізька","ХарківськаПеченізька",224]
[null,"Харківська","Старовірівська","ХарківськаСтаровірівська",224]
[null,"Харківська","Малинівська","ХарківськаМалинівська",224]
[null,"Харківська","Циркунівська",{"$f":"B1155&C1155","v":"ХарківськаЦиркунівська"},224]
[null,"Харківська","Оскільська","ХарківськаОскільська",224]
[null,"Харківська","Вільхівська","ХарківськаВільхівська",224]
[null,"Харківська","Старосалтівська","ХарківськаСтаросалтівська",224]
[null,"Харківська","Олексіївська","ХарківськаОлексіївська",224]
[null,"Харківська","Коломацька (Харківська)","ХарківськаКоломацька (Харківська)",41]
[null,"Харківська","Вільхуватська","ХарківськаВільхуватська",{"$f":"CODE(RIGHT(C1161,1))","v":224}]
[null,"Харківська","Кіндрашівська","ХарківськаКіндрашівська",224]
[null,"Харківська","Біляївська","ХарківськаБіляївська",224]
[null,"Харківська","Петропавлівська","ХарківськаПетропавлівська",224]
[null,"Харківська","Куньєвська","ХарківськаКуньєвська",224]
[null,"Херсонська","Херсонська","ХерсонськаХерсонська",224]
[null,"Херсонська","Новокаховська","ХерсонськаНовокаховська",224]
[null,"Херсонська","Генічеська","ХерсонськаГенічеська",224]
[null,"Херсонська","Каховська","ХерсонськаКаховська",224]
[null,"Херсонська","Олешківська","ХерсонськаОлешківська",224]
[null,"Херсонська","Скадовська","ХерсонськаСкадовська",224]
[null,"Херсонська","Новотроїцька","ХерсонськаНовотроїцька",224]
[null,"Херсонська","Голопристанська","ХерсонськаГолопристанська",224]
[null,"Херсонська","Білозерська","ХерсонськаБілозерська",224]
[null,"Херсонська","Бериславська","ХерсонськаБериславська",224]
[null,"Херсонська","Чаплинська","ХерсонськаЧаплинська",224]
[null,"Херсонська","Каланчацька","ХерсонськаКаланчацька",224]
[null,"Херсонська","Таврійська","ХерсонськаТаврійська",224]
[null,"Херсонська","Великоолександрівська","ХерсонськаВеликоолександрівська",224]
[null,"Херсонська","Чорнобаївська","ХерсонськаЧорнобаївська",224]
[null,"Херсонська","Горностаївська","ХерсонськаГорностаївська",224]
[null,"Херсонська","Нижньосірогозька","ХерсонськаНижньосірогозька",224]
[null,"Херсонська","Дар’ївська","ХерсонськаДар’ївська",224]
[null,"Херсонська","Іванівська","ХерсонськаІванівська",224]
[null,"Херсонська","Нововоронцовська","ХерсонськаНововоронцовська",224]
[null,"Херсонська","Ювілейна","ХерсонськаЮвілейна",224]
[null,"Херсонська","Виноградівська","ХерсонськаВиноградівська",224]
[null,"Херсонська","Великолепетиська","ХерсонськаВеликолепетиська",224]
[null,"Херсонська","Верхньорогачицька","ХерсонськаВерхньорогачицька",224]
[null,"Херсонська","Високопільська","ХерсонськаВисокопільська",224]
[null,"Херсонська","Бехтерська","ХерсонськаБехтерська",224]
[null,"Херсонська","Станіславська","ХерсонськаСтаніславська",224]
[null,"Херсонська","Тягинська","ХерсонськаТягинська",224]
[null,"Херсонська","Зеленопідська","ХерсонськаЗеленопідська",224]
[null,"Херсонська","Чулаківська","ХерсонськаЧулаківська",224]
[null,"Херсонська","Любимівська","ХерсонськаЛюбимівська",224]
[null,"Херсонська","Великокопанівська","ХерсонськаВеликокопанівська",224]
[null,"Херсонська","Милівська","ХерсонськаМилівська",224]
[null,"Херсонська","Лазурненська","ХерсонськаЛазурненська",224]
[null,"Херсонська","Асканія-Нова","ХерсонськаАсканія-Нова",224]
[null,"Херсонська","Новоолександрівська","ХерсонськаНовоолександрівська",224]
[null,"Херсонська","Новомиколаївська","ХерсонськаНовомиколаївська",224]
[null,"Херсонська","Новорайська","ХерсонськаНоворайська",224]
[null,"Херсонська","Хрестівська","ХерсонськаХрестівська",224]
[null,"Херсонська","Тавричанська","ХерсонськаТавричанська",224]
[null,"Херсонська","Присиваська","ХерсонськаПрисиваська",224]
[null,"Херсонська","Долматівська","ХерсонськаДолматівська",224]
[null,"Херсонська","Рубанівська","ХерсонськаРубанівська",224]
[null,"Херсонська","Костянтинівська","ХерсонськаКостянтинівська",224]
[null,"Херсонська","Мирненська","ХерсонськаМирненська",224]
[null,"Херсонська","Музиківська","ХерсонськаМузиківська",224]
[null,"Херсонська","Борозенська","ХерсонськаБорозенська",224]
[null,"Херсонська","Калинівська","ХерсонськаКалинівська",224]
[null,"Херсонська","Кочубеївська","ХерсонськаКочубеївська",224]
[null,"Хмельницька","Хмельницька","ХмельницькаХмельницька",224]
[null,"Хмельницька","Кам’янець-Подільська","ХмельницькаКам’янець-Подільська",224]
[null,"Хмельницька","Старокостянтинівська","ХмельницькаСтарокостянтинівська",224]
[null,"Хмельницька","Шепетівська","ХмельницькаШепетівська",224]
[null,"Хмельницька","Нетішинська",{"$f":"B1219&C1219","v":"ХмельницькаНетішинська"},224]
[null,"Хмельницька","Дунаєвецька","ХмельницькаДунаєвецька",224]
[null,"Хмельницька","Славутська","ХмельницькаСлавутська",224]
[null,"Хмельницька","Городоцька","ХмельницькаГородоцька",224]
[null,"Хмельницька","Волочиська","ХмельницькаВолочиська",224]
[null,"Хмельницька","Полонська","ХмельницькаПолонська",224]
[null,"Хмельницька","Красилівська","ХмельницькаКрасилівська",{"$f":"CODE(RIGHT(C1225,1))","v":224}]
[null,"Хмельницька","Ізяславська","ХмельницькаІзяславська",224]
[null,"Хмельницька","Чемеровецька","ХмельницькаЧемеровецька",224]
[null,"Хмельницька","Новоушицька","ХмельницькаНовоушицька",224]
[null,"Хмельницька","Теофіпольська","ХмельницькаТеофіпольська",224]
[null,"Хмельницька","Деражнянська","ХмельницькаДеражнянська",224]
[null,"Хмельницька","Білогірська","ХмельницькаБілогірська",224]
[null,"Хмельницька","Ярмолинецька","ХмельницькаЯрмолинецька",224]
[null,"Хмельницька","Старосинявська","ХмельницькаСтаросинявська",224]
[null,"Хмельницька","Летичівська","ХмельницькаЛетичівська",224]
[null,"Хмельницька","Віньковецька","ХмельницькаВіньковецька",224]
[null,"Хмельницька","Гуменецька","ХмельницькаГуменецька",224]
[null,"Хмельницька","Судилківська","ХмельницькаСудилківська",224]
[null,"Хмельницька","Чорноострівська","ХмельницькаЧорноострівська",224]
[null,"Хмельницька","Слобідсько-Кульчієвецька","ХмельницькаСлобідсько-Кульчієвецька",224]
[null,"Хмельницька","Розсошанська","ХмельницькаРозсошанська",224]
[null,"Хмельницька","Антонінська","ХмельницькаАнтонінська",224]
[null,"Хмельницька","Новодунаєвецька","ХмельницькаНоводунаєвецька",224]
[null,"Хмельницька","Сатанівська","ХмельницькаСатанівська",224]
[null,"Хмельницька","Орининська","ХмельницькаОрининська",224]
[null,"Хмельницька","Берездівська","ХмельницькаБерездівська",224]
[null,"Хмельницька","Улашанівська","ХмельницькаУлашанівська",224]
[null,"Хмельницька","Жванецька","ХмельницькаЖванецька",224]
[null,"Хмельницька","Вiйтовецька","ХмельницькаВiйтовецька",224]
[null,"Хмельницька","Понінківська","ХмельницькаПонінківська",224]
[null,"Хмельницька","Лісовогринівецька","ХмельницькаЛісовогринівецька",224]
[null,"Хмельницька","Гвардійська","ХмельницькаГвардійська",224]
[null,"Хмельницька","Меджибізька","ХмельницькаМеджибізька",224]
[null,"Хмельницька","Закупненська","ХмельницькаЗакупненська",224]
[null,"Хмельницька","Плужненська","ХмельницькаПлужненська",224]
[null,"Хмельницька","Староушицька","ХмельницькаСтароушицька",224]
[null,"Хмельницька","Грицівська","ХмельницькаГрицівська",224]
[null,"Хмельницька","Маківська","ХмельницькаМаківська",224]
[null,"Хмельницька","Ленковецька","ХмельницькаЛенковецька",224]
[null,"Хмельницька","Смотрицька","ХмельницькаСмотрицька",224]
[null,"Хмельницька","Вовковинецька","ХмельницькаВовковинецька",224]
[null,"Хмельницька","Ганнопільська","ХмельницькаГаннопільська",224]
[null,"Хмельницька","Ямпільська","ХмельницькаЯмпільська",224]
[null,"Хмельницька","Наркевицька","ХмельницькаНаркевицька",224]
[null,"Хмельницька","Староостропільська","ХмельницькаСтароостропільська",224]
[null,"Хмельницька","Михайлюцька","ХмельницькаМихайлюцька",224]
[null,"Хмельницька","Сахновецька","ХмельницькаСахновецька",224]
[null,"Хмельницька","Заслучненська","ХмельницькаЗаслучненська",224]
[null,"Хмельницька","Китайгородська","ХмельницькаКитайгородська",224]
[null,"Хмельницька","Миролюбненська","ХмельницькаМиролюбненська",224]
[null,"Хмельницька","Солобковецька","ХмельницькаСолобковецька",224]
[null,"Хмельницька","Щиборівська","ХмельницькаЩиборівська",224]
[null,"Хмельницька","Зіньківська","ХмельницькаЗіньківська",224]
[null,"Хмельницька","Крупецька","ХмельницькаКрупецька",224]
[null,"Хмельницька","Гуківська","ХмельницькаГуківська",224]
[null,"Черкаська","Черкаська","ЧеркаськаЧеркаська",224]
[null,"Черкаська","Уманська","ЧеркаськаУманська",224]
[null,"Черкаська","Смілянська","ЧеркаськаСмілянська",224]
[null,"Черкаська","Золотоніська","ЧеркаськаЗолотоніська",224]
[null,"Черкаська","Монастирищенська","ЧеркаськаМонастирищенська",224]
[null,"Черкаська","Шполянська","ЧеркаськаШполянська",224]
[null,"Черкаська","Христинівська","ЧеркаськаХристинівська",224]
[null,"Черкаська","Тальнівська","ЧеркаськаТальнівська",224]
[null,"Черкаська","Жашківська",{"$f":"B1283&C1283","v":"ЧеркаськаЖашківська"},224]
[null,"Черкаська","Звенигородська","ЧеркаськаЗвенигородська",224]
[null,"Черкаська","Канівська","ЧеркаськаКанівська",224]
[null,"Черкаська","Городищенська","ЧеркаськаГородищенська",224]
[null,"Черкаська","Ватутінська","ЧеркаськаВатутінська",224]
[null,"Черкаська","Корсунь-Шевченківська","ЧеркаськаКорсунь-Шевченківська",224]
[null,"Черкаська","Чорнобаївська","ЧеркаськаЧорнобаївська",{"$f":"CODE(RIGHT(C1289,1))","v":224}]
[null,"Черкаська","Кам’янська","ЧеркаськаКам’янська",224]
[null,"Черкаська","Чигиринська","ЧеркаськаЧигиринська",224]
[null,"Черкаська","Іркліївська","ЧеркаськаІркліївська",224]
[null,"Черкаська","Маньківська","ЧеркаськаМаньківська",224]
[null,"Черкаська","Драбівська","ЧеркаськаДрабівська",224]
[null,"Черкаська","Паланська","ЧеркаськаПаланська",224]
[null,"Черкаська","Мошнівська","ЧеркаськаМошнівська",224]
[null,"Черкаська","Червонослобідська","ЧеркаськаЧервонослобідська",224]
[null,"Черкаська","Лисянська","ЧеркаськаЛисянська",224]
[null,"Черкаська","Руськополянська","ЧеркаськаРуськополянська",224]
[null,"Черкаська","Катеринопільська","ЧеркаськаКатеринопільська",224]
[null,"Черкаська","Шрамківська","ЧеркаськаШрамківська",224]
[null,"Черкаська","Ладижинська","ЧеркаськаЛадижинська",224]
[null,"Черкаська","Новодмитрівська","ЧеркаськаНоводмитрівська",224]
[null,"Черкаська","Дмитрушківська","ЧеркаськаДмитрушківська",224]
[null,"Черкаська","Балаклеївська","ЧеркаськаБалаклеївська",224]
[null,"Черкаська","Вільшанська","ЧеркаськаВільшанська",224]
[null,"Черкаська","Ротмістрівська","ЧеркаськаРотмістрівська",224]
[null,"Черкаська","Білозірська","ЧеркаськаБілозірська",224]
[null,"Черкаська","Леськівська","ЧеркаськаЛеськівська",224]
[null,"Черкаська","Гельмязівська","ЧеркаськаГельмязівська",224]
[null,"Черкаська","Стеблівська","ЧеркаськаСтеблівська",224]
[null,"Черкаська","Степанківська","ЧеркаськаСтепанківська",224]
[null,"Черкаська","Степанецька","ЧеркаськаСтепанецька",224]
[null,"Черкаська","Піщанська","ЧеркаськаПіщанська",224]
[null,"Черкаська","Бабанська","ЧеркаськаБабанська",224]
[null,"Черкаська","Селищенська","ЧеркаськаСелищенська",224]
[null,"Черкаська","Набутівська","ЧеркаськаНабутівська",224]
[null,"Черкаська","Михайлівська","ЧеркаськаМихайлівська",224]
[null,"Черкаська","Водяницька","ЧеркаськаВодяницька",224]
[null,"Черкаська","Березняківська","ЧеркаськаБерезняківська",224]
[null,"Черкаська","Тернівська","ЧеркаськаТернівська",224]
[null,"Черкаська","Мліївська","ЧеркаськаМліївська",224]
[null,"Черкаська","Буцька","ЧеркаськаБуцька",224]
[null,"Черкаська","Сагунівська","ЧеркаськаСагунівська",224]
[null,"Черкаська","Вознесенська","ЧеркаськаВознесенська",224]
[null,"Черкаська","Єрківська","ЧеркаськаЄрківська",224]
[null,"Черкаська","Будищенська","ЧеркаськаБудищенська",224]
[null,"Черкаська","Мокрокалигірська","ЧеркаськаМокрокалигірська",224]
[null,"Черкаська","Шевченківська","ЧеркаськаШевченківська",224]
[null,"Черкаська","Бобрицька","ЧеркаськаБобрицька",224]
[null,"Черкаська","Іваньківська","ЧеркаськаІваньківська",224]
[null,"Черкаська","Баштечківська","ЧеркаськаБаштечківська",224]
[null,"Черкаська","Виноградська","ЧеркаськаВиноградська",224]
[null,"Черкаська","Матусівська","ЧеркаськаМатусівська",224]
[null,"Черкаська","Зорівська","ЧеркаськаЗорівська",224]
[null,"Черкаська","Медведівська","ЧеркаськаМедведівська",224]
[null,"Черкаська","Ліплявська","ЧеркаськаЛіплявська",224]
[null,"Черкаська","Бужанська","ЧеркаськаБужанська",224]
[null,"Черкаська","Великохутірська","ЧеркаськаВеликохутірська",224]
[null,"Черкаська","Лип’янська","ЧеркаськаЛип’янська",224]
[null,"Чернівецька","Чернівецька","ЧернівецькаЧернівецька",224]
[null,"Чернівецька","Сторожинецька","ЧернівецькаСторожинецька",224]
[null,"Чернівецька","Сокирянська","ЧернівецькаСокирянська",224]
[null,"Чернівецька","Кельменецька","ЧернівецькаКельменецька",224]
[null,"Чернівецька","Новоселицька","ЧернівецькаНовоселицька",224]
[null,"Чернівецька","Кіцманська","ЧернівецькаКіцманська",224]
[null,"Чернівецька","Мамаївська",{"$f":"B1347&C1347","v":"ЧернівецькаМамаївська"},224]
[null,"Чернівецька","Глибоцька","ЧернівецькаГлибоцька",224]
[null,"Чернівецька","Берегометська","ЧернівецькаБерегометська",224]
[null,"Чернівецька","Хотинська","ЧернівецькаХотинська",224]
[null,"Чернівецька","Герцаївська","ЧернівецькаГерцаївська",224]
[null,"Чернівецька","Вижницька","ЧернівецькаВижницька",224]
[null,"Чернівецька","Клішковецька","ЧернівецькаКлішковецька",{"$f":"CODE(RIGHT(C1353,1))","v":224}]
[null,"Чернівецька","Чудейська","ЧернівецькаЧудейська",224]
[null,"Чернівецька","Ванчиковецька","ЧернівецькаВанчиковецька",224]
[null,"Чернівецька","Великокучурівська","ЧернівецькаВеликокучурівська",224]
[null,"Чернівецька","Острицька","ЧернівецькаОстрицька",224]
[null,"Чернівецька","Недобоївська","ЧернівецькаНедобоївська",224]
[null,"Чернівецька","Вашківецька","ЧернівецькаВашківецька",224]
[null,"Чернівецька","Топорівська","ЧернівецькаТопорівська",224]
[null,"Чернівецька","Путильська","ЧернівецькаПутильська",224]
[null,"Чернівецька","Красноїльська","ЧернівецькаКрасноїльська",224]
[null,"Чернівецька","Кам’янська","ЧернівецькаКам’янська",224]
[null,"Чернівецька","Новодністровська","ЧернівецькаНоводністровська",224]
[null,"Чернівецька","Юрковецька","ЧернівецькаЮрковецька",224]
[null,"Чернівецька","Чагорська","ЧернівецькаЧагорська",224]
[null,"Чернівецька","Кам’янецька","ЧернівецькаКам’янецька",224]
[null,"Чернівецька","Магальська","ЧернівецькаМагальська",224]
[null,"Чернівецька","Заставнівська","ЧернівецькаЗаставнівська",224]
[null,"Чернівецька","Брусницька","ЧернівецькаБрусницька",224]
[null,"Чернівецька","Петровецька","ЧернівецькаПетровецька",224]
[null,"Чернівецька","Веренчанська","ЧернівецькаВеренчанська",224]
[null,"Чернівецька","Сучевенська","ЧернівецькаСучевенська",224]
[null,"Чернівецька","Кадубовецька","ЧернівецькаКадубовецька",224]
[null,"Чернівецька","Тарашанська","ЧернівецькаТарашанська",224]
[null,"Чернівецька","Неполоковецька","ЧернівецькаНеполоковецька",224]
[null,"Чернівецька","Банилівська","ЧернівецькаБанилівська",224]
[null,"Чернівецька","Волоківська","ЧернівецькаВолоківська",224]
[null,"Чернівецька","Лівинецька","ЧернівецькаЛівинецька",224]
[null,"Чернівецька","Ставчанська","ЧернівецькаСтавчанська",224]
[null,"Чернівецька","Рукшинська","ЧернівецькаРукшинська",224]
[null,"Чернівецька","Боянська","ЧернівецькаБоянська",224]
[null,"Чернівецька","Тереблеченська","ЧернівецькаТереблеченська",224]
[null,"Чернівецька","Вікнянська","ЧернівецькаВікнянська",224]
[null,"Чернівецька","Горішньошеровецька","ЧернівецькаГорішньошеровецька",224]
[null,"Чернівецька","Усть-Путильська","ЧернівецькаУсть-Путильська",224]
[null,"Чернівецька","Конятинська","ЧернівецькаКонятинська",224]
[null,"Чернівецька","Селятинська","ЧернівецькаСелятинська",224]
[null,"Чернівецька","Вашковецька","ЧернівецькаВашковецька",224]
[null,"Чернівецька","Карапчівська","ЧернівецькаКарапчівська",224]
[null,"Чернівецька","Кострижівська","ЧернівецькаКострижівська",224]
[null,"Чернівецька","Мамалигівська","ЧернівецькаМамалигівська",224]
[null,"Чернігівська","Чернігівська","ЧернігівськаЧернігівська",224]
[null,"Чернігівська","Ніжинська","ЧернігівськаНіжинська",224]
[null,"Чернігівська","Прилуцька","ЧернігівськаПрилуцька",224]
[null,"Чернігівська","Бахмацька","ЧернігівськаБахмацька",224]
[null,"Чернігівська","Менська","ЧернігівськаМенська",224]
[null,"Чернігівська","Бобровицька","ЧернігівськаБобровицька",224]
[null,"Чернігівська","Новгород-Сіверська","ЧернігівськаНовгород-Сіверська",224]
[null,"Чернігівська","Ічнянська","ЧернігівськаІчнянська",224]
[null,"Чернігівська","Сновська","ЧернігівськаСновська",224]
[null,"Чернігівська","Городнянська","ЧернігівськаГороднянська",224]
[null,"Чернігівська","Корюківська","ЧернігівськаКорюківська",224]
[null,"Чернігівська","Носівська","ЧернігівськаНосівська",224]
[null,"Чернігівська","Козелецька","ЧернігівськаКозелецька",224]
[null,"Чернігівська","Семенівська","ЧернігівськаСеменівська",224]
[null,"Чернігівська","Борзнянська","ЧернігівськаБорзнянська",224]
[null,"Чернігівська","Коропська","ЧернігівськаКоропська",224]
[null,"Чернігівська","Сосницька","ЧернігівськаСосницька",224]
[null,"Чернігівська","Варвинська","ЧернігівськаВарвинська",224]
[null,"Чернігівська","Ріпкинська",{"$f":"B1411&C1411","v":"ЧернігівськаРіпкинська"},224]
[null,"Чернігівська","Куликівська","ЧернігівськаКуликівська",224]
[null,"Чернігівська","Сухополов’янська","ЧернігівськаСухополов’янська",224]
[null,"Чернігівська","Михайло-Коцюбинська","ЧернігівськаМихайло-Коцюбинська",224]
[null,"Чернігівська","Талалаївська","ЧернігівськаТалалаївська",224]
[null,"Чернігівська","Срібнянська","ЧернігівськаСрібнянська",224]
[null,"Чернігівська","Деснянська","ЧернігівськаДеснянська",{"$f":"CODE(RIGHT(C1417,1))","v":224}]
[null,"Чернігівська","Новобілоуська","ЧернігівськаНовобілоуська",224]
[null,"Чернігівська","Лосинівська","ЧернігівськаЛосинівська",224]
[null,"Чернігівська","Остерська","ЧернігівськаОстерська",224]
[null,"Чернігівська","Ладанська","ЧернігівськаЛаданська",224]
[null,"Чернігівська","Вертіївська","ЧернігівськаВертіївська",224]
[null,"Чернігівська","Понорницька","ЧернігівськаПонорницька",224]
[null,"Чернігівська","Березнянська","ЧернігівськаБерезнянська",224]
[null,"Чернігівська","Іванівська","ЧернігівськаІванівська",224]
[null,"Чернігівська","Батуринська","ЧернігівськаБатуринська",224]
[null,"Чернігівська","Парафіївська","ЧернігівськаПарафіївська",224]
[null,"Чернігівська","Гончарівська","ЧернігівськаГончарівська",224]
[null,"Чернігівська","Новобасанська","ЧернігівськаНовобасанська",224]
[null,"Чернігівська","Кіптівська","ЧернігівськаКіптівська",224]
[null,"Чернігівська","Киселівська","ЧернігівськаКиселівська",224]
[null,"Чернігівська","Любецька","ЧернігівськаЛюбецька",224]
[null,"Чернігівська","Дмитрівська","ЧернігівськаДмитрівська",224]
[null,"Чернігівська","Добрянська","ЧернігівськаДобрянська",224]
[null,"Чернігівська","Линовицька","ЧернігівськаЛиновицька",224]
[null,"Чернігівська","Киїнська","ЧернігівськаКиїнська",224]
[null,"Чернігівська","Холминська","ЧернігівськаХолминська",224]
[null,"Чернігівська","Комарівська","ЧернігівськаКомарівська",224]
[null,"Чернігівська","Малодівицька","ЧернігівськаМалодівицька",224]
[null,"Чернігівська","Височанська","ЧернігівськаВисочанська",224]
[null,"Чернігівська","Мринська","ЧернігівськаМринська",224]
[null,"Чернігівська","Тупичівська","ЧернігівськаТупичівська",224]
[null,"Чернігівська","Крутівська","ЧернігівськаКрутівська",224]
[null,"Чернігівська","Макіївська","ЧернігівськаМакіївська",224]
[null,"Чернігівська","Яблунівська","ЧернігівськаЯблунівська",224]
[null,"Чернігівська","Седнівська","ЧернігівськаСеднівська",224]
[null,"Чернігівська","Олишівська","ЧернігівськаОлишівська",224]
[null,"Чернігівська","Плисківська","ЧернігівськаПлисківська",224]

{"sheet":"service3","index":4,"n_rows":22,"n_cols":17,"rows_kept":22}
["Сектор","Назва послуги","Короткий опис","Детальний опис","Ветерани та сім'ї","ВПО","Діти","Підлітки","Люди старшого віку","Сімейний лікар, mhGAP","Психолог","Самодопомога","Групи підтримки","Психіатр","Втрата, горе","Залежності","ПТСР"]
["Спорт","Активний парк","Спортивний майданчик під відкритим небом для підтримки здорового способу життя та активного відпочинку людей різного віку й рівня фізичної підготовки. Функціональні зони, тренажери, ігрові локації для індивідуальних та групових занять, зони відпочинку. Спеціальні програми для ветеранів війни та військовослужбовців, осіб з інвалідністю. Займатися спортом можна як самостійно, так і за допомогою навігаційних матеріалів за QR-кодами, що розміщені біля кожного тренажера з доступом до онлайн-тренувань різної складності.","Повний перелік послуг:\n– організація рухової активності людей різного віку, рівня фізичної підготовки та інтересів для збереження й відновлення ментального здоров’я;\n– перша психологічна допомога;\n– проведення заходів, спрямованих на фізичну реабілітацію та психоемоційне розвантаження осіб із вразливих категорій населення (змагання, відкриті тренування, майстер-класи тощо);\n– створення умов для занять спортом (включно з адаптивним) та активного відпочинку (індивідуальні та групові заняття);\n– групи підтримки та взаємодопомоги (програми для ветеранів/ок, ВПО та ін.);\n– створення пішохідних, велосипедних та інших видів маршрутів здоров’я;\n– психоедукація (інформаційно-просвітницькі заходи, спрямовані на формування культури піклування про ментальне здоров’я);\n– надання консультативної допомоги для формування навичок здорового способу життя;\n– перенаправлення до фахівців із психічного здоров’я і психосоціальної підтримки.\nПро послугу детальніше читайте: https://ap.sportforall.gov.ua/start ",1,1,null,1,1,null,null,1,1]
["Культура","Музей","Музей пропонує активності для психоемоційного розвантаження та зміцнення соціальної згуртованості громади через популяризацію культурної спадщини та просвітництво. Відвідувачі можуть долучитися до інтерактивних екскурсій, майстер-класів, арттерапевтичних занять, тренінгів із розвитку навичок та заходів із психосоціальної підтримки, що сприяють збереженню та підтримці психічного здоров’я. ","Повний перелік послуг:\n– просвітництво та популяризація культурної та духовної спадщини, історії, народних традицій з метою психоемоційного розвантаження, зміцнення єдності й добробуту громади;\n– організація виставок, створення тематичних експозицій, інтерактивні екскурсії та квести для покращення психічного здоров’я;\n– інтерактивні лекції про народні свята та традиції з елементами арттерапії, музикотерапії, танцювально-рухової терапії і психодрами для зниження рівня стресу;\n– організація і проведення майстер-класів, тренінгів та ігрових активностей для психологічної підтримки.",1,1,1,1,1,null,null,1]
["Культура","Центр культури та дозвілля","Центри надають культурно-просвітницькі послуги, популяризують культурні ініціативи на рівні громади та сприяють розвитку мистецьких ініціатив та розвитку творчого потенціалу жителів громади з метою психоемоційного розвантаження. Організація та проведення масових заходів із вшанування пам’ятних дат, фестивалів, тематичних свят, концертів, мистецьких акцій, конкурсів тощо сприяє розвитку згуртованості громади та покращенню психічного здоров’я її мешканців.","Повний перелік послуг:\n– проведення культурно-просвітницьких заходів та організація патріотичного виховання, вшанування пам’яті національних героїв, учасників російсько-української війни, АТО, Революції гідності;\n– підтримка культурних ініціатив громади, спрямованих на психоемоційне розвантаження;\n– розвиток аматорських мистецьких ініціатив через участь у гуртках, студіях та клубах за інтересами;\n– дослідження, збереження та популяризація нематеріальної культурної спадщини, історій успіху та стійкості громади;\n– виявлення та розвиток творчих здібностей людей різного віку, осіб, що перебувають в ситуації вразливості та осіб з інвалідністю (артмайстерки, театр тощо);\n– проведення вистав, концертів, фестивалів, тематичних свят, інших заходів для розвитку згуртованості громади та покращення психічного здоров’я її мешканців.",1,1,1,1,1,null,null,1,1]
["Культура","Сільський клуб","Сільські клуби надають культурно-просвітницькі послуги, популяризують культурні ініціативи на рівні громади та сприяють розвитку мистецьких ініціатив та розвитку творчого потенціалу жителів громади з метою психоемоційного розвантаження. Організація та проведення масових заходів з вшанування пам’ятних дат, фестивалів, тематичних свят, концертів, мистецьких акцій, конкурсів тощо сприяє розвитку згуртованості громади та покращенню психічного здоров’я її мешканців.","Повний перелік послуг:\n– проведення культурно-просвітницьких заходів та організація патріотичного виховання, вшанування пам’яті національних героїв, учасників російсько-української війни, АТО, Революції гідності;\n– підтримка культурних ініціатив громади, спрямованих на психоемоційне розвантаження;\n– розвиток аматорських мистецьких ініціатив через участь у гуртках, студіях та клубах за інтересами;\n– дослідження, збереження та популяризація нематеріальної культурної спадщини, історій успіху та стійкості громади;\n– проведення вистав, концертів, фестивалів, тематичних свят, інших заходів для розвитку згуртованості громади та покращення психічного здоров’я її мешканців.",1,1,1,1,1,null,null,1,1]
["Культура","Сільська бібліотека","Сільська бібліотека – це культурний, інформаційний та просвітницький простір, де поєднані можливості культурного збагачення, активності з психоемоційного розвантаження, особистісного та професійного розвитку. Відвідувачі можуть долучитися до освітніх, літературних, дозвіллєвих та творчих заходів, презентацій книг, семінарів і тренінгів, що сприяють не лише розширенню знань, а й підтримці психічного здоров’я. Це місце для творчості, навчання та спілкування, де кожен мешканець громади може знайти підтримку та натхнення.","Повний перелік послуг:\n– організація та проведення освітніх, літературних та творчих подій, презентацій книг, читацьких конференцій з метою психоемоційного розвантаження;\n– організація та підтримка діяльності тематичних клубів і спільнот з метою соціального згуртування громади та створення мережі соціальної підтримки (літературні та поетичні клуби, групи зустрічей, кіноклуби, майстер-класи, хендмейд-активності тощо);\n– організація та проведення просвітницьких заходів з питань психічного здоров’я (тематичні виставки, фестивалі, семінари, лекції тощо);\n– організація та проведення заходів з професійного розвитку працівників бібліотек з питань психічного здоров’я (курси першої психологічної допомоги та самодопомоги, тренінги з розвитку навичок, семінари, практикуми тощо).",1,1,1,1,1,null,null,1,1]
["Молодь","Молодіжний центр","Молодіжний центр – це дружній та безпечний простір для самовираження, творчості та створення молодіжної спільноти в громаді. Діяльність молодіжного центру спрямована на організацію корисного дозвілля для молоді (майстер-класи, дискусійні клуби, семінари та творчі зустрічі), що сприяє самореалізації та особистісному розвитку. Центр підтримує молодь у пошуку власного шляху, стимулює активну участь у житті громади та сприяє формуванню лідерських якостей.","Повний перелік послуг:\n– заходи з популяризації здорового способу життя, профілактики деструктивної поведінки та підтримки психічного здоров’я молоді;\n– психологічна підтримка, організація індивідуальних консультацій, групових сесій, груп психологічної підтримки;\n– профорієнтація, кар’єрне консультування та підтримка в сфері зайнятості, сприяння розвитку молодіжного підприємництва;\n– організація змістовного дозвілля, культурно-просвітницьких заходів та розвиток молодіжного волонтерського руху в громаді;\n– організація конференцій, форумів, тренінгів, семінарів та акцій для підвищення обізнаності молоді з питань психічного здоров’я;\n– розвиток життєвих навичок, проведення тренінгів з молодіжного лідерства, першої психологічної допомоги, навичок ефективної комунікації, соціального проєктування тощо шляхом неформальної освіти.",1,1,1,1,{"$nulls":3},1,1]
["Освіта","Заклад дошкільної освіти","Заклад дошкільної освіти надає широкий спектр психологічних та психолого-педагогічних послуг для дітей та їхніх батьків або законних представників. Метою є всебічний розвиток дитини, стимулювання її фізичних, інтелектуальних і творчих здібностей, соціалізація та формування життєвих навичок. Послуги охоплюють надання першої психологічної допомоги, психодіагностику, підтримку в кризових ситуаціях, корекційну роботу та психологічне й соціально-педагогічне консультування.","Повний перелік послуг:\n– перша психологічна допомога;\n– психодіагностика;\n– корекційна робота з дітьми (групові та індивідуальні психокорекційні заняття, індивідуальні заняття з обдарованими дітьми, заняття з психологічної підготовки дітей до навчання у школі);\n– надання психологічної допомоги за запитом та/або відповідно до потреби;\n– консультування батьків або законних представників дитини;\n– надання психолого-педагогічної допомоги дітям, які перебувають у кризовій ситуації (постраждали від соціальних, техногенних, природних катастроф, перенесли тяжкі хвороби, стреси, переселення, зазнали насильства тощо), з метою адаптації до нових умов;\n– психоедукація батьків або законних представників дитини;\n– проведення психолого-педагогічних консиліумів із залученням педагогічних працівників, лікаря з метою аналізу поведінки та розвитку дитини (за запитами вихователів, батьків або законних представників дитини, за ініціативи психолога).",1,1,1,{"$nulls":3},1,1]
["Освіта","Заклад загальної середньої освіти / ліцей / гімназія","Заклад загальної середньої освіти надає комплексну психологічну та психолого-педагогічну підтримку всім учасникам освітнього процесу, спрямовану на збереження та зміцнення їхнього психологічного здоров’я й психологічного благополуччя. Це передбачає першу психологічну допомогу, психодіагностику, допомогу в кризових ситуаціях, корекційну роботу, індивідуальні та групові психологічні та соціально-педагогічні консультації, формування навичок саморегуляції та стресостійкості, психоедукацію.","Повний перелік послуг:\n– психологічна діагностика та аналіз динаміки психічного, розумового й соціального розвитку здобувачів освіти;\n– психологічний супровід адаптації до умов освітнього процесу;\n– корекційна й корекційно-розвивальна робота зі здобувачами освіти;\n– консультативна допомога (індивідуальна та групова) всім учасникам освітнього процесу з питань навчання, виховання здобувачів освіти, особистісного та професійного розвитку тощо;\n– психологічна підтримка в кризових ситуаціях;\n– робота з постраждалими від насильства дітьми;\n– психологічний супровід дітей з особливими освітніми потребами, створення сприятливого середовища для їх навчання та соціалізації;\n– підтримка здобувачів освіти, що перебувають в ситуації вразливості, сприяння їх інтеграції в освітнє середовище;\n– формування культури піклування про психічне здоров’я в учасників освітнього процесу, психоедукація;\n– профілактика професійного вигорання педагогічних працівників;\n– робота з батьками (психологічна підтримка, консультування, психоедукація).",1,1,1,1,null,null,1,1,1,null,1]
["Освіта","Спеціальна школа","Спеціальна школа надає індивідуально-орієнтовані психологічні та психолого-педагогічні послуги для дітей з особливими освітніми потребами. У закладі створено безпечне, комфортне та інклюзивне середовище, що сприяє розвитку дитини. Послуги спеціальної школи охоплюють: комплексне оцінювання розвитку та корекційно-розвиткові заняття, діагностику та корекцію труднощів соціальної адаптації, консультування батьків і педагогів, психологічну підтримку в кризових ситуаціях, розвиток соціальних навичок та емоційного інтелекту.","Повний перелік послуг:\n– психолого-педагогічний супровід кожного учня (вихованця);\n– складання індивідуальної програми розвитку та індивідуального навчального плану (за потреби);\n– психолого-педагогічні та корекційно-розвиткові послуги (індивідуальні та групові заняття);\n– проведення моніторингу динаміки розвитку учнів (вихованців) та результатів корекційно-розвиткової роботи;\n– психодіагностика;\n– консультування, психоедукація батьків або інших законних представників дітей, педагогічних працівників;\n– надання консультативної допомоги з питань організації навчання осіб з особливими освітніми потребами, що здобувають освіту в інклюзивних та спеціальних класах (групах) інших закладів дошкільної та загальної середньої освіти;\n– соціально-педагогічний патронаж;\n– реабілітаційні послуги (за наявності в закладі реабілітаційного відділення).",1,1,1,1,null,null,1,1,1]
["Освіта","Інклюзивно-ресурсний центр","Інклюзивно-ресурсний центр проводить комплексне психолого-педагогічне оцінювання розвитку дитини, надає психолого-педагогічні та корекційно-розвиткові послуги, забезпечує системний та кваліфікований супровід дитини з особливими освітніми потребами. Подати заявку на відвідування інклюзивно-ресурсного центру та отримати запрошення на консультацію можна онлайн за посиланням: https://ircenter.gov.ua/.","Повний перелік послуг:\n– комплексне психолого-педагогічне оцінювання розвитку дитини, зокрема оцінювання когнітивної та емоційно-вольової сфер дитини;\n– розробка індивідуальної програми розвитку дитини з особливими освітніми потребами;\n– психолого-педагогічні та корекційно-розвиткові послуги (індивідуальні та групові заняття);\n– консультування та психоедукація батьків або законних представників дитини з особливими освітніми потребами;\n– надання консультативної й методичної підтримки педагогічним працівникам закладу освіти з організації інклюзивного навчання;\n– додаткові психолого-педагогічні та корекційно-розвиткові послуги;\n– корекція та розвиток психофізичних функцій, використання елементів кінезіотерапії, анімалотерапії (іпо-, каніс-, феліно-, орніто-), арттерапії (ізо-, драмо-, казко-, музико-, кіно-, піско-, ігро-, мульт-, фото-, кольоро-, пластилінової, танцювальної терапії, психогімнастики), працетерапії, ерготерапії, ароматерапії, Монтессорі-терапії тощо;\n– логоритміка та ін. ",1,1,1,1,null,null,1,1,1,1,1,1,1]
["Охорона здоров’я","Центр первинної медико-санітарної допомоги","Центр первинної медико-санітарної допомоги надає послуги з лікування соматичних захворювань, а також супровід, психологічну підтримку дорослим та дітям з психічними, поведінковими розладами (лікарі, які пройшли навчання за програмою ВООЗ mhGAP): оцінювання стану здоров’я; перша психологічна допомога; психологічна підтримка, інформування та навчання технік самодопомоги особи та її близьких; скерування до профільних фахівців з психічного здоров’я.\nГрафік надання послуг: відповідно до роботи закладу.","Повний перелік послуг:\n– оцінювання фізичного та психічного стану здоров’я;\n– складання плану лікування особи;\n– направлення на лабораторні та інструментальні дослідження;\n– скерування до профільних фахівців, зокрема з психічного здоров’я;\n– направлення до спеціалізованих медичних закладів для подальшого лікування або діагностики;\n– надання першої психологічної допомоги після пережитих кризових подій;\n– психологічна та психосоціальна підтримка особи та її близьких, інформування та навчання технік самодопомоги. \nПро послугу детальніше читайте: https://howareu.com/materials/posluha-z-mentalnoho-zdorovia",1,1,1,1,1,1,1,1,null,null,1,1,1]
["Охорона здоров’я","Реабілітаційне / мультидисциплінарна реабілітаційна команда","Психологічна допомога в межах комплексної стаціонарної та/або амбулаторної реабілітаційної допомоги дорослим та дітям, яка охоплює також фізичну терапію та ерготерапію.\nГрафік надання послуг: відповідно до роботи закладу.","Повний перелік послуг: \n– надання реабілітаційної допомоги відповідно до розробленого індивідуального реабілітаційного плану, зокрема психологічної;\n– допомога особі, яка потребує реабілітації, у визначенні та розумінні мети та завдань реабілітації;\n– підтримка та відновлення функціонування особи у фізичній, емоційній, інтелектуальній, соціальній та духовній сферах відповідно до короткотривалих та довгострокових цілей реабілітації;\n– психологічна підтримка особи та членів її родини;\n– перша психологічна допомога;\n– навчання осіб, членів їх родини або доглядачів особливостям догляду, запобіганню можливих ускладнень та дотриманню рекомендацій на всіх етапах реабілітації;\n– забезпечення, підбір, налаштування та навчання технічними та іншими засобами реабілітації;\n– сприяння особі в психосоціальній адаптації до зміненої життєвої ситуації, осмисленні її досвіду, розширенні самоусвідомлення та можливостей самореалізації.",1,1,1,1,1,null,1,1,null,null,1,null,1]
["Охорона здоров’я","Паліативне відділення лікарні загального профілю","Психологічна допомога та психосоціальний супровід у межах паліативної медичної допомоги дорослим та дітям.","Повний перелік послуг:\n– складання плану спостереження, що охоплює фізичні, психологічні, емоційні, соціальні й духовні потреби особи;\n– оцінювання психоемоційного стану;\n– консультування щодо втрати здоров’я;\n– психологічна допомога, зокрема із застосуванням психотерапевтичних інтервенцій, спрямована на оптимізацію стану особи, його функціонування та якості життя;\n– лікарське спостереження та цілодобовий медсестринський догляд;\n– психоедукація членів родини особи;\n– психологічна підтримка членів родини особи, що допомагає їм впоратися з хворобою особи та власним горем втрати;\n– багатовимірне оцінювання хронічного больового синдрому та запобігання йому, лікування і контроль;\n– перша психологічна допомога.",1,1,1,1,1,null,1,1,1,null,1]
["Охорона здоров’я","Кабінет психологічної підтримки","Кабінет психологічної підтримки лікарні надає послуги з психопрофілактики, психодіагностики, лікування та медико-психологічної реабілітації осіб із соматичними та психічними розладами, психопрофілактики професійного вигорання медичних працівників та психоедукації населення з питань психогігієни.","Повний перелік послуг:\n– психодіагностика;\n– лікування й медико-психологічна реабілітація осіб із різними соматичними захворюваннями разом із відповідними лікарями-спеціалістами, осіб із розладами психіки та поведінки;\n– психопрофілактика серед осіб із груп ризику щодо розвитку розладів психіки та поведінки;\n– психопрофілактика професійного вигорання працівників закладу охорони здоров’я;\n– психоедукація та поширення медико-психологічних знань із психогігієни серед населення; \n– перенаправлення до інших фахівців у сфері психічного здоров’я та психосоціальної підтримки за потреби;\n– перша психологічна допомога.",1,1,1,1,1,null,1,1,1,null,1,1,1]
["Охорона здоров’я","Психіатричне відділення в багатопрофільних лікарнях","Психіатричне відділення в багатопрофільних лікарнях надає комплекс медичних послуг, що охоплює психіатричну, психологічну та психотерапевтичну допомогу. Госпіталізація здійснюється за самозверненням та/або на підставі скерування (лікаря ПМД або лікуючого лікаря).\nГрафік надання послуг: відповідно до роботи закладу.","Повний перелік послуг:\n– проведення психіатричного огляду особи з визначенням потреби в госпіталізації та формування у співпраці з особою індивідуального плану лікування та реабілітації;\n– застосування фармакотерапії, психотерапії, методів психологічного впливу, а також надання реабілітаційної допомоги;\n– допомога при гострих невідкладних та поведінкових розладах;\n– цілодобове спостереження лікаря-психіатра та медсестринський догляд;\n– скерування особи в спеціалізований заклад для надання їй подальшої психіатричної допомоги в амбулаторних умовах та/або за місцем перебування особи та/або в заклад первинного рівня для супроводу і спостереження особи сімейними лікарями;\n– забезпечення надання медичної допомоги телемедичними засобами.\nПро послугу детальніше читайте: https://service.e-health.gov.ua/storage/editor/files/gid-dlya-patsientiv-2024-2.pdf ",1,1,1,1,1,null,1,null,1,1,1,1,1]
["Охорона здоров’я","Спеціальний заклад з надання психіатричної допомоги","Заклад надає психіатричну допомогу дорослим та дітям в умовах стаціонару, що охоплює психіатричний огляд з метою визначення потреби в госпіталізації та формування індивідуального плану лікування й реабілітації, а також психологічну та психотерапевтичну допомогу. Послуги надають як на підставі скерування (лікаря ПМД або лікуючого лікаря), так і при самозверненні або доставленні бригадою екстреної (швидкої) медичної допомоги, переведення з іншого ЗОЗ та/або клінічного підрозділу ЗОЗ.","Повний перелік послуг:\n– проведення психіатричного огляду особи з визначенням потреби в госпіталізації та формування у співпраці з особою (чи іншим законним представником дитини до 14 років) індивідуального плану лікування та реабілітації; \n– фармакотерапія;\n– психологічна, психотерапевтична, реабілітаційна допомога;\n– проведення лабораторних / інструментальних досліджень (за потреби), психодіагностичних тестів у динаміці;\n– цілодобове спостереження лікаря-психіатра та медсестринський догляд;\n– лікування осіб із розладами психіки та поведінки внаслідок вживання опіоїдів із використанням препаратів замісної підтримувальної терапії (ЗПТ);\n– формування разом з особою та/або її законним представником і за їх згодою плану лікування, супроводу та реабілітації після завершення стаціонарного етапу лікування. Скерування особи в спеціалізований заклад для надання їй подальшої психіатричної допомоги в амбулаторних умовах та/або за місцем перебування особи (спеціалістами та фахівцями мобільної мультидисциплінарної команди) та/або в заклад первинного рівня для супроводу і лікування особи сімейними лікарями;\n– забезпечення надання медичної допомоги телемедичними засобами.\nПро послугу детальніше читайте: https://service.e-health.gov.ua/storage/editor/files/gid-dlya-patsientiv-2024-2.pdf ",1,1,1,1,1,null,1,1,1,null,1,1,1]
["Охорона здоров’я","Центр ментального (психічного) здоров’я в закладі охорони здоров’я","Центр надає такі послуги: комплексне оцінювання потреб особи, психодіагностику, першу психологічну, кризову допомогу, психіатричну допомогу (зокрема медикаментозне лікування), індивідуальне, групове, сімейне консультування, психотерапію, психоедукацію, психологічні втручання низької інтенсивності, психологічну підтримку, консультативну допомогу щодо залежностей, перенаправлення осіб до різних надавачів послуг (включно з соціальними та іншими послугами в громаді). Послуги надають через самозвернення або через направлення сімейного / лікуючого лікаря.\nГрафік надання послуг: відповідно до роботи закладу.","Повний перелік послуг:\n– комплексне оцінювання потреб особи (психічний, фізичний стани та соціальний статус);\n– психологічна діагностика;\n– психіатрична допомога (зокрема фармакотерапія);\n– індивідуальне, групове та сімейне психологічне консультування;\n– перша та кризова психологічна допомога;\n– психологічні втручання низької інтенсивності;\n– психосоціальні інтервенції відповідно до індивідуального плану лікування та реабілітації;\n– психотерапія психічних та поведінкових розладів і станів, що виникли внаслідок хвороби / травми, участі в бойових діях, надзвичайних ситуацій, полону, перебування в місцях позбавлення волі;\n– психоедукація й підтримка особи та членів її родини;\n– психологічна підтримка осіб, які доглядають за тими, хто потребує паліативної допомоги;\n– робота з членами мультидисциплінарної реабілітаційної команди щодо психологічної підтримки осіб та членів їхніх родин;\n– надання консультативної допомоги, спрямованої на усунення або зменшення звичок і поведінки, що становлять ризик для психічного здоров’я особи (вживання ПАР).\nПро послугу детальніше читайте: https://howareu.com/materials/posibnyk-zi-stvorennia-funktsionuvannia-ta-oblashtuvannia-tsentriv-mentalnoho-zdorovia",1,1,1,1,1,null,1,1,1,1,1,1,1]
["Соціальний захист","Пансіонат для осіб з інвалідністю та осіб старшого віку","Пансіонат для осіб з інвалідністю та осіб старшого віку — це стаціонарний інтернатний заклад соціального захисту, де забезпечують цілодобове проживання та догляд. У закладі надають соціально-побутові послуги, медичне обслуговування та реабілітаційні послуги для громадян старшого віку та осіб, яким потрібен постійний догляд.","Повний перелік послуг:\n– оцінювання стану фізичного здоров’я та психічного статусу (оцінювання рівня тривоги, депресивних, фобічних проявів тощо);\n– скерування до профільних фахівців (за згодою особи), як-от лікаря-психіатра, лікаря-психолога, лікаря-психотерапевта або лікаря-невролога;\n– підтримка збереження та відновлення функціонування особи у фізичній, емоційній, інтелектуальній, соціальній та духовній сферах;\n– надання соціальних послуг (стаціонарний догляд, соціальна адаптація, представництво інтересів, інформування, посередництво, консультування, соціальна профілактика, соціально-психологічна реабілітація, переклад жестовою мовою, кризове та екстрене втручання);\n– мотиваційні заходи для збереження соціальної активності та здатності до самообслуговування в підопічних;\n– організація культурно-масових заходів для підопічних;\n– психологічна підтримка, інформування та навчання технік самодопомоги підопічних та їх близьких;\n– перша психологічна допомога.",1,1,null,null,1,null,1,1,1,null,1]
["Соціальний захист","Соціальний центр матері та дитини","Соціальний центр матері та дитини є закладом для тимчасового проживання жінок на сьомому-дев’ятому місяцях вагітності та матерів із дітьми віком від народження до 18 місяців, які перебувають у складних життєвих обставинах, що перешкоджають виконанню материнського обов’язку.","Повний перелік послуг:\n– надання першої психологічної допомоги, зокрема невідкладної психологічної допомоги;\n– діагностика психологічного стану особи;\n– індивідуальне та групове психологічне консультування;\n– психотерапія;\n– індивідуальні та групові психокорекційні заходи;\n– сприяння особі в психосоціальній адаптації та реабілітації (за індивідуальними планами);\n– психоедукація;\n– перенаправлення до інших фахівців у сфері психічного здоров’я та психосоціальної підтримки (за потреби);\n– консультування породіль у пологових будинках міста з метою профілактики раннього соціального сирітства.",1,1,1,1,null,null,1,1,1,null,1]
["Соціальний захист","Центр надання соціальних послуг","Центр надання соціальних послуг надає підтримку особам та сім’ям, які опинились у складних життєвих обставинах або ситуації вразливості. У закладі надають широкий спектр послуг: допомогу в подоланні кризових ситуацій, соціально-психологічну підтримку, консультації щодо прав і соціальних виплат, психологічні консультації, тренінги з розвитку життєвих навичок та самозарадності.","Повний перелік послуг:\n– заходи із соціальної профілактики та запобігання виникненню складних життєвих обставин для осіб та сімей з вразливих груп;\n– надання соціальних послуг – допомога в адаптації, інтеграції та реінтеграції, забезпечення притулком, екстрене (кризове) втручання, консультування, соціальний супровід, представництво інтересів, посередництво та профілактика;\n– проведення інформаційно-просвітницьких заходів для профілактики психічних розладів та підтримки ментального здоров’я;\n– перша психологічна допомога та застосування психологічних втручань низької інтенсивності;\n– інформування, навчання технік самодопомоги для клієнтів центру та їхніх близьких;\n– здійснення перенаправлення до профільних фахівців (спеціалістів інклюзивно-ресурсних центрів, лікаря-психіатра, медичних установ тощо).",1,1,1,1,1,null,1,1,1,null,1]
["Соціальний захист","Центр життєстійкості","Центр життєстійкості є громадським соціальним простором та осередком формування соціальної згуртованості територіальної громади, підтримки психічного здоров’я населення, а також забезпечення комплексного підходу до надання соціальних послуг та інших послуг з підтримки осіб / сімей, які проживають на території громади.","Повний перелік послуг:\n– надання комплексної соціальної послуги з формування життєстійкості;\n– створення осередків розміщення сімейних просторів для організації батьківських / сімейних клубів, сімейного консультування та надання соціальних послуг сім’ям з дітьми, усиновлювачам, прийомним сім’ям, патронатним сім’ям, дитячим будинкам сімейного типу;\n– психоедукація (інформаційно-просвітницькі заходи, спрямовані на профілактику та запобігання розвитку психічних розладів, формування культури піклування про ментальне здоров’я);\n– перша психологічна допомога;\n– психологічна підтримка, інформування та навчання технік самодопомоги;\n– перенаправлення до фахівців із психічного здоров’я та психосоціальної підтримки;\n– групи підтримки та взаємодопомоги (програми для ветеранів/ок, ВПО та ін.);\n– психологічні втручання низької інтенсивності.",1,1,1,1,1,null,1,1,1,null,1]